Body Name,Body,Service Label,Service Code   ,Service Division Label,Service Division Code,Expenditure Category,Expenditure Code,CIPFA Detailed Expenditure Type,CIPFA Detailed Expenditure Code,Date,Transaction Number,Net Amount,Capital and Revenue,Creditor Name
Brighton & Hove City Council,http://statistics.data.gov.uk/id/local-authority/00ML,Adult Social Care,BVASOC,S Svcs - Older People Svcs,PPL,Customer n Client Receipts,M,Fees n Charges,MB,04/01/2012,PAY00442072,-539.29,Revenue,Chesswood Lodge Ltd
Brighton & Hove City Council,http://statistics.data.gov.uk/id/local-authority/00ML,Adult Social Care,BVASOC,S Svcs - Older People Svcs,PPL,Third Party Payments,F,Other Establishments,FH,04/01/2012,PAY00442072,1916.58,Revenue,Chesswood Lodge Ltd
Brighton & Hove City Council,http://statistics.data.gov.uk/id/local-authority/00ML,Adult Social Care,BVASOC,S Svcs - Older People Svcs,PPL,Customer n Client Receipts,M,Fees n Charges,MB,04/01/2012,PAY00442073,-458.96,Revenue,RMBI
Brighton & Hove City Council,http://statistics.data.gov.uk/id/local-authority/00ML,Adult Social Care,BVASOC,S Svcs - Older People Svcs,PPL,Third Party Payments,F,Other Establishments,FH,04/01/2012,PAY00442073,2028.60,Revenue,RMBI
Brighton & Hove City Council,http://statistics.data.gov.uk/id/local-authority/00ML,Housing Services General Fund,BVAHOG,Homelessness,HML,Premises Related,C,Rents Payable,CC,04/01/2012,PAY00442075,780.00,Revenue,Lincoln Estates Ltd
Brighton & Hove City Council,http://statistics.data.gov.uk/id/local-authority/00ML,Housing Services General Fund,BVAHOG,Homelessness,HML,Premises Related,C,Rents Payable,CC,04/01/2012,PAY00442078,850.00,Revenue,Payment to Individual
Brighton & Hove City Council,http://statistics.data.gov.uk/id/local-authority/00ML,Housing Services General Fund,BVAHOG,Homelessness,HML,Premises Related,C,Rents Payable,CC,04/01/2012,PAY00442081,1250.00,Revenue,Payment to Individual
Brighton & Hove City Council,http://statistics.data.gov.uk/id/local-authority/00ML,Non SERCOP,BVANON,Cap - Education Services,4ED,New Construction n Conversion,PB,Level not required,NR5026,04/01/2012,PAY00442082,1390.00,Capital,Sportsafe UK Ltd
Brighton & Hove City Council,http://statistics.data.gov.uk/id/local-authority/00ML,Housing Services General Fund,BVAHOG,Homelessness,HML,Premises Related,C,Rents Payable,CC,04/01/2012,PAY00442084,750.00,Revenue,Payment to Individual
Brighton & Hove City Council,http://statistics.data.gov.uk/id/local-authority/00ML,Housing Services General Fund,BVAHOG,Homelessness,HML,Premises Related,C,Rents Payable,CC,04/01/2012,PAY00442085,750.00,Revenue,Payment to Individual
Brighton & Hove City Council,http://statistics.data.gov.uk/id/local-authority/00ML,Non SERCOP,BVANON,Cap - Social Services,4RV,Plant Machinery n Equipment,PE2,Level not required,NR5025,04/01/2012,PAY00442087,1080.00,Capital,Telecare Services Association
Brighton & Hove City Council,http://statistics.data.gov.uk/id/local-authority/00ML,Housing Services General Fund,BVAHOG,Homelessness,HML,Premises Related,C,Rents Payable,CC,04/01/2012,PAY00442089,530.00,Revenue,Payment to Individual
Brighton & Hove City Council,http://statistics.data.gov.uk/id/local-authority/00ML,Housing Services General Fund,BVAHOG,Homelessness,HML,Premises Related,C,Rents Payable,CC,04/01/2012,PAY00442090,850.00,Revenue,Edmonds Letting
Brighton & Hove City Council,http://statistics.data.gov.uk/id/local-authority/00ML,Education Services,BVAEDU,Ed - Mgmt & Support Services,EMG,Indirect Employees,B,Training,BM,04/01/2012,PAY00442091,4000.00,Revenue,Institute Of Education / Senjit
Brighton & Hove City Council,http://statistics.data.gov.uk/id/local-authority/00ML,Housing Services General Fund,BVAHOG,Homelessness,HML,Premises Related,C,Rents Payable,CC,04/01/2012,PAY00442093,700.00,Revenue,Payment to Individual
Brighton & Hove City Council,http://statistics.data.gov.uk/id/local-authority/00ML,Adult Social Care,BVASOC,S Svcs - Older People Svcs,PPL,Customer n Client Receipts,M,Fees n Charges,MB,04/01/2012,PAY00442095,-537.69,Revenue,Jewish Care
Brighton & Hove City Council,http://statistics.data.gov.uk/id/local-authority/00ML,Adult Social Care,BVASOC,S Svcs - Older People Svcs,PPL,Third Party Payments,F,Other Establishments,FH,04/01/2012,PAY00442095,3054.44,Revenue,Jewish Care
Brighton & Hove City Council,http://statistics.data.gov.uk/id/local-authority/00ML,Housing Services General Fund,BVAHOG,Homelessness,HML,Premises Related,C,Rents Payable,CC,04/01/2012,PAY00442096,715.00,Revenue,Payment to Individual
Brighton & Hove City Council,http://statistics.data.gov.uk/id/local-authority/00ML,Children�s Social Care,BVACSC,Child Srvcs - Com & Scl Work,FCW,Supplies and Services,E,Catering,EB,04/01/2012,PAY00442097,24.12,Revenue,The Imprest Holder
Brighton & Hove City Council,http://statistics.data.gov.uk/id/local-authority/00ML,Children�s Social Care,BVACSC,Child Srvcs - Com & Scl Work,FCW,Supplies and Services,E,Communications n Computing,EH,04/01/2012,PAY00442097,21.63,Revenue,The Imprest Holder
Brighton & Hove City Council,http://statistics.data.gov.uk/id/local-authority/00ML,Children�s Social Care,BVACSC,Child Srvcs - Com & Scl Work,FCW,Supplies and Services,E,Miscellaneous Expenses,EM,04/01/2012,PAY00442097,4.16,Revenue,The Imprest Holder
Brighton & Hove City Council,http://statistics.data.gov.uk/id/local-authority/00ML,Children�s Social Care,BVACSC,Child Srvcs - Com & Scl Work,FCW,Supplies and Services,E,Print Stat & Gen Office Exps,ED,04/01/2012,PAY00442097,0.83,Revenue,The Imprest Holder
Brighton & Hove City Council,http://statistics.data.gov.uk/id/local-authority/00ML,Children�s Social Care,BVACSC,Child Srvcs - Com & Scl Work,FCW,Transport Related,D,Direct Transport Costs,DA,04/01/2012,PAY00442097,86.78,Revenue,The Imprest Holder
Brighton & Hove City Council,http://statistics.data.gov.uk/id/local-authority/00ML,Children�s Social Care,BVACSC,Child Srvcs - Com & Scl Work,FCW,Transport Related,D,Public Transport,DD,04/01/2012,PAY00442097,10.00,Revenue,The Imprest Holder
Brighton & Hove City Council,http://statistics.data.gov.uk/id/local-authority/00ML,Children�s Social Care,BVACSC,Child Srvcs - Fostering,FLF,Third Party Payments,F,Other Establishments,FH,04/01/2012,PAY00442097,539.22,Revenue,The Imprest Holder
Brighton & Hove City Council,http://statistics.data.gov.uk/id/local-authority/00ML,Children�s Social Care,BVACSC,Child Srvcs - Leaving Care,FAL,Transfer Payments,G,Other Transfer Payments,GD,04/01/2012,PAY00442097,10.00,Revenue,The Imprest Holder
Brighton & Hove City Council,http://statistics.data.gov.uk/id/local-authority/00ML,Children�s Social Care,BVACSC,Child Srvcs - Other Fam Supp,FFX,Transfer Payments,G,Other Transfer Payments,GD,04/01/2012,PAY00442097,1257.76,Revenue,The Imprest Holder
Brighton & Hove City Council,http://statistics.data.gov.uk/id/local-authority/00ML,Children�s Social Care,BVACSC,Child Srvcs - Other Fam Supp,FFX,Transport Related,D,Public Transport,DD,04/01/2012,PAY00442097,2.00,Revenue,The Imprest Holder
Brighton & Hove City Council,http://statistics.data.gov.uk/id/local-authority/00ML,Environment and Regulatory Ser,BVAERS,Court Services,CRT,Supplies and Services,E,Miscellaneous Expenses,EM,04/01/2012,PAY00442099,14.53,Revenue,The Imprest Holder
Brighton & Hove City Council,http://statistics.data.gov.uk/id/local-authority/00ML,Environment and Regulatory Ser,BVAERS,Court Services,CRT,Supplies and Services,E,Print Stat & Gen Office Exps,ED,04/01/2012,PAY00442099,19.12,Revenue,The Imprest Holder
Brighton & Hove City Council,http://statistics.data.gov.uk/id/local-authority/00ML,Environment and Regulatory Ser,BVAERS,Court Services,CRT,Supplies and Services,E,Services,EF,04/01/2012,PAY00442099,584.34,Revenue,The Imprest Holder
Brighton & Hove City Council,http://statistics.data.gov.uk/id/local-authority/00ML,Environment and Regulatory Ser,BVAERS,Court Services,CRT,Transport Related,D,Public Transport,DD,04/01/2012,PAY00442099,43.20,Revenue,The Imprest Holder
Brighton & Hove City Council,http://statistics.data.gov.uk/id/local-authority/00ML,Children�s Social Care,BVACSC,Child Srvcs - Fostering,FLF,Third Party Payments,F,Other Establishments,FH,04/01/2012,PAY00442101,264398.09,Revenue,Families for Children (South) Ltd
Brighton & Hove City Council,http://statistics.data.gov.uk/id/local-authority/00ML,Children�s Social Care,BVACSC,Child Srvcs - Leaving Care,FAL,Transfer Payments,G,Other Transfer Payments,GD,04/01/2012,PAY00442101,-1502.54,Revenue,Families for Children (South) Ltd
Brighton & Hove City Council,http://statistics.data.gov.uk/id/local-authority/00ML,Children�s Social Care,BVACSC,Child Srvcs - Residential Svcs,FLR,Third Party Payments,F,Other Establishments,FH,04/01/2012,PAY00442101,34810.00,Revenue,Families for Children (South) Ltd
Brighton & Hove City Council,http://statistics.data.gov.uk/id/local-authority/00ML,Children�s Social Care,BVACSC,Child Srvcs - Residential Svcs,FLR,Third Party Payments,F,Other Establishments,FH,04/01/2012,PAY00442103,14310.80,Revenue,Caldecott Foundation
Brighton & Hove City Council,http://statistics.data.gov.uk/id/local-authority/00ML,Children�s Social Care,BVACSC,Child Srvcs - Fostering,FLF,Third Party Payments,F,Other Establishments,FH,04/01/2012,PAY00442104,46430.10,Revenue,Foster Care Associates Ltd
Brighton & Hove City Council,http://statistics.data.gov.uk/id/local-authority/00ML,Children�s Social Care,BVACSC,Child Srvcs - Fostering,FLF,Third Party Payments,F,Other Establishments,FH,04/01/2012,PAY00442105,6589.60,Revenue,Hillcrest Care Ltd
Brighton & Hove City Council,http://statistics.data.gov.uk/id/local-authority/00ML,Environment and Regulatory Ser,BVAERS,Flood Drainage and Coast Prtn,FDC,Premises Related,C,Repair Maint n Alterations,CA,04/01/2012,PAY00442106,262.12,Revenue,Amey OW Limited
Brighton & Hove City Council,http://statistics.data.gov.uk/id/local-authority/00ML,Highways and Transportation,BVAHRT,Highways and Roads - Mntnce,HRM,Supplies and Services,E,Services,EF,04/01/2012,PAY00442106,1907.88,Revenue,Amey OW Limited
Brighton & Hove City Council,http://statistics.data.gov.uk/id/local-authority/00ML,Non SERCOP,BVANON,Cap - Transport,4TR,New Construction n Conversion,PB,Level not required,NR5026,04/01/2012,PAY00442106,5397.51,Capital,Amey OW Limited
Brighton & Hove City Council,http://statistics.data.gov.uk/id/local-authority/00ML,Housing Services Revnue Acc,BVAHOU,Hsing Management - HRA,HGM,Supplies and Services,E,Equip't Furniture n Materials,EA,04/01/2012,PAY00442107,2666.80,Revenue,City Electrical Factors Ltd
Brighton & Hove City Council,http://statistics.data.gov.uk/id/local-authority/00ML,Adult Social Care,BVASOC,S Svcs - Learning Disability,LDY,Third Party Payments,F,Other Establishments,FH,04/01/2012,PAY00442108,5717.52,Revenue,Care Co-operatives Ltd
Brighton & Hove City Council,http://statistics.data.gov.uk/id/local-authority/00ML,Adult Social Care,BVASOC,S Svcs - Mental Health,MHT,Third Party Payments,F,Other Establishments,FH,04/01/2012,PAY00442108,29164.68,Revenue,Care Co-operatives Ltd
Brighton & Hove City Council,http://statistics.data.gov.uk/id/local-authority/00ML,Adult Social Care,BVASOC,S Svcs - Mental Health,MHT,Indirect Employees,B,Misc Employee Costs,BP,04/01/2012,PAY00442109,617.50,Revenue,Norman Mark Training
Brighton & Hove City Council,http://statistics.data.gov.uk/id/local-authority/00ML,Adult Social Care,BVASOC,S Svcs - Other Adult Services,ADT,Indirect Employees,B,Training,BM,04/01/2012,PAY00442109,345.00,Revenue,Norman Mark Training
Brighton & Hove City Council,http://statistics.data.gov.uk/id/local-authority/00ML,Central Services To The Public,BVACEN,Support Services (SSC),PPT,Indirect Employees,B,Training,BM,04/01/2012,PAY00442109,305.00,Revenue,Norman Mark Training
Brighton & Hove City Council,http://statistics.data.gov.uk/id/local-authority/00ML,Adult Social Care,BVASOC,S Svcs - Learning Disability,LDY,Customer n Client Receipts,M,Fees n Charges,MB,04/01/2012,PAY00442113,-261.00,Revenue,Caburn Support Services
Brighton & Hove City Council,http://statistics.data.gov.uk/id/local-authority/00ML,Adult Social Care,BVASOC,S Svcs - Learning Disability,LDY,Third Party Payments,F,Other Establishments,FH,04/01/2012,PAY00442113,5971.13,Revenue,Caburn Support Services
Brighton & Hove City Council,http://statistics.data.gov.uk/id/local-authority/00ML,Adult Social Care,BVASOC,S Svcs - Mental Health,MHT,Customer n Client Receipts,M,Fees n Charges,MB,04/01/2012,PAY00442113,-37.00,Revenue,Caburn Support Services
Brighton & Hove City Council,http://statistics.data.gov.uk/id/local-authority/00ML,Adult Social Care,BVASOC,S Svcs - Mental Health,MHT,Third Party Payments,F,Other Establishments,FH,04/01/2012,PAY00442113,66.00,Revenue,Caburn Support Services
Brighton & Hove City Council,http://statistics.data.gov.uk/id/local-authority/00ML,Children�s Social Care,BVACSC,Child Srvcs - Leaving Care,FAL,Transfer Payments,G,Other Transfer Payments,GD,04/01/2012,PAY00442113,244.63,Revenue,Caburn Support Services
Brighton & Hove City Council,http://statistics.data.gov.uk/id/local-authority/00ML,Adult Social Care,BVASOC,S Svcs - Learning Disability,LDY,Customer n Client Receipts,M,Fees n Charges,MB,04/01/2012,PAY00442114,-1875.00,Revenue,Southdown Housing Association
Brighton & Hove City Council,http://statistics.data.gov.uk/id/local-authority/00ML,Adult Social Care,BVASOC,S Svcs - Learning Disability,LDY,Third Party Payments,F,Other Establishments,FH,04/01/2012,PAY00442114,99810.58,Revenue,Southdown Housing Association
Brighton & Hove City Council,http://statistics.data.gov.uk/id/local-authority/00ML,Housing Services General Fund,BVAHOG,Hsing Benefits,HGB,Supplies and Services,E,Services,EF,04/01/2012,PAY00442117,1944.00,Revenue,Experian Ltd
Brighton & Hove City Council,http://statistics.data.gov.uk/id/local-authority/00ML,Central Services To The Public,BVACEN,Support Services (SSC),PPT,Supplies and Services,E,Print Stat & Gen Office Exps,ED,04/01/2012,PAY00442118,1140.00,Revenue,Soutron Limited
Brighton & Hove City Council,http://statistics.data.gov.uk/id/local-authority/00ML,Housing Services General Fund,BVAHOG,Homelessness,HML,Premises Related,C,Rents Payable,CC,04/01/2012,PAY00442119,850.00,Revenue,Payment to Individual
Brighton & Hove City Council,http://statistics.data.gov.uk/id/local-authority/00ML,Adult Social Care,BVASOC,S Svcs - Older People Svcs,PPL,Indirect Employees,B,Training,BM,04/01/2012,PAY00442121,770.00,Revenue,The Open University
Brighton & Hove City Council,http://statistics.data.gov.uk/id/local-authority/00ML,Adult Social Care,BVASOC,S Svcs - Older People Svcs,PPL,Third Party Payments,F,Other Establishments,FH,04/01/2012,PAY00442122,1060.80,Revenue,Parkview Care Home Ltd
Brighton & Hove City Council,http://statistics.data.gov.uk/id/local-authority/00ML,Housing Services General Fund,BVAHOG,Homelessness,HML,Premises Related,C,Rents Payable,CC,04/01/2012,PAY00442123,14206.55,Revenue,Forward Properties Limited
Brighton & Hove City Council,http://statistics.data.gov.uk/id/local-authority/00ML,Adult Social Care,BVASOC,S Svcs - Older People Svcs,PPL,Customer n Client Receipts,M,Fees n Charges,MB,04/01/2012,PAY00442126,10439.03,Revenue,Drumconner Ltd
Brighton & Hove City Council,http://statistics.data.gov.uk/id/local-authority/00ML,Children�s Social Care,BVACSC,Child Srvcs - Fostering,FLF,Third Party Payments,F,Other Establishments,FH,04/01/2012,PAY00442128,8019.94,Revenue,Asphaleia Ltd
Brighton & Hove City Council,http://statistics.data.gov.uk/id/local-authority/00ML,Adult Social Care,BVASOC,S Svcs - Older People Svcs,PPL,Customer n Client Receipts,M,Fees n Charges,MB,04/01/2012,PAY00442129,-1884.32,Revenue,Birchwood Grove Nursing Home
Brighton & Hove City Council,http://statistics.data.gov.uk/id/local-authority/00ML,Adult Social Care,BVASOC,S Svcs - Older People Svcs,PPL,Third Party Payments,F,Other Establishments,FH,04/01/2012,PAY00442129,14684.00,Revenue,Birchwood Grove Nursing Home
Brighton & Hove City Council,http://statistics.data.gov.uk/id/local-authority/00ML,Children�s Social Care,BVACSC,Child Srvcs - Fostering,FLF,Third Party Payments,F,Other Establishments,FH,04/01/2012,PAY00442132,4296.14,Revenue,Kindercare Fostering
Brighton & Hove City Council,http://statistics.data.gov.uk/id/local-authority/00ML,Cultural and Related Services,BVACUL,Culture & Heritage,CHG,Supplies and Services,E,Communications n Computing,EH,04/01/2012,PAY00442139,2520.00,Revenue,Dataline Software Ltd
Brighton & Hove City Council,http://statistics.data.gov.uk/id/local-authority/00ML,Central Services To The Public,BVACEN,Support Services (SSC),PPT,Premises Related,C,Repair Maint n Alterations,CA,04/01/2012,PAY00442140,568.55,Revenue,Fireline Ltd
Brighton & Hove City Council,http://statistics.data.gov.uk/id/local-authority/00ML,Central Services To The Public,BVACEN,Trading Services,TRD,Premises Related,C,Repair Maint n Alterations,CA,04/01/2012,PAY00442140,32.39,Revenue,Fireline Ltd
Brighton & Hove City Council,http://statistics.data.gov.uk/id/local-authority/00ML,Cultural and Related Services,BVACUL,Culture & Heritage,CHG,Premises Related,C,Repair Maint n Alterations,CA,04/01/2012,PAY00442140,137.18,Revenue,Fireline Ltd
Brighton & Hove City Council,http://statistics.data.gov.uk/id/local-authority/00ML,Cultural and Related Services,BVACUL,Library Service,LBR,Premises Related,C,Repair Maint n Alterations,CA,04/01/2012,PAY00442140,13.60,Revenue,Fireline Ltd
Brighton & Hove City Council,http://statistics.data.gov.uk/id/local-authority/00ML,Highways and Transportation,BVAHRT,Parking Services,PRK,Premises Related,C,Repair Maint n Alterations,CA,04/01/2012,PAY00442140,347.83,Revenue,Fireline Ltd
Brighton & Hove City Council,http://statistics.data.gov.uk/id/local-authority/00ML,Housing Services Revnue Acc,BVAHOU,Hsing Management - HRA,HGM,Premises Related,C,Repair Maint n Alterations,CA,04/01/2012,PAY00442140,254.13,Revenue,Fireline Ltd
Brighton & Hove City Council,http://statistics.data.gov.uk/id/local-authority/00ML,Non SERCOP,BVANON,Cap - Education Services,4ED,Plant Machinery n Equipment,PE2,Level not required,NR5025,04/01/2012,PAY00442140,61.38,Capital,Fireline Ltd
Brighton & Hove City Council,http://statistics.data.gov.uk/id/local-authority/00ML,Housing Services General Fund,BVAHOG,Homelessness,HML,Premises Related,C,Rents Payable,CC,04/01/2012,PAY00442141,825.00,Revenue,Payment to Individual
Brighton & Hove City Council,http://statistics.data.gov.uk/id/local-authority/00ML,Children�s Social Care,BVACSC,Child Srvcs - Fostering,FLF,Third Party Payments,F,Other Establishments,FH,04/01/2012,PAY00442142,8209.82,Revenue,Futures for Children Ltd
Brighton & Hove City Council,http://statistics.data.gov.uk/id/local-authority/00ML,Central Services To The Public,BVACEN,Support Services (SSC),PPT,Indirect Employees,B,Training,BM,04/01/2012,PAY00442143,1400.00,Revenue,The Trust for Developing Communities
Brighton & Hove City Council,http://statistics.data.gov.uk/id/local-authority/00ML,Central Services To The Public,BVACEN,Holding Accounts,PPH,Supplies and Services,E,Communications n Computing,EH,04/01/2012,PAY00442144,125.49,Revenue,Royal Mail Group Ltd
Brighton & Hove City Council,http://statistics.data.gov.uk/id/local-authority/00ML,Central Services To The Public,BVACEN,Local Tax Collection,LTC,Supplies and Services,E,Communications n Computing,EH,04/01/2012,PAY00442144,1008.52,Revenue,Royal Mail Group Ltd
Brighton & Hove City Council,http://statistics.data.gov.uk/id/local-authority/00ML,Children�s Social Care,BVACSC,Child Srvcs - Fostering,FLF,Third Party Payments,F,Other Establishments,FH,04/01/2012,PAY00442145,3214.68,Revenue,Barnardos
Brighton & Hove City Council,http://statistics.data.gov.uk/id/local-authority/00ML,Housing Services General Fund,BVAHOG,Homelessness,HML,Premises Related,C,Rents Payable,CC,04/01/2012,PAY00442148,2090.00,Revenue,Payment to Individual
Brighton & Hove City Council,http://statistics.data.gov.uk/id/local-authority/00ML,Education Services,BVAEDU,Ed - Ed Other - LA Attrib Sch,ELA,Supplies and Services,E,Contributions to Provisions,EL,04/01/2012,PAY00442151,1400.00,Revenue,Payment to Individual
Brighton & Hove City Council,http://statistics.data.gov.uk/id/local-authority/00ML,Housing Services General Fund,BVAHOG,Homelessness,HML,Premises Related,C,Rents Payable,CC,04/01/2012,PAY00442154,850.00,Revenue,Payment to Individual
Brighton & Hove City Council,http://statistics.data.gov.uk/id/local-authority/00ML,Environment and Regulatory Ser,BVAERS,Management Services (DEC),MGT,Transport Related,D,Direct Transport Costs,DA,04/01/2012,PAY00442161,786.75,Revenue,Scarab Sweepers Ltd
Brighton & Hove City Council,http://statistics.data.gov.uk/id/local-authority/00ML,Housing Services Revnue Acc,BVAHOU,Hsing Management - HRA,HGM,Premises Related,C,Repair Maint n Alterations,CA,04/01/2012,PAY00442162,890.00,Revenue,Greenacre Recycling Ltd
Brighton & Hove City Council,http://statistics.data.gov.uk/id/local-authority/00ML,Housing Services Revnue Acc,BVAHOU,Hsing Management - HRA,HGM,Supplies and Services,E,Miscellaneous Expenses,EM,04/01/2012,PAY00442162,125.00,Revenue,Greenacre Recycling Ltd
Brighton & Hove City Council,http://statistics.data.gov.uk/id/local-authority/00ML,Environment and Regulatory Ser,BVAERS,Management Services (DEC),MGT,Transport Related,D,Direct Transport Costs,DA,04/01/2012,PAY00442163,586.92,Revenue,Dennis Eagle Ltd
Brighton & Hove City Council,http://statistics.data.gov.uk/id/local-authority/00ML,Education Services,BVAEDU,Ed - Srvcs YP - Youth Srvcs,ENY,Third Party Payments,F,Other Establishments,FH,04/01/2012,PAY00442164,7276.00,Revenue,Sussex Central YMCA
Brighton & Hove City Council,http://statistics.data.gov.uk/id/local-authority/00ML,Housing Services General Fund,BVAHOG,Homelessness,HML,Premises Related,C,Rents Payable,CC,04/01/2012,PAY00442164,5631.83,Revenue,Sussex Central YMCA
Brighton & Hove City Council,http://statistics.data.gov.uk/id/local-authority/00ML,Children�s Social Care,BVACSC,Child Srvcs - Residential Svcs,FLR,Third Party Payments,F,Other Establishments,FH,04/01/2012,PAY00442165,82450.40,Revenue,My Choice Children`s Homes Ltd
Brighton & Hove City Council,http://statistics.data.gov.uk/id/local-authority/00ML,Housing Services General Fund,BVAHOG,Homelessness,HML,Premises Related,C,Repair Maint n Alterations,CA,04/01/2012,PAY00442168,889.55,Revenue,B & Q Plc
Brighton & Hove City Council,http://statistics.data.gov.uk/id/local-authority/00ML,Children�s Social Care,BVACSC,Child Srvcs - Fostering,FLF,Third Party Payments,F,Other Establishments,FH,04/01/2012,PAY00442170,52642.56,Revenue,The Foster Care Agency Ltd
Brighton & Hove City Council,http://statistics.data.gov.uk/id/local-authority/00ML,Adult Social Care,BVASOC,S Svcs - Physical Disability,PDY,Supplies and Services,E,Communications n Computing,EH,04/01/2012,PAY00442171,28.34,Revenue,Supra UK Ltd
Brighton & Hove City Council,http://statistics.data.gov.uk/id/local-authority/00ML,Adult Social Care,BVASOC,S Svcs - Physical Disability,PDY,Supplies and Services,E,Equip't Furniture n Materials,EA,04/01/2012,PAY00442171,1769.00,Revenue,Supra UK Ltd
Brighton & Hove City Council,http://statistics.data.gov.uk/id/local-authority/00ML,Environment and Regulatory Ser,BVAERS,Management Services (DEC),MGT,Premises Related,C,Repair Maint n Alterations,CA,04/01/2012,PAY00442172,124.00,Revenue,FJS Building & Property Maintenance Ltd
Brighton & Hove City Council,http://statistics.data.gov.uk/id/local-authority/00ML,Planning Services,BVAPLA,Economic Development,ECD,Premises Related,C,Repair Maint n Alterations,CA,04/01/2012,PAY00442172,482.00,Revenue,FJS Building & Property Maintenance Ltd
Brighton & Hove City Council,http://statistics.data.gov.uk/id/local-authority/00ML,Children�s Social Care,BVACSC,Child Srvcs - Fostering,FLF,Third Party Payments,F,Other Establishments,FH,04/01/2012,PAY00442173,11531.61,Revenue,Seafields Fostering Ltd
Brighton & Hove City Council,http://statistics.data.gov.uk/id/local-authority/00ML,Environment and Regulatory Ser,BVAERS,Environmental Health,EVH,Supplies and Services,E,Miscellaneous Expenses,EM,04/01/2012,PAY00442177,425.00,Revenue,Regional Publications Ltd
Brighton & Hove City Council,http://statistics.data.gov.uk/id/local-authority/00ML,Adult Social Care,BVASOC,S Svcs - Mental Health,MHT,Customer n Client Receipts,M,Fees n Charges,MB,04/01/2012,PAY00442178,-295.00,Revenue,Clifton Court Development Company
Brighton & Hove City Council,http://statistics.data.gov.uk/id/local-authority/00ML,Adult Social Care,BVASOC,S Svcs - Mental Health,MHT,Third Party Payments,F,Other Establishments,FH,04/01/2012,PAY00442178,1373.52,Revenue,Clifton Court Development Company
Brighton & Hove City Council,http://statistics.data.gov.uk/id/local-authority/00ML,Housing Services General Fund,BVAHOG,Homelessness,HML,Premises Related,C,Rents Payable,CC,04/01/2012,PAY00442179,620.00,Revenue,Payment to Individual
Brighton & Hove City Council,http://statistics.data.gov.uk/id/local-authority/00ML,Children�s Social Care,BVACSC,Child Srvcs - Fostering,FLF,Third Party Payments,F,Other Establishments,FH,04/01/2012,PAY00442181,27096.21,Revenue,The National Fostering Agency Ltd
Brighton & Hove City Council,http://statistics.data.gov.uk/id/local-authority/00ML,Cultural and Related Services,BVACUL,Open Spaces,PEN,Third Party Payments,F,Private Contractors,FJ,04/01/2012,PAY00442186,450.00,Revenue,A M Construction (Southern) Ltd
Brighton & Hove City Council,http://statistics.data.gov.uk/id/local-authority/00ML,Adult Social Care,BVASOC,S Svcs - Older People Svcs,PPL,Customer n Client Receipts,M,Fees n Charges,MB,04/01/2012,PAY00442189,-2205.00,Revenue,Eastridge Manor
Brighton & Hove City Council,http://statistics.data.gov.uk/id/local-authority/00ML,Adult Social Care,BVASOC,S Svcs - Older People Svcs,PPL,Third Party Payments,F,Other Establishments,FH,04/01/2012,PAY00442189,4034.80,Revenue,Eastridge Manor
Brighton & Hove City Council,http://statistics.data.gov.uk/id/local-authority/00ML,Central Services To The Public,BVACEN,Support Services (SSC),PPT,Supplies and Services,E,Miscellaneous Expenses,EM,04/01/2012,PAY00442190,1500.00,Revenue,Aviation Projects Ltd
Brighton & Hove City Council,http://statistics.data.gov.uk/id/local-authority/00ML,Adult Social Care,BVASOC,S Svcs - Learning Disability,LDY,Third Party Payments,F,Other Establishments,FH,04/01/2012,PAY00442191,39.30,Revenue,Prime Care Community Services Ltd
Brighton & Hove City Council,http://statistics.data.gov.uk/id/local-authority/00ML,Adult Social Care,BVASOC,S Svcs - Mental Health,MHT,Customer n Client Receipts,M,Fees n Charges,MB,04/01/2012,PAY00442191,-100.00,Revenue,Prime Care Community Services Ltd
Brighton & Hove City Council,http://statistics.data.gov.uk/id/local-authority/00ML,Adult Social Care,BVASOC,S Svcs - Mental Health,MHT,Third Party Payments,F,Other Establishments,FH,04/01/2012,PAY00442191,730.31,Revenue,Prime Care Community Services Ltd
Brighton & Hove City Council,http://statistics.data.gov.uk/id/local-authority/00ML,Adult Social Care,BVASOC,S Svcs - Older People Svcs,PPL,Customer n Client Receipts,M,Fees n Charges,MB,04/01/2012,PAY00442191,-4276.88,Revenue,Prime Care Community Services Ltd
Brighton & Hove City Council,http://statistics.data.gov.uk/id/local-authority/00ML,Adult Social Care,BVASOC,S Svcs - Older People Svcs,PPL,Third Party Payments,F,Other Establishments,FH,04/01/2012,PAY00442191,19318.30,Revenue,Prime Care Community Services Ltd
Brighton & Hove City Council,http://statistics.data.gov.uk/id/local-authority/00ML,Adult Social Care,BVASOC,S Svcs - Physical Disability,PDY,Customer n Client Receipts,M,Fees n Charges,MB,04/01/2012,PAY00442191,-812.28,Revenue,Prime Care Community Services Ltd
Brighton & Hove City Council,http://statistics.data.gov.uk/id/local-authority/00ML,Adult Social Care,BVASOC,S Svcs - Physical Disability,PDY,Third Party Payments,F,Other Establishments,FH,04/01/2012,PAY00442191,4587.16,Revenue,Prime Care Community Services Ltd
Brighton & Hove City Council,http://statistics.data.gov.uk/id/local-authority/00ML,Children�s Social Care,BVACSC,Child Srvcs - Fostering,FLF,Third Party Payments,F,Other Establishments,FH,04/01/2012,PAY00442197,9620.24,Revenue,Outlook Fostering Services Ltd
Brighton & Hove City Council,http://statistics.data.gov.uk/id/local-authority/00ML,Adult Social Care,BVASOC,S Svcs - Older People Svcs,PPL,Customer n Client Receipts,M,Fees n Charges,MB,04/01/2012,PAY00442198,-573.75,Revenue,Elton Lodge Ltd
Brighton & Hove City Council,http://statistics.data.gov.uk/id/local-authority/00ML,Adult Social Care,BVASOC,S Svcs - Older People Svcs,PPL,Third Party Payments,F,Other Establishments,FH,04/01/2012,PAY00442198,2766.00,Revenue,Elton Lodge Ltd
Brighton & Hove City Council,http://statistics.data.gov.uk/id/local-authority/00ML,Housing Services General Fund,BVAHOG,Homelessness,HML,Premises Related,C,Rents Payable,CC,04/01/2012,PAY00442201,11366.44,Revenue,Sanctuary Housing Association
Brighton & Hove City Council,http://statistics.data.gov.uk/id/local-authority/00ML,Housing Services General Fund,BVAHOG,Homelessness,HML,Premises Related,C,Rents Payable,CC,04/01/2012,PAY00442202,117421.36,Revenue,KEM Property Services Ltd
Brighton & Hove City Council,http://statistics.data.gov.uk/id/local-authority/00ML,Children�s Social Care,BVACSC,Child Srvcs - Residential Svcs,FLR,Third Party Payments,F,Other Establishments,FH,04/01/2012,PAY00442203,25056.00,Revenue,Lioncare Ltd
Brighton & Hove City Council,http://statistics.data.gov.uk/id/local-authority/00ML,Adult Social Care,BVASOC,Management Services (DEC),MGT,Indirect Employees,B,Training,BM,04/01/2012,PAY00442204,1.75,Revenue,Carlisle Staffing Plc
Brighton & Hove City Council,http://statistics.data.gov.uk/id/local-authority/00ML,Adult Social Care,BVASOC,S Svcs - Learning Disability,LDY,Direct Employees,A,Salaries,AA,04/01/2012,PAY00442204,1412.34,Revenue,Carlisle Staffing Plc
Brighton & Hove City Council,http://statistics.data.gov.uk/id/local-authority/00ML,Adult Social Care,BVASOC,S Svcs - Mental Health,MHT,Direct Employees,A,Salaries,AA,04/01/2012,PAY00442204,86.00,Revenue,Carlisle Staffing Plc
Brighton & Hove City Council,http://statistics.data.gov.uk/id/local-authority/00ML,Adult Social Care,BVASOC,S Svcs - Older People Svcs,PPL,Direct Employees,A,Salaries,AA,04/01/2012,PAY00442204,4140.65,Revenue,Carlisle Staffing Plc
Brighton & Hove City Council,http://statistics.data.gov.uk/id/local-authority/00ML,Adult Social Care,BVASOC,S Svcs - Supported Employment,EMP,Direct Employees,A,Salaries,AA,04/01/2012,PAY00442204,656.23,Revenue,Carlisle Staffing Plc
Brighton & Hove City Council,http://statistics.data.gov.uk/id/local-authority/00ML,Adult Social Care,BVASOC,Support Services (SSC),PPT,Direct Employees,A,Salaries,AA,04/01/2012,PAY00442204,24.64,Revenue,Carlisle Staffing Plc
Brighton & Hove City Council,http://statistics.data.gov.uk/id/local-authority/00ML,Central Services To The Public,BVACEN,Ed - EY - Central,EAE,Direct Employees,A,Salaries,AA,04/01/2012,PAY00442204,93.89,Revenue,Carlisle Staffing Plc
Brighton & Hove City Council,http://statistics.data.gov.uk/id/local-authority/00ML,Central Services To The Public,BVACEN,Reg - Birth Death and Marriage,RBD,Direct Employees,A,Salaries,AA,04/01/2012,PAY00442204,16.76,Revenue,Carlisle Staffing Plc
Brighton & Hove City Council,http://statistics.data.gov.uk/id/local-authority/00ML,Central Services To The Public,BVACEN,Support Services (SSC),PPT,Direct Employees,A,Salaries,AA,04/01/2012,PAY00442204,7462.69,Revenue,Carlisle Staffing Plc
Brighton & Hove City Council,http://statistics.data.gov.uk/id/local-authority/00ML,Children�s Social Care,BVACSC,Child Srvcs - Adoption,FAA,Direct Employees,A,Salaries,AA,04/01/2012,PAY00442204,5.63,Revenue,Carlisle Staffing Plc
Brighton & Hove City Council,http://statistics.data.gov.uk/id/local-authority/00ML,Children�s Social Care,BVACSC,Child Srvcs - Com & Scl Work,FCW,Direct Employees,A,Salaries,AA,04/01/2012,PAY00442204,1289.73,Revenue,Carlisle Staffing Plc
Brighton & Hove City Council,http://statistics.data.gov.uk/id/local-authority/00ML,Children�s Social Care,BVACSC,Child Srvcs - Fostering,FLF,Direct Employees,A,Salaries,AA,04/01/2012,PAY00442204,467.47,Revenue,Carlisle Staffing Plc
Brighton & Hove City Council,http://statistics.data.gov.uk/id/local-authority/00ML,Children�s Social Care,BVACSC,Child Srvcs - Leaving Care,FAL,Direct Employees,A,Salaries,AA,04/01/2012,PAY00442204,79.70,Revenue,Carlisle Staffing Plc
Brighton & Hove City Council,http://statistics.data.gov.uk/id/local-authority/00ML,Children�s Social Care,BVACSC,Child Srvcs - Other,FAX,Direct Employees,A,Salaries,AA,04/01/2012,PAY00442204,3.75,Revenue,Carlisle Staffing Plc
Brighton & Hove City Council,http://statistics.data.gov.uk/id/local-authority/00ML,Children�s Social Care,BVACSC,Child Srvcs - Other Fam Supp,FFX,Direct Employees,A,Salaries,AA,04/01/2012,PAY00442204,392.01,Revenue,Carlisle Staffing Plc
Brighton & Hove City Council,http://statistics.data.gov.uk/id/local-authority/00ML,Children�s Social Care,BVACSC,Child Srvcs - Other Yth Jstce,FYX,Direct Employees,A,Salaries,AA,04/01/2012,PAY00442204,8.51,Revenue,Carlisle Staffing Plc
Brighton & Hove City Council,http://statistics.data.gov.uk/id/local-authority/00ML,Children�s Social Care,BVACSC,Child Srvcs - Residential Svcs,FLR,Direct Employees,A,Salaries,AA,04/01/2012,PAY00442204,102.96,Revenue,Carlisle Staffing Plc
Brighton & Hove City Council,http://statistics.data.gov.uk/id/local-authority/00ML,Cultural and Related Services,BVACUL,Culture & Heritage,CHG,Direct Employees,A,Salaries,AA,04/01/2012,PAY00442204,232.74,Revenue,Carlisle Staffing Plc
Brighton & Hove City Council,http://statistics.data.gov.uk/id/local-authority/00ML,Education Services,BVAEDU,Ed - Ed Other - LA Attrib Sch,ELA,Direct Employees,A,Salaries,AA,04/01/2012,PAY00442204,8.75,Revenue,Carlisle Staffing Plc
Brighton & Hove City Council,http://statistics.data.gov.uk/id/local-authority/00ML,Education Services,BVAEDU,Ed - EY - Central,EAE,Direct Employees,A,Salaries,AA,04/01/2012,PAY00442204,2284.19,Revenue,Carlisle Staffing Plc
Brighton & Hove City Council,http://statistics.data.gov.uk/id/local-authority/00ML,Education Services,BVAEDU,Ed - Mgmt & Support Services,EMG,Direct Employees,A,Salaries,AA,04/01/2012,PAY00442204,16.01,Revenue,Carlisle Staffing Plc
Brighton & Hove City Council,http://statistics.data.gov.uk/id/local-authority/00ML,Education Services,BVAEDU,Ed - Primary schools,EHH,Direct Employees,A,Salaries,AA,04/01/2012,PAY00442204,176.30,Revenue,Carlisle Staffing Plc
Brighton & Hove City Council,http://statistics.data.gov.uk/id/local-authority/00ML,Education Services,BVAEDU,Ed - Secondary Ed,EJE,Direct Employees,A,Salaries,AA,04/01/2012,PAY00442204,558.45,Revenue,Carlisle Staffing Plc
Brighton & Hove City Council,http://statistics.data.gov.uk/id/local-authority/00ML,Education Services,BVAEDU,Ed - Secondary Schools,EJJ,Direct Employees,A,Salaries,AA,04/01/2012,PAY00442204,1132.27,Revenue,Carlisle Staffing Plc
Brighton & Hove City Council,http://statistics.data.gov.uk/id/local-authority/00ML,Education Services,BVAEDU,Ed - Special Ed,EKE,Direct Employees,A,Salaries,AA,04/01/2012,PAY00442204,238.67,Revenue,Carlisle Staffing Plc
Brighton & Hove City Council,http://statistics.data.gov.uk/id/local-authority/00ML,Environment and Regulatory Ser,BVAERS,Cem Crem and Mortuary Services,CCM,Direct Employees,A,Salaries,AA,04/01/2012,PAY00442204,10.50,Revenue,Carlisle Staffing Plc
Brighton & Hove City Council,http://statistics.data.gov.uk/id/local-authority/00ML,Environment and Regulatory Ser,BVAERS,Environmental Health,EVH,Direct Employees,A,Salaries,AA,04/01/2012,PAY00442204,7.25,Revenue,Carlisle Staffing Plc
Brighton & Hove City Council,http://statistics.data.gov.uk/id/local-authority/00ML,Environment and Regulatory Ser,BVAERS,Management Services (DEC),MGT,Direct Employees,A,Salaries,AA,04/01/2012,PAY00442204,34.00,Revenue,Carlisle Staffing Plc
Brighton & Hove City Council,http://statistics.data.gov.uk/id/local-authority/00ML,Environment and Regulatory Ser,BVAERS,Street Cleansing,CLE,Direct Employees,A,Salaries,AA,04/01/2012,PAY00442204,1481.94,Revenue,Carlisle Staffing Plc
Brighton & Hove City Council,http://statistics.data.gov.uk/id/local-authority/00ML,Environment and Regulatory Ser,BVAERS,Waste Management,WMT,Direct Employees,A,Salaries,AA,04/01/2012,PAY00442204,6512.16,Revenue,Carlisle Staffing Plc
Brighton & Hove City Council,http://statistics.data.gov.uk/id/local-authority/00ML,Highways and Transportation,BVAHRT,Highways and Roads - Mntnce,HRM,Direct Employees,A,Salaries,AA,04/01/2012,PAY00442204,333.68,Revenue,Carlisle Staffing Plc
Brighton & Hove City Council,http://statistics.data.gov.uk/id/local-authority/00ML,Highways and Transportation,BVAHRT,Parking Services,PRK,Direct Employees,A,Salaries,AA,04/01/2012,PAY00442204,9.25,Revenue,Carlisle Staffing Plc
Brighton & Hove City Council,http://statistics.data.gov.uk/id/local-authority/00ML,Highways and Transportation,BVAHRT,Transport plan policy strategy,TPP,Direct Employees,A,Salaries,AA,04/01/2012,PAY00442204,757.98,Revenue,Carlisle Staffing Plc
Brighton & Hove City Council,http://statistics.data.gov.uk/id/local-authority/00ML,Housing Services General Fund,BVAHOG,Homelessness,HML,Direct Employees,A,Salaries,AA,04/01/2012,PAY00442204,4404.13,Revenue,Carlisle Staffing Plc
Brighton & Hove City Council,http://statistics.data.gov.uk/id/local-authority/00ML,Housing Services General Fund,BVAHOG,Homelessness,HML,Direct Employees,A,Wages,AB,04/01/2012,PAY00442204,318.30,Revenue,Carlisle Staffing Plc
Brighton & Hove City Council,http://statistics.data.gov.uk/id/local-authority/00ML,Housing Services General Fund,BVAHOG,Hsing Benefits,HGB,Direct Employees,A,Salaries,AA,04/01/2012,PAY00442204,27.57,Revenue,Carlisle Staffing Plc
Brighton & Hove City Council,http://statistics.data.gov.uk/id/local-authority/00ML,Housing Services General Fund,BVAHOG,Hsing Welfare,HGW,Direct Employees,A,Salaries,AA,04/01/2012,PAY00442204,1893.38,Revenue,Carlisle Staffing Plc
Brighton & Hove City Council,http://statistics.data.gov.uk/id/local-authority/00ML,Housing Services Revnue Acc,BVAHOU,Hsing Management - HRA,HGM,Direct Employees,A,Salaries,AA,04/01/2012,PAY00442204,8588.88,Revenue,Carlisle Staffing Plc
Brighton & Hove City Council,http://statistics.data.gov.uk/id/local-authority/00ML,Non SERCOP,BVANON,Cap - Education Services,4ED,Plant Machinery n Equipment,PE2,Level not required,NR5025,04/01/2012,PAY00442204,343.20,Capital,Carlisle Staffing Plc
Brighton & Hove City Council,http://statistics.data.gov.uk/id/local-authority/00ML,Non SERCOP,BVANON,Cap - Housing Services - GF,4HG,Plant Machinery n Equipment,PE2,Level not required,NR5025,04/01/2012,PAY00442204,373.66,Capital,Carlisle Staffing Plc
Brighton & Hove City Council,http://statistics.data.gov.uk/id/local-authority/00ML,Non SERCOP,BVANON,Cap - Mgmnt & Support Services,4PT,Plant Machinery n Equipment,PE2,Level not required,NR5025,04/01/2012,PAY00442204,1424.76,Capital,Carlisle Staffing Plc
Brighton & Hove City Council,http://statistics.data.gov.uk/id/local-authority/00ML,Planning Services,BVAPLA,Economic Development,ECD,Direct Employees,A,Salaries,AA,04/01/2012,PAY00442204,724.41,Revenue,Carlisle Staffing Plc
Brighton & Hove City Council,http://statistics.data.gov.uk/id/local-authority/00ML,Housing Services General Fund,BVAHOG,Homelessness,HML,Premises Related,C,Rents Payable,CC,04/01/2012,PAY00442209,11360.00,Revenue,W P Properties Ltd
Brighton & Hove City Council,http://statistics.data.gov.uk/id/local-authority/00ML,Housing Services General Fund,BVAHOG,Homelessness,HML,Premises Related,C,Rents Payable,CC,04/01/2012,PAY00442210,1125.00,Revenue,Payment to Individual
Brighton & Hove City Council,http://statistics.data.gov.uk/id/local-authority/00ML,Adult Social Care,BVASOC,S Svcs - Other Adult Services,ADT,Indirect Employees,B,Training,BM,04/01/2012,PAY00442212,650.00,Revenue,a.i.d Training & Operations Ltd
Brighton & Hove City Council,http://statistics.data.gov.uk/id/local-authority/00ML,Housing Services General Fund,BVAHOG,Homelessness,HML,Premises Related,C,Rents Payable,CC,04/01/2012,PAY00442214,725.00,Revenue,Payment to Individual
Brighton & Hove City Council,http://statistics.data.gov.uk/id/local-authority/00ML,Children�s Social Care,BVACSC,Child Srvcs - Fostering,FLF,Third Party Payments,F,Other Establishments,FH,04/01/2012,PAY00442216,20671.10,Revenue,Integrated Care (Fostering) Ltd
Brighton & Hove City Council,http://statistics.data.gov.uk/id/local-authority/00ML,Adult Social Care,BVASOC,S Svcs - Older People Svcs,PPL,Third Party Payments,F,Other Establishments,FH,04/01/2012,PAY00442219,897.20,Revenue,Birchgrove Healthcare (Sussex) Ltd
Brighton & Hove City Council,http://statistics.data.gov.uk/id/local-authority/00ML,Housing Services General Fund,BVAHOG,Homelessness,HML,Premises Related,C,Cleaning n Domestic Supps,CH,04/01/2012,PAY00442222,712.99,Revenue,Tim Jordan Grounds Maintenance Ltd
Brighton & Hove City Council,http://statistics.data.gov.uk/id/local-authority/00ML,Housing Services General Fund,BVAHOG,Homelessness,HML,Premises Related,C,Repair Maint n Alterations,CA,04/01/2012,PAY00442222,12564.86,Revenue,Tim Jordan Grounds Maintenance Ltd
Brighton & Hove City Council,http://statistics.data.gov.uk/id/local-authority/00ML,Housing Services General Fund,BVAHOG,Homelessness,HML,Supplies and Services,E,Miscellaneous Expenses,EM,04/01/2012,PAY00442222,1244.18,Revenue,Tim Jordan Grounds Maintenance Ltd
Brighton & Hove City Council,http://statistics.data.gov.uk/id/local-authority/00ML,Planning Services,BVAPLA,Economic Development,ECD,Premises Related,C,Repair Maint n Alterations,CA,04/01/2012,PAY00442222,65.00,Revenue,Tim Jordan Grounds Maintenance Ltd
Brighton & Hove City Council,http://statistics.data.gov.uk/id/local-authority/00ML,Central Services To The Public,BVACEN,Support Services (SSC),PPT,Indirect Employees,B,Training,BM,04/01/2012,PAY00442223,325.00,Revenue,Kudos Hospitality Ltd
Brighton & Hove City Council,http://statistics.data.gov.uk/id/local-authority/00ML,Central Services To The Public,BVACEN,Support Services (SSC),PPT,Supplies and Services,E,Miscellaneous Expenses,EM,04/01/2012,PAY00442223,26.00,Revenue,Kudos Hospitality Ltd
Brighton & Hove City Council,http://statistics.data.gov.uk/id/local-authority/00ML,Cultural and Related Services,BVACUL,Culture & Heritage,CHG,Supplies and Services,E,Catering,EB,04/01/2012,PAY00442223,40.88,Revenue,Kudos Hospitality Ltd
Brighton & Hove City Council,http://statistics.data.gov.uk/id/local-authority/00ML,Cultural and Related Services,BVACUL,Culture & Heritage,CHG,Supplies and Services,E,Miscellaneous Expenses,EM,04/01/2012,PAY00442223,68.16,Revenue,Kudos Hospitality Ltd
Brighton & Hove City Council,http://statistics.data.gov.uk/id/local-authority/00ML,Children�s Social Care,BVACSC,Child Srvcs - Yth Offender Tm,FYY,Supplies and Services,E,Equip't Furniture n Materials,EA,04/01/2012,PAY00442226,7212.00,Revenue,Audioactive 2
Brighton & Hove City Council,http://statistics.data.gov.uk/id/local-authority/00ML,Housing Services General Fund,BVAHOG,Homelessness,HML,Premises Related,C,Rents Payable,CC,04/01/2012,PAY00442228,900.00,Revenue,Avon Estates (London) Ltd
Brighton & Hove City Council,http://statistics.data.gov.uk/id/local-authority/00ML,Central Services To The Public,BVACEN,Support Services (SSC),PPT,Supplies and Services,E,Miscellaneous Expenses,EM,04/01/2012,PAY00442229,3000.00,Revenue,AWCFA Limited
Brighton & Hove City Council,http://statistics.data.gov.uk/id/local-authority/00ML,Adult Social Care,BVASOC,S Svcs - Older People Svcs,PPL,Third Party Payments,F,Other Establishments,FH,04/01/2012,PAY00442230,1332.00,Revenue,Glentworth Nursing Home
Brighton & Hove City Council,http://statistics.data.gov.uk/id/local-authority/00ML,Cultural and Related Services,BVACUL,Culture & Heritage,CHG,Supplies and Services,E,Equip't Furniture n Materials,EA,04/01/2012,PAY00442233,3624.00,Revenue,Entertainment Medical Srv
Brighton & Hove City Council,http://statistics.data.gov.uk/id/local-authority/00ML,Non SERCOP,BVANON,Cap - Education Services,4ED,New Construction n Conversion,PB,Level not required,NR5026,04/01/2012,PAY00442234,18829.00,Capital,Portakabin Limited
Brighton & Hove City Council,http://statistics.data.gov.uk/id/local-authority/00ML,Children�s Social Care,BVACSC,Child Srvcs - Asylum Seekers,FAY,Transfer Payments,G,Other Transfer Payments,GD,04/01/2012,PAY00442235,1941.18,Revenue,Pathways to Independence Housing Ltd
Brighton & Hove City Council,http://statistics.data.gov.uk/id/local-authority/00ML,Children�s Social Care,BVACSC,Child Srvcs - Leaving Care,FAL,Transfer Payments,G,Other Transfer Payments,GD,04/01/2012,PAY00442235,237.45,Revenue,Pathways to Independence Housing Ltd
Brighton & Hove City Council,http://statistics.data.gov.uk/id/local-authority/00ML,Central Services To The Public,BVACEN,Support Services (SSC),PPT,Premises Related,C,Repair Maint n Alterations,CA,04/01/2012,PAY00442236,2400.00,Revenue,N L C Nova Lift Company Limited
Brighton & Hove City Council,http://statistics.data.gov.uk/id/local-authority/00ML,Non SERCOP,BVANON,Cap - Social Services,4RV,New Construction n Conversion,PB,Level not required,NR5026,04/01/2012,PAY00442237,1066.47,Capital,Tectonic Digital Systems Ltd
Brighton & Hove City Council,http://statistics.data.gov.uk/id/local-authority/00ML,Adult Social Care,BVASOC,S Svcs - Learning Disability,LDY,Customer n Client Receipts,M,Fees n Charges,MB,04/01/2012,PAY00442238,-295.00,Revenue,The Disabilities Trust
Brighton & Hove City Council,http://statistics.data.gov.uk/id/local-authority/00ML,Adult Social Care,BVASOC,S Svcs - Learning Disability,LDY,Third Party Payments,F,Other Establishments,FH,04/01/2012,PAY00442238,3740.00,Revenue,The Disabilities Trust
Brighton & Hove City Council,http://statistics.data.gov.uk/id/local-authority/00ML,Adult Social Care,BVASOC,S Svcs - Mental Health,MHT,Third Party Payments,F,Other Establishments,FH,04/01/2012,PAY00442239,26.20,Revenue,Agincare UK Ltd
Brighton & Hove City Council,http://statistics.data.gov.uk/id/local-authority/00ML,Adult Social Care,BVASOC,S Svcs - Older People Svcs,PPL,Customer n Client Receipts,M,Fees n Charges,MB,04/01/2012,PAY00442239,-2847.00,Revenue,Agincare UK Ltd
Brighton & Hove City Council,http://statistics.data.gov.uk/id/local-authority/00ML,Adult Social Care,BVASOC,S Svcs - Older People Svcs,PPL,Third Party Payments,F,Other Establishments,FH,04/01/2012,PAY00442239,22721.81,Revenue,Agincare UK Ltd
Brighton & Hove City Council,http://statistics.data.gov.uk/id/local-authority/00ML,Adult Social Care,BVASOC,S Svcs - Other Adult Services,ADT,Third Party Payments,F,Other Establishments,FH,04/01/2012,PAY00442239,26.20,Revenue,Agincare UK Ltd
Brighton & Hove City Council,http://statistics.data.gov.uk/id/local-authority/00ML,Adult Social Care,BVASOC,S Svcs - Physical Disability,PDY,Customer n Client Receipts,M,Fees n Charges,MB,04/01/2012,PAY00442239,-42.00,Revenue,Agincare UK Ltd
Brighton & Hove City Council,http://statistics.data.gov.uk/id/local-authority/00ML,Adult Social Care,BVASOC,S Svcs - Physical Disability,PDY,Third Party Payments,F,Other Establishments,FH,04/01/2012,PAY00442239,669.20,Revenue,Agincare UK Ltd
Brighton & Hove City Council,http://statistics.data.gov.uk/id/local-authority/00ML,Housing Services General Fund,BVAHOG,Homelessness,HML,Premises Related,C,Rents Payable,CC,04/01/2012,PAY00442240,24399.69,Revenue,West Pier Services Limited
Brighton & Hove City Council,http://statistics.data.gov.uk/id/local-authority/00ML,Housing Services General Fund,BVAHOG,Homelessness,HML,Premises Related,C,Rents Payable,CC,04/01/2012,PAY00442241,10321.67,Revenue,Adelphi Court Services Limited
Brighton & Hove City Council,http://statistics.data.gov.uk/id/local-authority/00ML,Non SERCOP,BVANON,Cap - Social Services,4RV,New Construction n Conversion,PB,Level not required,NR5026,04/01/2012,PAY00442244,3500.00,Capital,Lee Sullivan Contract Flooring Limited
Brighton & Hove City Council,http://statistics.data.gov.uk/id/local-authority/00ML,Adult Social Care,BVASOC,S Svcs - Physical Disability,PDY,Supplies and Services,E,Equip't Furniture n Materials,EA,04/01/2012,PAY00442245,1181.00,Revenue,Clearwell Mobility Ltd
Brighton & Hove City Council,http://statistics.data.gov.uk/id/local-authority/00ML,Adult Social Care,BVASOC,S Svcs - Older People Svcs,PPL,Supplies and Services,E,Miscellaneous Expenses,EM,04/01/2012,PAY00442246,542.00,Revenue,Posture People Ltd
Brighton & Hove City Council,http://statistics.data.gov.uk/id/local-authority/00ML,Central Services To The Public,BVACEN,Support Services (SSC),PPT,Indirect Employees,B,Training,BM,04/01/2012,PAY00442248,1650.00,Revenue,Payment to Individual
Brighton & Hove City Council,http://statistics.data.gov.uk/id/local-authority/00ML,Adult Social Care,BVASOC,S Svcs - Other Adult Services,ADT,Indirect Employees,B,Training,BM,04/01/2012,PAY00442251,2835.00,Revenue,Opus Pharmacy Services Ltd
Brighton & Hove City Council,http://statistics.data.gov.uk/id/local-authority/00ML,Housing Services General Fund,BVAHOG,Homelessness,HML,Premises Related,C,Rents Payable,CC,04/01/2012,PAY00442253,1900.00,Revenue,Payment to Individual
Brighton & Hove City Council,http://statistics.data.gov.uk/id/local-authority/00ML,Adult Social Care,BVASOC,S Svcs - Learning Disability,LDY,Premises Related,C,Rents Payable,CC,04/01/2012,PAY00442254,875.00,Revenue,Payment to Individual
Brighton & Hove City Council,http://statistics.data.gov.uk/id/local-authority/00ML,Cultural and Related Services,BVACUL,Culture & Heritage,CHG,Supplies and Services,E,Communications n Computing,EH,04/01/2012,PAY00442258,2726.62,Revenue,Cosnetics Ltd
Brighton & Hove City Council,http://statistics.data.gov.uk/id/local-authority/00ML,Adult Social Care,BVASOC,S Svcs - Learning Disability,LDY,Third Party Payments,F,Other Establishments,FH,04/01/2012,PAY00442259,705.47,Revenue,The Aldingbourne Trust
Brighton & Hove City Council,http://statistics.data.gov.uk/id/local-authority/00ML,Housing Services General Fund,BVAHOG,Homelessness,HML,Premises Related,C,Repair Maint n Alterations,CA,04/01/2012,PAY00442260,549.94,Revenue,Packham Construction
Brighton & Hove City Council,http://statistics.data.gov.uk/id/local-authority/00ML,Environment and Regulatory Ser,BVAERS,Waste Management,WMT,Supplies and Services,E,Equip't Furniture n Materials,EA,04/01/2012,PAY00442261,3020.00,Revenue,Spider UK Ltd
Brighton & Hove City Council,http://statistics.data.gov.uk/id/local-authority/00ML,Housing Services General Fund,BVAHOG,Homelessness,HML,Premises Related,C,Rents Payable,CC,04/01/2012,PAY00442265,775.00,Revenue,Marchmont Estates Ltd
Brighton & Hove City Council,http://statistics.data.gov.uk/id/local-authority/00ML,Housing Services General Fund,BVAHOG,Homelessness,HML,Premises Related,C,Rents Payable,CC,04/01/2012,PAY00442266,775.00,Revenue,Payment to Individual
Brighton & Hove City Council,http://statistics.data.gov.uk/id/local-authority/00ML,Adult Social Care,BVASOC,S Svcs - Older People Svcs,PPL,Customer n Client Receipts,M,Fees n Charges,MB,04/01/2012,PAY00442267,-531.24,Revenue,Springfield Nursing Home (Teaching)
Brighton & Hove City Council,http://statistics.data.gov.uk/id/local-authority/00ML,Adult Social Care,BVASOC,S Svcs - Older People Svcs,PPL,Third Party Payments,F,Other Establishments,FH,04/01/2012,PAY00442267,2148.96,Revenue,Springfield Nursing Home (Teaching)
Brighton & Hove City Council,http://statistics.data.gov.uk/id/local-authority/00ML,Housing Services General Fund,BVAHOG,Homelessness,HML,Premises Related,C,Rents Payable,CC,04/01/2012,PAY00442269,550.00,Revenue,Payment to Individual
Brighton & Hove City Council,http://statistics.data.gov.uk/id/local-authority/00ML,Housing Services General Fund,BVAHOG,Homelessness,HML,Premises Related,C,Rents Payable,CC,04/01/2012,PAY00442272,600.00,Revenue,Home & Coastal Developments Limited
Brighton & Hove City Council,http://statistics.data.gov.uk/id/local-authority/00ML,Children�s Social Care,BVACSC,Child Srvcs - Residential Svcs,FLR,Third Party Payments,F,Other Establishments,FH,04/01/2012,PAY00442273,44200.00,Revenue,Springfield Road Ltd
Brighton & Hove City Council,http://statistics.data.gov.uk/id/local-authority/00ML,Central Services To The Public,BVACEN,Support Services (SSC),PPT,Indirect Employees,B,Training,BM,04/01/2012,PAY00442275,2770.00,Revenue,AKD Training Solutions Ltd
Brighton & Hove City Council,http://statistics.data.gov.uk/id/local-authority/00ML,Children�s Social Care,BVACSC,Child Srvcs - Residential Svcs,FLR,Third Party Payments,F,Other Establishments,FH,04/01/2012,PAY00442276,14000.00,Revenue,ARC Adventure (Sussex) Ltd
Brighton & Hove City Council,http://statistics.data.gov.uk/id/local-authority/00ML,Environment and Regulatory Ser,BVAERS,Management Services (DEC),MGT,Supplies and Services,E,Equip't Furniture n Materials,EA,04/01/2012,PAY00442282,1088.75,Revenue,BOC Ltd
Brighton & Hove City Council,http://statistics.data.gov.uk/id/local-authority/00ML,Adult Social Care,BVASOC,S Svcs - Older People Svcs,PPL,Supplies and Services,E,Catering,EB,04/01/2012,PAY00442283,1736.81,Revenue,3663 BFS Group Ltd
Brighton & Hove City Council,http://statistics.data.gov.uk/id/local-authority/00ML,Housing Services General Fund,BVAHOG,Homelessness,HML,Premises Related,C,Cleaning n Domestic Supps,CH,04/01/2012,PAY00442283,3.97,Revenue,3663 BFS Group Ltd
Brighton & Hove City Council,http://statistics.data.gov.uk/id/local-authority/00ML,Housing Services General Fund,BVAHOG,Homelessness,HML,Supplies and Services,E,Catering,EB,04/01/2012,PAY00442283,604.20,Revenue,3663 BFS Group Ltd
Brighton & Hove City Council,http://statistics.data.gov.uk/id/local-authority/00ML,Central Services To The Public,BVACEN,Reg - Birth Death and Marriage,RBD,Transport Related,D,Public Transport,DD,04/01/2012,PAY00442284,72.20,Revenue,Brighton & Hove Streamline Taxis Ltd
Brighton & Hove City Council,http://statistics.data.gov.uk/id/local-authority/00ML,Central Services To The Public,BVACEN,Support Services (SSC),PPT,Transport Related,D,Public Transport,DD,04/01/2012,PAY00442284,33.66,Revenue,Brighton & Hove Streamline Taxis Ltd
Brighton & Hove City Council,http://statistics.data.gov.uk/id/local-authority/00ML,Cultural and Related Services,BVACUL,Culture & Heritage,CHG,Transport Related,D,Public Transport,DD,04/01/2012,PAY00442284,265.98,Revenue,Brighton & Hove Streamline Taxis Ltd
Brighton & Hove City Council,http://statistics.data.gov.uk/id/local-authority/00ML,Highways and Transportation,BVAHRT,Parking Services,PRK,Transport Related,D,Public Transport,DD,04/01/2012,PAY00442284,727.70,Revenue,Brighton & Hove Streamline Taxis Ltd
Brighton & Hove City Council,http://statistics.data.gov.uk/id/local-authority/00ML,Cultural and Related Services,BVACUL,Culture & Heritage,CHG,Supplies and Services,E,Miscellaneous Expenses,EM,04/01/2012,PAY00442288,2400.00,Revenue,Conference & Travel Publications Ltd
Brighton & Hove City Council,http://statistics.data.gov.uk/id/local-authority/00ML,Planning Services,BVAPLA,Planning policy,PLP,Supplies and Services,E,Services,EF,04/01/2012,PAY00442289,9187.50,Revenue,Cluttons
Brighton & Hove City Council,http://statistics.data.gov.uk/id/local-authority/00ML,Cultural and Related Services,BVACUL,Open Spaces,PEN,Third Party Payments,F,Private Contractors,FJ,04/01/2012,PAY00442291,693.00,Revenue,Connick Tree Care Brighton Ltd
Brighton & Hove City Council,http://statistics.data.gov.uk/id/local-authority/00ML,Housing Services General Fund,BVAHOG,Homelessness,HML,Premises Related,C,Rents Payable,CC,04/01/2012,PAY00442293,900.00,Revenue,Payment to Individual
Brighton & Hove City Council,http://statistics.data.gov.uk/id/local-authority/00ML,Housing Services General Fund,BVAHOG,Homelessness,HML,Premises Related,C,Rents Payable,CC,04/01/2012,PAY00442294,775.00,Revenue,Payment to Individual
Brighton & Hove City Council,http://statistics.data.gov.uk/id/local-authority/00ML,Children�s Social Care,BVACSC,Child Srvcs - Other Fam Supp,FFX,Transfer Payments,G,Other Transfer Payments,GD,04/01/2012,PAY00442296,651.20,Revenue,Fitzhugh Gates Solicitors
Brighton & Hove City Council,http://statistics.data.gov.uk/id/local-authority/00ML,Adult Social Care,BVASOC,S Svcs - Supported Employment,EMP,Premises Related,C,Repair Maint n Alterations,CA,04/01/2012,PAY00442298,49.50,Revenue,Apogee Corporation Limited
Brighton & Hove City Council,http://statistics.data.gov.uk/id/local-authority/00ML,Adult Social Care,BVASOC,S Svcs - Supported Employment,EMP,Supplies and Services,E,Equip't Furniture n Materials,EA,04/01/2012,PAY00442298,437.14,Revenue,Apogee Corporation Limited
Brighton & Hove City Council,http://statistics.data.gov.uk/id/local-authority/00ML,Central Services To The Public,BVACEN,Support Services (SSC),PPT,Premises Related,C,Repair Maint n Alterations,CA,04/01/2012,PAY00442302,500.00,Revenue,Gyoury Self Partnership
Brighton & Hove City Council,http://statistics.data.gov.uk/id/local-authority/00ML,Other Corporate Items ,BVAOEX,Non service costs,NVC,Third Party Payments,F,Other Agencies,FL,04/01/2012,PAY00442303,660.80,Revenue,Hanover Crescent Enclosure Committee
Brighton & Hove City Council,http://statistics.data.gov.uk/id/local-authority/00ML,Highways and Transportation,BVAHRT,Parking Services,PRK,Supplies and Services,E,Print Stat & Gen Office Exps,ED,04/01/2012,PAY00442304,1170.00,Revenue,Bemrose Booth Paragon Ltd
Brighton & Hove City Council,http://statistics.data.gov.uk/id/local-authority/00ML,Adult Social Care,BVASOC,S Svcs - Learning Disability,LDY,Premises Related,C,Repair Maint n Alterations,CA,04/01/2012,PAY00442305,378.66,Revenue,HOP Consult Ltd TA Hemsley Orrell P/ship
Brighton & Hove City Council,http://statistics.data.gov.uk/id/local-authority/00ML,Central Services To The Public,BVACEN,Support Services (SSC),PPT,Supplies and Services,E,Services,EF,04/01/2012,PAY00442305,2641.50,Revenue,HOP Consult Ltd TA Hemsley Orrell P/ship
Brighton & Hove City Council,http://statistics.data.gov.uk/id/local-authority/00ML,Highways and Transportation,BVAHRT,Parking Services,PRK,Premises Related,C,Repair Maint n Alterations,CA,04/01/2012,PAY00442306,4194.00,Revenue,Hi Way Services Ltd
Brighton & Hove City Council,http://statistics.data.gov.uk/id/local-authority/00ML,Central Services To The Public,BVACEN,Support Services (SSC),PPT,Supplies and Services,E,Print Stat & Gen Office Exps,ED,04/01/2012,PAY00442308,570.00,Revenue,CIPFA Business Ltd
Brighton & Hove City Council,http://statistics.data.gov.uk/id/local-authority/00ML,Non SERCOP,BVANON,Cap - Education Services,4ED,New Construction n Conversion,PB,Level not required,NR5026,04/01/2012,PAY00442309,798.00,Capital,J Davies Building Ltd
Brighton & Hove City Council,http://statistics.data.gov.uk/id/local-authority/00ML,Adult Social Care,BVASOC,S Svcs - Learning Disability,LDY,Supplies and Services,E,Miscellaneous Expenses,EM,04/01/2012,PAY00442311,44.54,Revenue,Kent County Council (KCS)
Brighton & Hove City Council,http://statistics.data.gov.uk/id/local-authority/00ML,Education Services,BVAEDU,Ed - EY - Central,EAE,Supplies and Services,E,Equip't Furniture n Materials,EA,04/01/2012,PAY00442311,12.82,Revenue,Kent County Council (KCS)
Brighton & Hove City Council,http://statistics.data.gov.uk/id/local-authority/00ML,Environment and Regulatory Ser,BVAERS,Management Services (DEC),MGT,Transport Related,D,Direct Transport Costs,DA,04/01/2012,PAY00442311,28539.45,Revenue,Kent County Council (KCS)
Brighton & Hove City Council,http://statistics.data.gov.uk/id/local-authority/00ML,Non SERCOP,BVANON,Cap - Education Services,4ED,Plant Machinery n Equipment,PE2,Level not required,NR5025,04/01/2012,PAY00442311,680.83,Capital,Kent County Council (KCS)
Brighton & Hove City Council,http://statistics.data.gov.uk/id/local-authority/00ML,Non SERCOP,BVANON,Trusts,TRT,Supplies and Services,E,Miscellaneous Expenses,EM,04/01/2012,PAY00442311,73.07,Revenue,Kent County Council (KCS)
Brighton & Hove City Council,http://statistics.data.gov.uk/id/local-authority/00ML,Other Corporate Items ,BVAOEX,Non service costs,NVC,Third Party Payments,F,Other Agencies,FL,04/01/2012,PAY00442315,1510.00,Revenue,Marine Square Enclosure Committee
Brighton & Hove City Council,http://statistics.data.gov.uk/id/local-authority/00ML,Cultural and Related Services,BVACUL,Highways and Roads - Mntnce,HRM,Premises Related,C,Repair Maint n Alterations,CA,04/01/2012,PAY00442316,12.94,Revenue,M L Banfield & Sons Ltd
Brighton & Hove City Council,http://statistics.data.gov.uk/id/local-authority/00ML,Cultural and Related Services,BVACUL,Management Services (DEC),MGT,Supplies and Services,E,Equip't Furniture n Materials,EA,04/01/2012,PAY00442316,423.54,Revenue,M L Banfield & Sons Ltd
Brighton & Hove City Council,http://statistics.data.gov.uk/id/local-authority/00ML,Cultural and Related Services,BVACUL,Open Spaces,PEN,Supplies and Services,E,Equip't Furniture n Materials,EA,04/01/2012,PAY00442316,420.30,Revenue,M L Banfield & Sons Ltd
Brighton & Hove City Council,http://statistics.data.gov.uk/id/local-authority/00ML,Cultural and Related Services,BVACUL,Culture & Heritage,CHG,Supplies and Services,E,Miscellaneous Expenses,EM,04/01/2012,PAY00442318,2972.34,Revenue,Performing Right Society Ltd
Brighton & Hove City Council,http://statistics.data.gov.uk/id/local-authority/00ML,Central Services To The Public,BVACEN,Support Services (SSC),PPT,Supplies and Services,E,Equip't Furniture n Materials,EA,04/01/2012,PAY00442320,1101.81,Revenue,Pitney Bowes Ltd
Brighton & Hove City Council,http://statistics.data.gov.uk/id/local-authority/00ML,Cultural and Related Services,BVACUL,Management Services (DEC),MGT,Indirect Employees,B,Misc Employee Costs,BP,04/01/2012,PAY00442321,850.00,Revenue,Plumpton College
Brighton & Hove City Council,http://statistics.data.gov.uk/id/local-authority/00ML,Cultural and Related Services,BVACUL,Open Spaces,PEN,Supplies and Services,E,Equip't Furniture n Materials,EA,04/01/2012,PAY00442324,1070.00,Revenue,Rigby Taylor Ltd
Brighton & Hove City Council,http://statistics.data.gov.uk/id/local-authority/00ML,Other Corporate Items ,BVAOEX,Non service costs,NVC,Third Party Payments,F,Other Agencies,FL,04/01/2012,PAY00442326,550.00,Revenue,Royal Crescent Enclosure Committee
Brighton & Hove City Council,http://statistics.data.gov.uk/id/local-authority/00ML,Central Services To The Public,BVACEN,Support Services (SSC),PPT,Premises Related,C,Repair Maint n Alterations,CA,04/01/2012,PAY00442328,14129.00,Revenue,Securitel Service Ltd
Brighton & Hove City Council,http://statistics.data.gov.uk/id/local-authority/00ML,Housing Services Revnue Acc,BVAHOU,Hsing Management - HRA,HGM,Premises Related,C,Repair Maint n Alterations,CA,04/01/2012,PAY00442328,3938.00,Revenue,Securitel Service Ltd
Brighton & Hove City Council,http://statistics.data.gov.uk/id/local-authority/00ML,Adult Social Care,BVASOC,S Svcs - Physical Disability,PDY,Supplies and Services,E,Equip't Furniture n Materials,EA,04/01/2012,PAY00442329,784.14,Revenue,Southern Mobility Centres Ltd
Brighton & Hove City Council,http://statistics.data.gov.uk/id/local-authority/00ML,Adult Social Care,BVASOC,S Svcs - Physical Disability,PDY,Transfer Payments,G,Other Transfer Payments,GD,04/01/2012,PAY00442329,2895.23,Revenue,Southern Mobility Centres Ltd
Brighton & Hove City Council,http://statistics.data.gov.uk/id/local-authority/00ML,Education Services,BVAEDU,Ed - Ed Other - Other,ENF,Premises Related,C,Repair Maint n Alterations,CA,04/01/2012,PAY00442329,230.00,Revenue,Southern Mobility Centres Ltd
Brighton & Hove City Council,http://statistics.data.gov.uk/id/local-authority/00ML,Central Services To The Public,BVACEN,Support Services (SSC),PPT,Premises Related,C,Repair Maint n Alterations,CA,04/01/2012,PAY00442330,420.00,Revenue,Thomas Door & Window Controls Ltd
Brighton & Hove City Council,http://statistics.data.gov.uk/id/local-authority/00ML,Cultural and Related Services,BVACUL,Management Services (DEC),MGT,Supplies and Services,E,Equip't Furniture n Materials,EA,04/01/2012,PAY00442331,554.00,Revenue,South Coast Glazing (Peacehaven)
Brighton & Hove City Council,http://statistics.data.gov.uk/id/local-authority/00ML,Non SERCOP,BVANON,Cap - Other Env Services,4EV,New Construction n Conversion,PB,Level not required,NR5026,04/01/2012,PAY00442333,12335.00,Capital,T A Boxall & Co Ltd
Brighton & Hove City Council,http://statistics.data.gov.uk/id/local-authority/00ML,Non SERCOP,BVANON,Cap - Social Services,4RV,Plant Machinery n Equipment,PE2,Level not required,NR5025,04/01/2012,PAY00442334,4172.40,Capital,Tunstall Healthcare (UK) Ltd
Brighton & Hove City Council,http://statistics.data.gov.uk/id/local-authority/00ML,Adult Social Care,BVASOC,S Svcs - Learning Disability,LDY,Premises Related,C,Cleaning n Domestic Supps,CH,04/01/2012,PAY00442336,199.58,Revenue,Wightman & Parrish Ltd
Brighton & Hove City Council,http://statistics.data.gov.uk/id/local-authority/00ML,Adult Social Care,BVASOC,S Svcs - Mental Health,MHT,Premises Related,C,Cleaning n Domestic Supps,CH,04/01/2012,PAY00442336,162.39,Revenue,Wightman & Parrish Ltd
Brighton & Hove City Council,http://statistics.data.gov.uk/id/local-authority/00ML,Adult Social Care,BVASOC,S Svcs - Older People Svcs,PPL,Premises Related,C,Cleaning n Domestic Supps,CH,04/01/2012,PAY00442336,63.90,Revenue,Wightman & Parrish Ltd
Brighton & Hove City Council,http://statistics.data.gov.uk/id/local-authority/00ML,Children�s Social Care,BVACSC,Child Srvcs - Com & Scl Work,FCW,Supplies and Services,E,Equip't Furniture n Materials,EA,04/01/2012,PAY00442336,85.67,Revenue,Wightman & Parrish Ltd
Brighton & Hove City Council,http://statistics.data.gov.uk/id/local-authority/00ML,Children�s Social Care,BVACSC,Child Srvcs - Residential Svcs,FLR,Premises Related,C,Cleaning n Domestic Supps,CH,04/01/2012,PAY00442336,51.47,Revenue,Wightman & Parrish Ltd
Brighton & Hove City Council,http://statistics.data.gov.uk/id/local-authority/00ML,Cultural and Related Services,BVACUL,Library Service,LBR,Premises Related,C,Cleaning n Domestic Supps,CH,04/01/2012,PAY00442336,38.74,Revenue,Wightman & Parrish Ltd
Brighton & Hove City Council,http://statistics.data.gov.uk/id/local-authority/00ML,Non SERCOP,BVANON,Cap - Social Services,4RV,Plant Machinery n Equipment,PE2,Level not required,NR5025,04/01/2012,PAY00442336,13.21,Capital,Wightman & Parrish Ltd
Brighton & Hove City Council,http://statistics.data.gov.uk/id/local-authority/00ML,Adult Social Care,BVASOC,S Svcs - Older People Svcs,PPL,Third Party Payments,F,Other Establishments,FH,04/01/2012,PAY00442338,1387.20,Revenue,Whytecliffe Ltd T/A Arundel Park Lodge
Brighton & Hove City Council,http://statistics.data.gov.uk/id/local-authority/00ML,Adult Social Care,BVASOC,S Svcs - Older People Svcs,PPL,Customer n Client Receipts,M,Fees n Charges,MB,04/01/2012,PAY00442339,-330.00,Revenue,A TAD Ltd t/a Carewatch (Brighton & Hove)
Brighton & Hove City Council,http://statistics.data.gov.uk/id/local-authority/00ML,Adult Social Care,BVASOC,S Svcs - Older People Svcs,PPL,Third Party Payments,F,Other Establishments,FH,04/01/2012,PAY00442339,1612.79,Revenue,A TAD Ltd t/a Carewatch (Brighton & Hove)
Brighton & Hove City Council,http://statistics.data.gov.uk/id/local-authority/00ML,Adult Social Care,BVASOC,S Svcs - Learning Disability,LDY,Third Party Payments,F,Other Establishments,FH,04/01/2012,PAY00442340,45.62,Revenue,Enara Community Care
Brighton & Hove City Council,http://statistics.data.gov.uk/id/local-authority/00ML,Adult Social Care,BVASOC,S Svcs - Mental Health,MHT,Customer n Client Receipts,M,Fees n Charges,MB,04/01/2012,PAY00442340,-19.00,Revenue,Enara Community Care
Brighton & Hove City Council,http://statistics.data.gov.uk/id/local-authority/00ML,Adult Social Care,BVASOC,S Svcs - Mental Health,MHT,Third Party Payments,F,Other Establishments,FH,04/01/2012,PAY00442340,48.81,Revenue,Enara Community Care
Brighton & Hove City Council,http://statistics.data.gov.uk/id/local-authority/00ML,Adult Social Care,BVASOC,S Svcs - Older People Svcs,PPL,Customer n Client Receipts,M,Fees n Charges,MB,04/01/2012,PAY00442340,-2275.00,Revenue,Enara Community Care
Brighton & Hove City Council,http://statistics.data.gov.uk/id/local-authority/00ML,Adult Social Care,BVASOC,S Svcs - Older People Svcs,PPL,Third Party Payments,F,Other Establishments,FH,04/01/2012,PAY00442340,18172.41,Revenue,Enara Community Care
Brighton & Hove City Council,http://statistics.data.gov.uk/id/local-authority/00ML,Adult Social Care,BVASOC,S Svcs - Other Adult Services,ADT,Customer n Client Receipts,M,Fees n Charges,MB,04/01/2012,PAY00442340,-10.00,Revenue,Enara Community Care
Brighton & Hove City Council,http://statistics.data.gov.uk/id/local-authority/00ML,Adult Social Care,BVASOC,S Svcs - Other Adult Services,ADT,Third Party Payments,F,Other Establishments,FH,04/01/2012,PAY00442340,45.62,Revenue,Enara Community Care
Brighton & Hove City Council,http://statistics.data.gov.uk/id/local-authority/00ML,Adult Social Care,BVASOC,S Svcs - Physical Disability,PDY,Customer n Client Receipts,M,Fees n Charges,MB,04/01/2012,PAY00442340,-845.18,Revenue,Enara Community Care
Brighton & Hove City Council,http://statistics.data.gov.uk/id/local-authority/00ML,Adult Social Care,BVASOC,S Svcs - Physical Disability,PDY,Third Party Payments,F,Other Establishments,FH,04/01/2012,PAY00442340,4108.93,Revenue,Enara Community Care
Brighton & Hove City Council,http://statistics.data.gov.uk/id/local-authority/00ML,Adult Social Care,BVASOC,S Svcs - Older People Svcs,PPL,Third Party Payments,F,Other Establishments,FH,04/01/2012,PAY00442341,897.20,Revenue,Highbury House Nursing & Rest Home
Brighton & Hove City Council,http://statistics.data.gov.uk/id/local-authority/00ML,Children�s Social Care,BVACSC,Child Srvcs - Fostering,FLF,Third Party Payments,F,Other Establishments,FH,04/01/2012,PAY00442342,37354.60,Revenue,Integrated Services Programme
Brighton & Hove City Council,http://statistics.data.gov.uk/id/local-authority/00ML,Adult Social Care,BVASOC,S Svcs - Older People Svcs,PPL,Customer n Client Receipts,M,Fees n Charges,MB,04/01/2012,PAY00442343,-967.18,Revenue,Charles Lodge
Brighton & Hove City Council,http://statistics.data.gov.uk/id/local-authority/00ML,Adult Social Care,BVASOC,S Svcs - Older People Svcs,PPL,Third Party Payments,F,Other Establishments,FH,04/01/2012,PAY00442343,5689.29,Revenue,Charles Lodge
Brighton & Hove City Council,http://statistics.data.gov.uk/id/local-authority/00ML,Adult Social Care,BVASOC,S Svcs - Older People Svcs,PPL,Customer n Client Receipts,M,Fees n Charges,MB,04/01/2012,PAY00442344,-319.55,Revenue,Kathleens Lodge
Brighton & Hove City Council,http://statistics.data.gov.uk/id/local-authority/00ML,Adult Social Care,BVASOC,S Svcs - Older People Svcs,PPL,Third Party Payments,F,Other Establishments,FH,04/01/2012,PAY00442344,1018.18,Revenue,Kathleens Lodge
Brighton & Hove City Council,http://statistics.data.gov.uk/id/local-authority/00ML,Adult Social Care,BVASOC,S Svcs - Older People Svcs,PPL,Third Party Payments,F,Other Establishments,FH,04/01/2012,PAY00442348,679.80,Revenue,Regent House Nursing Home
Brighton & Hove City Council,http://statistics.data.gov.uk/id/local-authority/00ML,Adult Social Care,BVASOC,S Svcs - Older People Svcs,PPL,Third Party Payments,F,Other Establishments,FH,04/01/2012,PAY00442349,10828.97,Revenue,Rottingdean Nursing Home
Brighton & Hove City Council,http://statistics.data.gov.uk/id/local-authority/00ML,Adult Social Care,BVASOC,S Svcs - Older People Svcs,PPL,Supplies and Services,E,Miscellaneous Expenses,EM,04/01/2012,PAY00442350,12.00,Revenue,Gracewell Healthcare 2 Limited
Brighton & Hove City Council,http://statistics.data.gov.uk/id/local-authority/00ML,Adult Social Care,BVASOC,S Svcs - Older People Svcs,PPL,Third Party Payments,F,Other Establishments,FH,04/01/2012,PAY00442350,1984.20,Revenue,Gracewell Healthcare 2 Limited
Brighton & Hove City Council,http://statistics.data.gov.uk/id/local-authority/00ML,Adult Social Care,BVASOC,S Svcs - Learning Disability,LDY,Customer n Client Receipts,M,Fees n Charges,MB,04/01/2012,PAY00442351,-348.80,Revenue,SeeAbility
Brighton & Hove City Council,http://statistics.data.gov.uk/id/local-authority/00ML,Adult Social Care,BVASOC,S Svcs - Learning Disability,LDY,Third Party Payments,F,Other Establishments,FH,04/01/2012,PAY00442351,4720.00,Revenue,SeeAbility
Brighton & Hove City Council,http://statistics.data.gov.uk/id/local-authority/00ML,Adult Social Care,BVASOC,S Svcs - Older People Svcs,PPL,Customer n Client Receipts,M,Fees n Charges,MB,04/01/2012,PAY00442354,-734.88,Revenue,Sussex Housing & Care
Brighton & Hove City Council,http://statistics.data.gov.uk/id/local-authority/00ML,Adult Social Care,BVASOC,S Svcs - Older People Svcs,PPL,Third Party Payments,F,Other Establishments,FH,04/01/2012,PAY00442354,1716.00,Revenue,Sussex Housing & Care
Brighton & Hove City Council,http://statistics.data.gov.uk/id/local-authority/00ML,Adult Social Care,BVASOC,S Svcs - Older People Svcs,PPL,Third Party Payments,F,Other Establishments,FH,04/01/2012,PAY00442355,3614.69,Revenue,Victoria Nursing Homes Ltd
Brighton & Hove City Council,http://statistics.data.gov.uk/id/local-authority/00ML,Housing Services Revnue Acc,BVAHOU,Hsing Management - HRA,HGM,Supplies and Services,E,Equip't Furniture n Materials,EA,04/01/2012,PAY00442356,1137.50,Revenue,Yell Ltd
Brighton & Hove City Council,http://statistics.data.gov.uk/id/local-authority/00ML,Adult Social Care,BVASOC,S Svcs - Older People Svcs,PPL,Third Party Payments,F,Other Establishments,FH,04/01/2012,PAY00442357,897.20,Revenue,Royal Masonic Benevolent Inst
Brighton & Hove City Council,http://statistics.data.gov.uk/id/local-authority/00ML,Adult Social Care,BVASOC,S Svcs - Older People Svcs,PPL,Customer n Client Receipts,M,Fees n Charges,MB,04/01/2012,PAY00442358,-459.00,Revenue,Bywell Grange Care Home
Brighton & Hove City Council,http://statistics.data.gov.uk/id/local-authority/00ML,Adult Social Care,BVASOC,S Svcs - Older People Svcs,PPL,Third Party Payments,F,Other Establishments,FH,04/01/2012,PAY00442358,1680.00,Revenue,Bywell Grange Care Home
Brighton & Hove City Council,http://statistics.data.gov.uk/id/local-authority/00ML,Adult Social Care,BVASOC,S Svcs - Physical Disability,PDY,Supplies and Services,E,Communications n Computing,EH,04/01/2012,PAY00442359,17.00,Revenue,Morris & Alexander Ltd
Brighton & Hove City Council,http://statistics.data.gov.uk/id/local-authority/00ML,Adult Social Care,BVASOC,S Svcs - Physical Disability,PDY,Supplies and Services,E,Equip't Furniture n Materials,EA,04/01/2012,PAY00442359,580.40,Revenue,Morris & Alexander Ltd
Brighton & Hove City Council,http://statistics.data.gov.uk/id/local-authority/00ML,Adult Social Care,BVASOC,S Svcs - Physical Disability,PDY,Supplies and Services,E,Equip't Furniture n Materials,EA,04/01/2012,PAY00442361,860.00,Revenue,Sidhil Ltd
Brighton & Hove City Council,http://statistics.data.gov.uk/id/local-authority/00ML,Adult Social Care,BVASOC,S Svcs - Learning Disability,LDY,Third Party Payments,F,Other Establishments,FH,04/01/2012,PAY00442362,16220.04,Revenue,Aspirations Active
Brighton & Hove City Council,http://statistics.data.gov.uk/id/local-authority/00ML,Non SERCOP,BVANON,Cap - Education Services,4ED,Plant Machinery n Equipment,PE2,Level not required,NR5025,04/01/2012,PAY00442363,1778.00,Capital,Community Products (UK) Ltd
Brighton & Hove City Council,http://statistics.data.gov.uk/id/local-authority/00ML,Highways and Transportation,BVAHRT,Public transport,PTR,Supplies and Services,E,Miscellaneous Expenses,EM,04/01/2012,PAY00442364,11587.10,Revenue,Buckinghamshire County Council
Brighton & Hove City Council,http://statistics.data.gov.uk/id/local-authority/00ML,Highways and Transportation,BVAHRT,Highways and Roads - Mntnce,HRM,Supplies and Services,E,Highways,EN,04/01/2012,PAY00442367,1623.18,Revenue,Crystal Purchasing Ltd t/a Cleveland Potash Ltd
Brighton & Hove City Council,http://statistics.data.gov.uk/id/local-authority/00ML,Non SERCOP,BVANON,Cap - Education Services,4ED,New Construction n Conversion,PB,Level not required,NR5026,04/01/2012,PAY00442368,12524.98,Capital,Richard Soan Roof/Svs T/A Rivercrest Ltd
Brighton & Hove City Council,http://statistics.data.gov.uk/id/local-authority/00ML,Non SERCOP,BVANON,Cap - Other Env Services,4EV,New Construction n Conversion,PB,Level not required,NR5026,04/01/2012,PAY00442369,14091.81,Capital,John Farrington & Co Ltd
Brighton & Hove City Council,http://statistics.data.gov.uk/id/local-authority/00ML,Adult Social Care,BVASOC,S Svcs - Learning Disability,LDY,Transport Related,D,Direct Transport Costs,DA,04/01/2012,PAY00442370,590.28,Revenue,Colas Limited
Brighton & Hove City Council,http://statistics.data.gov.uk/id/local-authority/00ML,Adult Social Care,BVASOC,S Svcs - Older People Svcs,PPL,Transport Related,D,Direct Transport Costs,DA,04/01/2012,PAY00442370,1695.84,Revenue,Colas Limited
Brighton & Hove City Council,http://statistics.data.gov.uk/id/local-authority/00ML,Central Services To The Public,BVACEN,Support Services (SSC),PPT,Transport Related,D,Direct Transport Costs,DA,04/01/2012,PAY00442370,813.35,Revenue,Colas Limited
Brighton & Hove City Council,http://statistics.data.gov.uk/id/local-authority/00ML,Cultural and Related Services,BVACUL,Ed - Ed Other - Other,ENF,Transport Related,D,Direct Transport Costs,DA,04/01/2012,PAY00442370,250.00,Revenue,Colas Limited
Brighton & Hove City Council,http://statistics.data.gov.uk/id/local-authority/00ML,Environment and Regulatory Ser,BVAERS,Management Services (DEC),MGT,Transport Related,D,Direct Transport Costs,DA,04/01/2012,PAY00442370,47.00,Revenue,Colas Limited
Brighton & Hove City Council,http://statistics.data.gov.uk/id/local-authority/00ML,Highways and Transportation,BVAHRT,Traffic Mgmnt and Road Safety,TMR,Premises Related,C,Repair Maint n Alterations,CA,04/01/2012,PAY00442370,2680.07,Revenue,Colas Limited
Brighton & Hove City Council,http://statistics.data.gov.uk/id/local-authority/00ML,Highways and Transportation,BVAHRT,Highways and Roads - Mntnce,HRM,Premises Related,C,Repair Maint n Alterations,CA,04/01/2012,PAY00442371,7260.19,Revenue,Edburton Contractors Ltd
Brighton & Hove City Council,http://statistics.data.gov.uk/id/local-authority/00ML,Non SERCOP,BVANON,Cap - Transport,4TR,New Construction n Conversion,PB,Level not required,NR5026,04/01/2012,PAY00442371,1854.96,Capital,Edburton Contractors Ltd
Brighton & Hove City Council,http://statistics.data.gov.uk/id/local-authority/00ML,Non SERCOP,BVANON,Cap - Social Services,4RV,New Construction n Conversion,PB,Level not required,NR5026,04/01/2012,PAY00442372,5096.10,Capital,P H Beck Ltd
Brighton & Hove City Council,http://statistics.data.gov.uk/id/local-authority/00ML,Planning Services,BVAPLA,Economic Development,ECD,Premises Related,C,Repair Maint n Alterations,CA,04/01/2012,PAY00442372,125.60,Revenue,P H Beck Ltd
Brighton & Hove City Council,http://statistics.data.gov.uk/id/local-authority/00ML,Highways and Transportation,BVAHRT,Highways and Roads - Mntnce,HRM,Premises Related,C,Repair Maint n Alterations,CA,04/01/2012,PAY00442373,8100.00,Revenue,R J Dance (Contractors) Ltd
Brighton & Hove City Council,http://statistics.data.gov.uk/id/local-authority/00ML,Highways and Transportation,BVAHRT,Highways and Roads - Mntnce,HRM,Transport Related,D,Contract Hire n Operating Leas,DB,04/01/2012,PAY00442373,4500.00,Revenue,R J Dance (Contractors) Ltd
Brighton & Hove City Council,http://statistics.data.gov.uk/id/local-authority/00ML,Central Services To The Public,BVACEN,Support Services (SSC),PPT,Premises Related,C,Repair Maint n Alterations,CA,04/01/2012,PAY00442375,10007.20,Revenue,W H Catchpole Ltd
Brighton & Hove City Council,http://statistics.data.gov.uk/id/local-authority/00ML,Non SERCOP,BVANON,Cap - Education Services,4ED,New Construction n Conversion,PB,Level not required,NR5026,04/01/2012,PAY00442376,25131.48,Capital,Westridge Construction Ltd
Brighton & Hove City Council,http://statistics.data.gov.uk/id/local-authority/00ML,Adult Social Care,BVASOC,S Svcs - Learning Disability,LDY,Customer n Client Receipts,M,Fees n Charges,MB,04/01/2012,PAY00442377,-384.00,Revenue,Mencap H & S Region 4
Brighton & Hove City Council,http://statistics.data.gov.uk/id/local-authority/00ML,Adult Social Care,BVASOC,S Svcs - Learning Disability,LDY,Third Party Payments,F,Other Establishments,FH,04/01/2012,PAY00442377,5487.16,Revenue,Mencap H & S Region 4
Brighton & Hove City Council,http://statistics.data.gov.uk/id/local-authority/00ML,Education Services,BVAEDU,Ed - Ed Other - Other,ENF,Premises Related,C,Repair Maint n Alterations,CA,04/01/2012,PAY00442378,1341.76,Revenue,Catercraft Supplies Ltd
Brighton & Hove City Council,http://statistics.data.gov.uk/id/local-authority/00ML,Central Services To The Public,BVACEN,Support Services (SSC),PPT,Supplies and Services,E,Communications n Computing,EH,04/01/2012,PAY00442381,-168.20,Revenue,Specialist Computer Centre Plc
Brighton & Hove City Council,http://statistics.data.gov.uk/id/local-authority/00ML,Non SERCOP,BVANON,Cap - Housing Services - HRA,4HR,Plant Machinery n Equipment,PE2,Level not required,NR5025,04/01/2012,PAY00442381,753.88,Capital,Specialist Computer Centre Plc
Brighton & Hove City Council,http://statistics.data.gov.uk/id/local-authority/00ML,Highways and Transportation,BVAHRT,Traffic Mgmnt and Road Safety,TMR,Premises Related,C,Repair Maint n Alterations,CA,04/01/2012,PAY00442383,3749.00,Revenue,British Telecommunications Plc
Brighton & Hove City Council,http://statistics.data.gov.uk/id/local-authority/00ML,Highways and Transportation,BVAHRT,Traffic Mgmnt and Road Safety,TMR,Supplies and Services,E,Services,EF,04/01/2012,PAY00442383,2405.25,Revenue,British Telecommunications Plc
Brighton & Hove City Council,http://statistics.data.gov.uk/id/local-authority/00ML,Children�s Social Care,BVACSC,Child Srvcs - Leaving Care,FAL,Transfer Payments,G,Other Transfer Payments,GD,04/01/2012,PAY00442384,440.50,Revenue,Brighton & Hove Bus & Coach Co Ltd
Brighton & Hove City Council,http://statistics.data.gov.uk/id/local-authority/00ML,Children�s Social Care,BVACSC,Child Srvcs - Yth Offender Tm,FYY,Transport Related,D,Public Transport,DD,04/01/2012,PAY00442384,1116.00,Revenue,Brighton & Hove Bus & Coach Co Ltd
Brighton & Hove City Council,http://statistics.data.gov.uk/id/local-authority/00ML,Environment and Regulatory Ser,BVAERS,Environmental Health,EVH,Transport Related,D,Contract Hire n Operating Leas,DB,04/01/2012,PAY00442384,1174.05,Revenue,Brighton & Hove Bus & Coach Co Ltd
Brighton & Hove City Council,http://statistics.data.gov.uk/id/local-authority/00ML,Highways and Transportation,BVAHRT,Public transport,PTR,Transport Related,D,Public Transport,DD,04/01/2012,PAY00442384,704166.67,Revenue,Brighton & Hove Bus & Coach Co Ltd
Brighton & Hove City Council,http://statistics.data.gov.uk/id/local-authority/00ML,Children�s Social Care,BVACSC,Child Srvcs - Fostering,FLF,Indirect Employees,B,Training,BM,04/01/2012,PAY00442385,112.00,Revenue,University of Brighton
Brighton & Hove City Council,http://statistics.data.gov.uk/id/local-authority/00ML,Education Services,BVAEDU,Ed - EY - Central,EAE,Supplies and Services,E,Grants n Subscriptions,EK,04/01/2012,PAY00442385,1110.00,Revenue,University of Brighton
Brighton & Hove City Council,http://statistics.data.gov.uk/id/local-authority/00ML,Education Services,BVAEDU,Ed - Mgmt & Support Services,EMG,Indirect Employees,B,Training,BM,04/01/2012,PAY00442390,454.16,Revenue,The British Psychological Society
Brighton & Hove City Council,http://statistics.data.gov.uk/id/local-authority/00ML,Housing Services General Fund,BVAHOG,Homelessness,HML,Premises Related,C,Rents Payable,CC,04/01/2012,PAY00442391,790.00,Revenue,Priors Letting Agency
Brighton & Hove City Council,http://statistics.data.gov.uk/id/local-authority/00ML,Housing Services General Fund,BVAHOG,Homelessness,HML,Premises Related,C,Rents Payable,CC,04/01/2012,PAY00442392,765.00,Revenue,Payment to Individual
Brighton & Hove City Council,http://statistics.data.gov.uk/id/local-authority/00ML,Housing Services General Fund,BVAHOG,Homelessness,HML,Premises Related,C,Rents Payable,CC,04/01/2012,PAY00442393,700.00,Revenue,Payment to Individual
Brighton & Hove City Council,http://statistics.data.gov.uk/id/local-authority/00ML,Housing Services General Fund,BVAHOG,Homelessness,HML,Premises Related,C,Rents Payable,CC,04/01/2012,PAY00442395,775.00,Revenue,Payment to Individual
Brighton & Hove City Council,http://statistics.data.gov.uk/id/local-authority/00ML,Adult Social Care,BVASOC,S Svcs - Older People Svcs,PPL,Third Party Payments,F,Other Establishments,FH,04/01/2012,PAY00442396,1407.00,Revenue,Southern Cross Healthcare
Brighton & Hove City Council,http://statistics.data.gov.uk/id/local-authority/00ML,Children�s Social Care,BVACSC,Child Srvcs - Fostering,FLF,Third Party Payments,F,Other Establishments,FH,04/01/2012,PAY00442397,9020.00,Revenue,Time Out Fostering Ltd
Brighton & Hove City Council,http://statistics.data.gov.uk/id/local-authority/00ML,Housing Services General Fund,BVAHOG,Homelessness,HML,Premises Related,C,Rents Payable,CC,04/01/2012,PAY00442399,775.00,Revenue,Payment to Individual
Brighton & Hove City Council,http://statistics.data.gov.uk/id/local-authority/00ML,Housing Services General Fund,BVAHOG,Homelessness,HML,Premises Related,C,Rents Payable,CC,04/01/2012,PAY00442400,750.00,Revenue,Payment to Individual
Brighton & Hove City Council,http://statistics.data.gov.uk/id/local-authority/00ML,Housing Services General Fund,BVAHOG,Homelessness,HML,Premises Related,C,Rents Payable,CC,04/01/2012,PAY00442402,785.00,Revenue,Payment to Individual
Brighton & Hove City Council,http://statistics.data.gov.uk/id/local-authority/00ML,Housing Services General Fund,BVAHOG,Homelessness,HML,Supplies and Services,E,Services,EF,04/01/2012,PAY00442403,840.00,Revenue,Jurys Inn
Brighton & Hove City Council,http://statistics.data.gov.uk/id/local-authority/00ML,Housing Services General Fund,BVAHOG,Homelessness,HML,Premises Related,C,Rents Payable,CC,04/01/2012,PAY00442405,950.00,Revenue,Payment to Individual
Brighton & Hove City Council,http://statistics.data.gov.uk/id/local-authority/00ML,Housing Services General Fund,BVAHOG,Homelessness,HML,Premises Related,C,Rents Payable,CC,04/01/2012,PAY00442407,805.00,Revenue,Payment to Individual
Brighton & Hove City Council,http://statistics.data.gov.uk/id/local-authority/00ML,Housing Services General Fund,BVAHOG,Homelessness,HML,Premises Related,C,Rents Payable,CC,04/01/2012,PAY00442408,800.00,Revenue,Payment to Individual
Brighton & Hove City Council,http://statistics.data.gov.uk/id/local-authority/00ML,Housing Services General Fund,BVAHOG,Homelessness,HML,Premises Related,C,Rents Payable,CC,04/01/2012,PAY00442411,775.00,Revenue,CWP Residential LLP
Brighton & Hove City Council,http://statistics.data.gov.uk/id/local-authority/00ML,Children�s Social Care,BVACSC,Child Srvcs - Fostering,FLF,Third Party Payments,F,Other Establishments,FH,04/01/2012,PAY00442412,4200.64,Revenue,Family Link
Brighton & Hove City Council,http://statistics.data.gov.uk/id/local-authority/00ML,Children�s Social Care,BVACSC,Child Srvcs - Residential Svcs,FLR,Third Party Payments,F,Other Establishments,FH,04/01/2012,PAY00442412,12621.43,Revenue,Family Link
Brighton & Hove City Council,http://statistics.data.gov.uk/id/local-authority/00ML,Housing Services General Fund,BVAHOG,Homelessness,HML,Premises Related,C,Rents Payable,CC,04/01/2012,PAY00442413,760.00,Revenue,Sareen Properties & Co
Brighton & Hove City Council,http://statistics.data.gov.uk/id/local-authority/00ML,Housing Services General Fund,BVAHOG,Homelessness,HML,Premises Related,C,Rents Payable,CC,04/01/2012,PAY00442414,750.00,Revenue,Payment to Individual
Brighton & Hove City Council,http://statistics.data.gov.uk/id/local-authority/00ML,Children�s Social Care,BVACSC,Child Srvcs - Fostering,FLF,Third Party Payments,F,Other Establishments,FH,04/01/2012,PAY00442415,6183.36,Revenue,Sussex Fostering & Children`s Services
Brighton & Hove City Council,http://statistics.data.gov.uk/id/local-authority/00ML,Housing Services General Fund,BVAHOG,Homelessness,HML,Premises Related,C,Rents Payable,CC,04/01/2012,PAY00442417,2580.00,Revenue,Investsave Ltd
Brighton & Hove City Council,http://statistics.data.gov.uk/id/local-authority/00ML,Housing Services General Fund,BVAHOG,Homelessness,HML,Premises Related,C,Repair Maint n Alterations,CA,04/01/2012,PAY00442418,1340.00,Revenue,Payment to Individual
Brighton & Hove City Council,http://statistics.data.gov.uk/id/local-authority/00ML,Housing Services General Fund,BVAHOG,Homelessness,HML,Premises Related,C,Rents Payable,CC,04/01/2012,PAY00442420,900.00,Revenue,Payment to Individual
Brighton & Hove City Council,http://statistics.data.gov.uk/id/local-authority/00ML,Housing Services General Fund,BVAHOG,Homelessness,HML,Premises Related,C,Rents Payable,CC,04/01/2012,PAY00442422,790.00,Revenue,Payment to Individual
Brighton & Hove City Council,http://statistics.data.gov.uk/id/local-authority/00ML,Housing Services General Fund,BVAHOG,Homelessness,HML,Premises Related,C,Rents Payable,CC,04/01/2012,PAY00442423,940.00,Revenue,Payment to Individual
Brighton & Hove City Council,http://statistics.data.gov.uk/id/local-authority/00ML,Housing Services General Fund,BVAHOG,Homelessness,HML,Premises Related,C,Rents Payable,CC,04/01/2012,PAY00442425,800.00,Revenue,Gunbell & Co
Brighton & Hove City Council,http://statistics.data.gov.uk/id/local-authority/00ML,Housing Services General Fund,BVAHOG,Homelessness,HML,Premises Related,C,Rents Payable,CC,04/01/2012,PAY00442426,800.00,Revenue,Payment to Individual
Brighton & Hove City Council,http://statistics.data.gov.uk/id/local-authority/00ML,Cultural and Related Services,BVACUL,Management Services (DEC),MGT,Supplies and Services,E,Equip't Furniture n Materials,EA,04/01/2012,PAY00442427,726.50,Revenue,Really Wild Flowers 
Brighton & Hove City Council,http://statistics.data.gov.uk/id/local-authority/00ML,Housing Services General Fund,BVAHOG,Homelessness,HML,Premises Related,C,Rents Payable,CC,04/01/2012,PAY00442428,800.00,Revenue,Payment to Individual
Brighton & Hove City Council,http://statistics.data.gov.uk/id/local-authority/00ML,Housing Services General Fund,BVAHOG,Homelessness,HML,Premises Related,C,Rents Payable,CC,04/01/2012,PAY00442437,1000.00,Revenue,Eagle Estates Ltd
Brighton & Hove City Council,http://statistics.data.gov.uk/id/local-authority/00ML,Children�s Social Care,BVACSC,Child Srvcs - Com & Scl Work,FCW,Indirect Employees,B,Misc Employee Costs,BP,04/01/2012,PAY00442440,23.00,Revenue,The Imprest Holder
Brighton & Hove City Council,http://statistics.data.gov.uk/id/local-authority/00ML,Children�s Social Care,BVACSC,Child Srvcs - Com & Scl Work,FCW,Supplies and Services,E,Communications n Computing,EH,04/01/2012,PAY00442440,25.20,Revenue,The Imprest Holder
Brighton & Hove City Council,http://statistics.data.gov.uk/id/local-authority/00ML,Children�s Social Care,BVACSC,Child Srvcs - Com & Scl Work,FCW,Supplies and Services,E,Expenses,EJ,04/01/2012,PAY00442440,176.08,Revenue,The Imprest Holder
Brighton & Hove City Council,http://statistics.data.gov.uk/id/local-authority/00ML,Children�s Social Care,BVACSC,Child Srvcs - Com & Scl Work,FCW,Transport Related,D,Other Transport Costs,DG,04/01/2012,PAY00442440,19.10,Revenue,The Imprest Holder
Brighton & Hove City Council,http://statistics.data.gov.uk/id/local-authority/00ML,Children�s Social Care,BVACSC,Child Srvcs - Com & Scl Work,FCW,Transport Related,D,Public Transport,DD,04/01/2012,PAY00442440,15.10,Revenue,The Imprest Holder
Brighton & Hove City Council,http://statistics.data.gov.uk/id/local-authority/00ML,Children�s Social Care,BVACSC,Child Srvcs - Fostering,FLF,Third Party Payments,F,Other Establishments,FH,04/01/2012,PAY00442440,3.55,Revenue,The Imprest Holder
Brighton & Hove City Council,http://statistics.data.gov.uk/id/local-authority/00ML,Children�s Social Care,BVACSC,Child Srvcs - Other Fam Supp,FFX,Transfer Payments,G,Other Transfer Payments,GD,04/01/2012,PAY00442440,288.07,Revenue,The Imprest Holder
Brighton & Hove City Council,http://statistics.data.gov.uk/id/local-authority/00ML,Cultural and Related Services,BVACUL,Open Spaces,PEN,Supplies and Services,E,Equip't Furniture n Materials,EA,04/01/2012,PAY00442442,579.20,Revenue,Collier Turf Care Ltd
Brighton & Hove City Council,http://statistics.data.gov.uk/id/local-authority/00ML,Housing Services General Fund,BVAHOG,Homelessness,HML,Premises Related,C,Rents Payable,CC,04/01/2012,PAY00442443,800.00,Revenue,Geneva Investment Group Ltd
Brighton & Hove City Council,http://statistics.data.gov.uk/id/local-authority/00ML,Housing Services General Fund,BVAHOG,Homelessness,HML,Premises Related,C,Rents Payable,CC,04/01/2012,PAY00442444,1000.00,Revenue,Payment to Individual
Brighton & Hove City Council,http://statistics.data.gov.uk/id/local-authority/00ML,Housing Services General Fund,BVAHOG,Homelessness,HML,Premises Related,C,Rents Payable,CC,04/01/2012,PAY00442447,520.00,Revenue,C V Howard Investments Ltd
Brighton & Hove City Council,http://statistics.data.gov.uk/id/local-authority/00ML,Housing Services General Fund,BVAHOG,Homelessness,HML,Premises Related,C,Rents Payable,CC,04/01/2012,PAY00442450,760.00,Revenue,Payment to Individual
Brighton & Hove City Council,http://statistics.data.gov.uk/id/local-authority/00ML,Housing Services General Fund,BVAHOG,Homelessness,HML,Premises Related,C,Rents Payable,CC,04/01/2012,PAY00442451,1275.00,Revenue,Payment to Individual
Brighton & Hove City Council,http://statistics.data.gov.uk/id/local-authority/00ML,Housing Services General Fund,BVAHOG,Homelessness,HML,Premises Related,C,Rents Payable,CC,04/01/2012,PAY00442456,740.00,Revenue,Payment to Individual
Brighton & Hove City Council,http://statistics.data.gov.uk/id/local-authority/00ML,Non SERCOP,BVANON,Cap - Education Services,4ED,New Construction n Conversion,PB,Level not required,NR5026,04/01/2012,PAY00442457,5000.00,Capital,Mace Ltd
Brighton & Hove City Council,http://statistics.data.gov.uk/id/local-authority/00ML,Education Services,BVAEDU,Ed - Mgmt & Support Services,EMG,Supplies and Services,E,Services,EF,04/01/2012,PAY00442458,3500.00,Revenue,Brackley Educational Consultancy
Brighton & Hove City Council,http://statistics.data.gov.uk/id/local-authority/00ML,Education Services,BVAEDU,Ed - Mgmt & Support Services,EMG,Transport Related,D,Other Transport Costs,DG,04/01/2012,PAY00442458,25.00,Revenue,Brackley Educational Consultancy
Brighton & Hove City Council,http://statistics.data.gov.uk/id/local-authority/00ML,Housing Services General Fund,BVAHOG,Homelessness,HML,Premises Related,C,Rents Payable,CC,04/01/2012,PAY00442459,775.00,Revenue,Payment to Individual
Brighton & Hove City Council,http://statistics.data.gov.uk/id/local-authority/00ML,Housing Services General Fund,BVAHOG,Homelessness,HML,Premises Related,C,Rents Payable,CC,04/01/2012,PAY00442465,900.00,Revenue,Payment to Individual
Brighton & Hove City Council,http://statistics.data.gov.uk/id/local-authority/00ML,Housing Services General Fund,BVAHOG,Homelessness,HML,Premises Related,C,Rents Payable,CC,04/01/2012,PAY00442466,770.00,Revenue,Payment to Individual
Brighton & Hove City Council,http://statistics.data.gov.uk/id/local-authority/00ML,Housing Services General Fund,BVAHOG,Homelessness,HML,Premises Related,C,Rents Payable,CC,04/01/2012,PAY00442467,950.00,Revenue,Payment to Individual
Brighton & Hove City Council,http://statistics.data.gov.uk/id/local-authority/00ML,Highways and Transportation,BVAHRT,Public transport,PTR,Transport Related,D,Public Transport,DD,04/01/2012,PAY00442468,39166.66,Revenue,Stagecoach Services Ltd t/a Stagecoach South
Brighton & Hove City Council,http://statistics.data.gov.uk/id/local-authority/00ML,Housing Services General Fund,BVAHOG,Homelessness,HML,Premises Related,C,Rents Payable,CC,04/01/2012,PAY00442469,2570.00,Revenue,Payment to Individual
Brighton & Hove City Council,http://statistics.data.gov.uk/id/local-authority/00ML,Children�s Social Care,BVACSC,Child Srvcs - Residential Svcs,FLR,Third Party Payments,F,Other Establishments,FH,04/01/2012,PAY00442470,7701.14,Revenue,Child First Ltd
Brighton & Hove City Council,http://statistics.data.gov.uk/id/local-authority/00ML,Adult Social Care,BVASOC,S Svcs - Mental Health,MHT,Customer n Client Receipts,M,Fees n Charges,MB,04/01/2012,PAY00442473,-918.00,Revenue,Warwick House Residential Home
Brighton & Hove City Council,http://statistics.data.gov.uk/id/local-authority/00ML,Adult Social Care,BVASOC,S Svcs - Mental Health,MHT,Third Party Payments,F,Other Establishments,FH,04/01/2012,PAY00442473,2494.80,Revenue,Warwick House Residential Home
Brighton & Hove City Council,http://statistics.data.gov.uk/id/local-authority/00ML,Housing Services General Fund,BVAHOG,Homelessness,HML,Premises Related,C,Rents Payable,CC,04/01/2012,PAY00442474,1120.00,Revenue,Payment to Individual
Brighton & Hove City Council,http://statistics.data.gov.uk/id/local-authority/00ML,Children�s Social Care,BVACSC,Child Srvcs - Residential Svcs,FLR,Third Party Payments,F,Other Establishments,FH,04/01/2012,PAY00442476,34440.00,Revenue,Rosenfeld Rosenfeld Kirby Ltd t/a Ark House
Brighton & Hove City Council,http://statistics.data.gov.uk/id/local-authority/00ML,Housing Services General Fund,BVAHOG,Homelessness,HML,Premises Related,C,Rents Payable,CC,04/01/2012,PAY00442477,850.00,Revenue,Payment to Individual
Brighton & Hove City Council,http://statistics.data.gov.uk/id/local-authority/00ML,Housing Services General Fund,BVAHOG,Homelessness,HML,Premises Related,C,Rents Payable,CC,04/01/2012,PAY00442479,800.00,Revenue,Payment to Individual
Brighton & Hove City Council,http://statistics.data.gov.uk/id/local-authority/00ML,Housing Services General Fund,BVAHOG,Homelessness,HML,Premises Related,C,Rents Payable,CC,04/01/2012,PAY00442480,825.00,Revenue,Payment to Individual
Brighton & Hove City Council,http://statistics.data.gov.uk/id/local-authority/00ML,Children�s Social Care,BVACSC,Child Srvcs - Residential Svcs,FLR,Third Party Payments,F,Other Establishments,FH,04/01/2012,PAY00442483,9635.00,Revenue,Kingdom Care
Brighton & Hove City Council,http://statistics.data.gov.uk/id/local-authority/00ML,Housing Services General Fund,BVAHOG,Homelessness,HML,Premises Related,C,Rents Payable,CC,04/01/2012,PAY00442484,850.00,Revenue,Payment to Individual
Brighton & Hove City Council,http://statistics.data.gov.uk/id/local-authority/00ML,Children�s Social Care,BVACSC,Child Srvcs - Fostering,FLF,Third Party Payments,F,Other Establishments,FH,04/01/2012,PAY00442485,42848.04,Revenue,Brighter Futures Foster Care Ltd
Brighton & Hove City Council,http://statistics.data.gov.uk/id/local-authority/00ML,Housing Services General Fund,BVAHOG,Homelessness,HML,Premises Related,C,Repair Maint n Alterations,CA,04/01/2012,PAY00442487,525.00,Revenue,Economy Moves 
Brighton & Hove City Council,http://statistics.data.gov.uk/id/local-authority/00ML,Housing Services General Fund,BVAHOG,Homelessness,HML,Premises Related,C,Rents Payable,CC,04/01/2012,PAY00442488,750.00,Revenue,Payment to Individual
Brighton & Hove City Council,http://statistics.data.gov.uk/id/local-authority/00ML,Children�s Social Care,BVACSC,Child Srvcs - Fostering,FLF,Third Party Payments,F,Other Establishments,FH,04/01/2012,PAY00442490,37305.36,Revenue,Blue Sky Fostering Limited
Brighton & Hove City Council,http://statistics.data.gov.uk/id/local-authority/00ML,Housing Services General Fund,BVAHOG,Homelessness,HML,Premises Related,C,Rents Payable,CC,04/01/2012,PAY00442491,850.00,Revenue,Payment to Individual
Brighton & Hove City Council,http://statistics.data.gov.uk/id/local-authority/00ML,Children�s Social Care,BVACSC,Child Srvcs - Residential Svcs,FLR,Third Party Payments,F,Other Establishments,FH,04/01/2012,PAY00442492,21436.00,Revenue,PJL Healthcare Ltd
Brighton & Hove City Council,http://statistics.data.gov.uk/id/local-authority/00ML,Adult Social Care,BVASOC,S Svcs - Physical Disability,PDY,Third Party Payments,F,Other Establishments,FH,04/01/2012,PAY00442495,1926.00,Revenue,Abi House
Brighton & Hove City Council,http://statistics.data.gov.uk/id/local-authority/00ML,Housing Services General Fund,BVAHOG,Homelessness,HML,Premises Related,C,Rents Payable,CC,04/01/2012,PAY00442496,800.00,Revenue,Payment to Individual
Brighton & Hove City Council,http://statistics.data.gov.uk/id/local-authority/00ML,Housing Services General Fund,BVAHOG,Homelessness,HML,Premises Related,C,Rents Payable,CC,04/01/2012,PAY00442497,575.00,Revenue,Payment to Individual
Brighton & Hove City Council,http://statistics.data.gov.uk/id/local-authority/00ML,Children�s Social Care,BVACSC,Child Srvcs - Fostering,FLF,Third Party Payments,F,Other Establishments,FH,04/01/2012,PAY00442498,2880.00,Revenue,Sunbeam Fostering Agency Ltd
Brighton & Hove City Council,http://statistics.data.gov.uk/id/local-authority/00ML,Housing Services General Fund,BVAHOG,Homelessness,HML,Premises Related,C,Rents Payable,CC,04/01/2012,PAY00442499,725.00,Revenue,Payment to Individual
Brighton & Hove City Council,http://statistics.data.gov.uk/id/local-authority/00ML,Adult Social Care,BVASOC,S Svcs - Physical Disability,PDY,Supplies and Services,E,Equip't Furniture n Materials,EA,04/01/2012,PAY00442500,417.62,Revenue,Wealden Rehab
Brighton & Hove City Council,http://statistics.data.gov.uk/id/local-authority/00ML,Housing Services General Fund,BVAHOG,Homelessness,HML,Premises Related,C,Rents Payable,CC,04/01/2012,PAY00442501,765.00,Revenue,Payment to Individual
Brighton & Hove City Council,http://statistics.data.gov.uk/id/local-authority/00ML,Housing Services General Fund,BVAHOG,Homelessness,HML,Premises Related,C,Rents Payable,CC,04/01/2012,PAY00442502,750.00,Revenue,Payment to Individual
Brighton & Hove City Council,http://statistics.data.gov.uk/id/local-authority/00ML,Children�s Social Care,BVACSC,Child Srvcs - Residential Svcs,FLR,Third Party Payments,F,Other Establishments,FH,04/01/2012,PAY00442504,15800.00,Revenue,The Amicus Community (Arundel) Ltd
Brighton & Hove City Council,http://statistics.data.gov.uk/id/local-authority/00ML,Housing Services General Fund,BVAHOG,Homelessness,HML,Premises Related,C,Rents Payable,CC,04/01/2012,PAY00442505,800.00,Revenue,Payment to Individual
Brighton & Hove City Council,http://statistics.data.gov.uk/id/local-authority/00ML,Housing Services General Fund,BVAHOG,Homelessness,HML,Premises Related,C,Rents Payable,CC,04/01/2012,PAY00442507,620.00,Revenue,Payment to Individual
Brighton & Hove City Council,http://statistics.data.gov.uk/id/local-authority/00ML,Housing Services General Fund,BVAHOG,Homelessness,HML,Premises Related,C,Rents Payable,CC,04/01/2012,PAY00442508,750.00,Revenue,Payment to Individual
Brighton & Hove City Council,http://statistics.data.gov.uk/id/local-authority/00ML,Housing Services General Fund,BVAHOG,Homelessness,HML,Premises Related,C,Rents Payable,CC,04/01/2012,PAY00442509,850.00,Revenue,Payment to Individual
Brighton & Hove City Council,http://statistics.data.gov.uk/id/local-authority/00ML,Housing Services General Fund,BVAHOG,Homelessness,HML,Premises Related,C,Rents Payable,CC,04/01/2012,PAY00442512,750.00,Revenue,Coserve Ltd
Brighton & Hove City Council,http://statistics.data.gov.uk/id/local-authority/00ML,Children�s Social Care,BVACSC,Child Srvcs - Residential Svcs,FLR,Third Party Payments,F,Other Establishments,FH,04/01/2012,PAY00442515,5000.00,Revenue,Cura Independent Services Ltd
Brighton & Hove City Council,http://statistics.data.gov.uk/id/local-authority/00ML,Children�s Social Care,BVACSC,Child Srvcs - Residential Svcs,FLR,Third Party Payments,F,Other Establishments,FH,04/01/2012,PAY00442516,18800.00,Revenue,Oracle Care Limited
Brighton & Hove City Council,http://statistics.data.gov.uk/id/local-authority/00ML,Housing Services General Fund,BVAHOG,Homelessness,HML,Premises Related,C,Rents Payable,CC,04/01/2012,PAY00442517,725.00,Revenue,Payment to Individual
Brighton & Hove City Council,http://statistics.data.gov.uk/id/local-authority/00ML,Housing Services General Fund,BVAHOG,Homelessness,HML,Premises Related,C,Rents Payable,CC,04/01/2012,PAY00442518,1025.00,Revenue,Payment to Individual
Brighton & Hove City Council,http://statistics.data.gov.uk/id/local-authority/00ML,Children�s Social Care,BVACSC,Child Srvcs - Fostering,FLF,Third Party Payments,F,Other Establishments,FH,04/01/2012,PAY00442520,24988.10,Revenue,Cornerways Fostering Services Limited
Brighton & Hove City Council,http://statistics.data.gov.uk/id/local-authority/00ML,Housing Services General Fund,BVAHOG,Homelessness,HML,Premises Related,C,Rents Payable,CC,04/01/2012,PAY00442521,740.00,Revenue,Payment to Individual
Brighton & Hove City Council,http://statistics.data.gov.uk/id/local-authority/00ML,Housing Services General Fund,BVAHOG,Homelessness,HML,Premises Related,C,Rents Payable,CC,04/01/2012,PAY00442522,825.00,Revenue,Payment to Individual
Brighton & Hove City Council,http://statistics.data.gov.uk/id/local-authority/00ML,Adult Social Care,BVASOC,S Svcs - Older People Svcs,PPL,Customer n Client Receipts,M,Fees n Charges,MB,04/01/2012,PAY00442523,-1686.00,Revenue,Care Outlook
Brighton & Hove City Council,http://statistics.data.gov.uk/id/local-authority/00ML,Adult Social Care,BVASOC,S Svcs - Older People Svcs,PPL,Third Party Payments,F,Other Establishments,FH,04/01/2012,PAY00442523,19331.57,Revenue,Care Outlook
Brighton & Hove City Council,http://statistics.data.gov.uk/id/local-authority/00ML,Adult Social Care,BVASOC,S Svcs - Other Adult Services,ADT,Third Party Payments,F,Other Establishments,FH,04/01/2012,PAY00442523,174.52,Revenue,Care Outlook
Brighton & Hove City Council,http://statistics.data.gov.uk/id/local-authority/00ML,Adult Social Care,BVASOC,S Svcs - Physical Disability,PDY,Third Party Payments,F,Other Establishments,FH,04/01/2012,PAY00442523,1792.01,Revenue,Care Outlook
Brighton & Hove City Council,http://statistics.data.gov.uk/id/local-authority/00ML,Housing Services General Fund,BVAHOG,Homelessness,HML,Premises Related,C,Rents Payable,CC,04/01/2012,PAY00442524,1250.00,Revenue,Payment to Individual
Brighton & Hove City Council,http://statistics.data.gov.uk/id/local-authority/00ML,Housing Services General Fund,BVAHOG,Homelessness,HML,Premises Related,C,Rents Payable,CC,04/01/2012,PAY00442526,750.00,Revenue,Payment to Individual
Brighton & Hove City Council,http://statistics.data.gov.uk/id/local-authority/00ML,Housing Services General Fund,BVAHOG,Homelessness,HML,Premises Related,C,Rents Payable,CC,04/01/2012,PAY00442527,1120.00,Revenue,Payment to Individual
Brighton & Hove City Council,http://statistics.data.gov.uk/id/local-authority/00ML,Housing Services General Fund,BVAHOG,Homelessness,HML,Premises Related,C,Rents Payable,CC,04/01/2012,PAY00442528,1250.00,Revenue,Payment to Individual
Brighton & Hove City Council,http://statistics.data.gov.uk/id/local-authority/00ML,Housing Services General Fund,BVAHOG,Homelessness,HML,Premises Related,C,Rents Payable,CC,04/01/2012,PAY00442529,825.00,Revenue,L B Longley Investments Limited (1)
Brighton & Hove City Council,http://statistics.data.gov.uk/id/local-authority/00ML,Housing Services General Fund,BVAHOG,Homelessness,HML,Premises Related,C,Rents Payable,CC,04/01/2012,PAY00442531,850.00,Revenue,Payment to Individual
Brighton & Hove City Council,http://statistics.data.gov.uk/id/local-authority/00ML,Housing Services General Fund,BVAHOG,Homelessness,HML,Premises Related,C,Rents Payable,CC,04/01/2012,PAY00442534,760.00,Revenue,Payment to Individual
Brighton & Hove City Council,http://statistics.data.gov.uk/id/local-authority/00ML,Housing Services General Fund,BVAHOG,Homelessness,HML,Premises Related,C,Rents Payable,CC,04/01/2012,PAY00442535,875.00,Revenue,Payment to Individual
Brighton & Hove City Council,http://statistics.data.gov.uk/id/local-authority/00ML,Housing Services General Fund,BVAHOG,Homelessness,HML,Premises Related,C,Rents Payable,CC,04/01/2012,PAY00442537,678.08,Revenue,Payment to Individual
Brighton & Hove City Council,http://statistics.data.gov.uk/id/local-authority/00ML,Housing Services General Fund,BVAHOG,Homelessness,HML,Premises Related,C,Rents Payable,CC,04/01/2012,PAY00442538,850.00,Revenue,Payment to Individual
Brighton & Hove City Council,http://statistics.data.gov.uk/id/local-authority/00ML,Children�s Social Care,BVACSC,Child Srvcs - Fostering,FLF,Third Party Payments,F,Other Establishments,FH,04/01/2012,PAY00442539,15512.00,Revenue,Capstone Vision Foster Care Ltd
Brighton & Hove City Council,http://statistics.data.gov.uk/id/local-authority/00ML,Planning Services,BVAPLA,Development Control,DEV,Customer n Client Receipts,M,Fees n Charges,MB,04/01/2012,PAY00442540,680.00,Revenue,Veolia ES Landfill
Brighton & Hove City Council,http://statistics.data.gov.uk/id/local-authority/00ML,Adult Social Care,BVASOC,S Svcs - Mental Health,MHT,Third Party Payments,F,Other Establishments,FH,04/01/2012,PAY00442541,750.00,Revenue,Pavilion Properties
Brighton & Hove City Council,http://statistics.data.gov.uk/id/local-authority/00ML,Housing Services General Fund,BVAHOG,Homelessness,HML,Premises Related,C,Rents Payable,CC,04/01/2012,PAY00442543,2283.00,Revenue,Payment to Individual
Brighton & Hove City Council,http://statistics.data.gov.uk/id/local-authority/00ML,Housing Services General Fund,BVAHOG,Homelessness,HML,Premises Related,C,Rents Payable,CC,04/01/2012,PAY00442545,800.00,Revenue,Payment to Individual
Brighton & Hove City Council,http://statistics.data.gov.uk/id/local-authority/00ML,Housing Services General Fund,BVAHOG,Homelessness,HML,Premises Related,C,Rents Payable,CC,04/01/2012,PAY00442546,1179.00,Revenue,Payment to Individual
Brighton & Hove City Council,http://statistics.data.gov.uk/id/local-authority/00ML,Children�s Social Care,BVACSC,Child Srvcs - Residential Svcs,FLR,Third Party Payments,F,Other Establishments,FH,04/01/2012,PAY00442547,14400.00,Revenue,Channels & Choices
Brighton & Hove City Council,http://statistics.data.gov.uk/id/local-authority/00ML,Housing Services General Fund,BVAHOG,Homelessness,HML,Premises Related,C,Rents Payable,CC,04/01/2012,PAY00442549,900.00,Revenue,Payment to Individual
Brighton & Hove City Council,http://statistics.data.gov.uk/id/local-authority/00ML,Housing Services Revnue Acc,BVAHOU,Hsing Management - HRA,HGM,Premises Related,C,Repair Maint n Alterations,CA,04/01/2012,PAY00442550,5852.13,Revenue,Hertel Solutions Ltd
Brighton & Hove City Council,http://statistics.data.gov.uk/id/local-authority/00ML,Children�s Social Care,BVACSC,Child Srvcs - Residential Svcs,FLR,Third Party Payments,F,Other Establishments,FH,04/01/2012,PAY00442558,39798.96,Revenue,Anderida Adolescent Care Ltd
Brighton & Hove City Council,http://statistics.data.gov.uk/id/local-authority/00ML,Housing Services General Fund,BVAHOG,Homelessness,HML,Premises Related,C,Rents Payable,CC,04/01/2012,PAY00442561,800.00,Revenue,Payment to Individual
Brighton & Hove City Council,http://statistics.data.gov.uk/id/local-authority/00ML,Housing Services Revnue Acc,BVAHOU,Hsing Management - HRA,HGM,Premises Related,C,Repair Maint n Alterations,CA,04/01/2012,PAY00442562,9364.02,Revenue,Millwood Servicing Ltd
Brighton & Hove City Council,http://statistics.data.gov.uk/id/local-authority/00ML,Housing Services General Fund,BVAHOG,Homelessness,HML,Premises Related,C,Rents Payable,CC,04/01/2012,PAY00442565,750.00,Revenue,Payment to Individual
Brighton & Hove City Council,http://statistics.data.gov.uk/id/local-authority/00ML,Central Services To The Public,BVACEN,Support Services (SSC),PPT,Supplies and Services,E,Services,EF,04/01/2012,PAY00442571,1020.00,Revenue,Resolve Security
Brighton & Hove City Council,http://statistics.data.gov.uk/id/local-authority/00ML,Housing Services General Fund,BVAHOG,Homelessness,HML,Premises Related,C,Rents Payable,CC,04/01/2012,PAY00442573,900.00,Revenue,Payment to Individual
Brighton & Hove City Council,http://statistics.data.gov.uk/id/local-authority/00ML,Adult Social Care,BVASOC,S Svcs - Older People Svcs,PPL,Customer n Client Receipts,M,Fees n Charges,MB,04/01/2012,PAY00442575,132.53,Revenue,Hazelgrove Nursing Home
Brighton & Hove City Council,http://statistics.data.gov.uk/id/local-authority/00ML,Adult Social Care,BVASOC,S Svcs - Older People Svcs,PPL,Third Party Payments,F,Other Establishments,FH,04/01/2012,PAY00442575,885.02,Revenue,Hazelgrove Nursing Home
Brighton & Hove City Council,http://statistics.data.gov.uk/id/local-authority/00ML,Children�s Social Care,BVACSC,Child Srvcs - Fostering,FLF,Third Party Payments,F,Other Establishments,FH,04/01/2012,PAY00442579,1092.14,Revenue,St Christopher`s Fellowship
Brighton & Hove City Council,http://statistics.data.gov.uk/id/local-authority/00ML,Adult Social Care,BVASOC,S Svcs - Physical Disability,PDY,Third Party Payments,F,Other Establishments,FH,04/01/2012,PAY00442582,7948.28,Revenue,Partnerships in Care Ltd
Brighton & Hove City Council,http://statistics.data.gov.uk/id/local-authority/00ML,Children�s Social Care,BVACSC,Child Srvcs - Other Fam Supp,FFX,Transfer Payments,G,Other Transfer Payments,GD,04/01/2012,PAY00442583,236.54,Revenue,Orchard & Shipman Ltd
Brighton & Hove City Council,http://statistics.data.gov.uk/id/local-authority/00ML,Housing Services General Fund,BVAHOG,Homelessness,HML,Supplies and Services,E,Services,EF,04/01/2012,PAY00442583,37519.64,Revenue,Orchard & Shipman Ltd
Brighton & Hove City Council,http://statistics.data.gov.uk/id/local-authority/00ML,Cultural and Related Services,BVACUL,Recreation and sport,REC,Premises Related,C,Repair Maint n Alterations,CA,04/01/2012,PAY00442584,1926.25,Revenue,A & F Pilbeam Construction Ltd
Brighton & Hove City Council,http://statistics.data.gov.uk/id/local-authority/00ML,Non SERCOP,BVANON,Cap - Education Services,4ED,New Construction n Conversion,PB,Level not required,NR5026,04/01/2012,PAY00442587,9147.92,Capital,Brookvex Technical Services Ltd
Brighton & Hove City Council,http://statistics.data.gov.uk/id/local-authority/00ML,Central Services To The Public,BVACEN,Support Services (SSC),PPT,Indirect Employees,B,Training,BM,04/01/2012,PAY00442588,948.00,Revenue,Herts Handling Training Limited
Brighton & Hove City Council,http://statistics.data.gov.uk/id/local-authority/00ML,Housing Services General Fund,BVAHOG,Homelessness,HML,Premises Related,C,Rents Payable,CC,04/01/2012,PAY00442591,750.00,Revenue,Payment to Individual
Brighton & Hove City Council,http://statistics.data.gov.uk/id/local-authority/00ML,Housing Services General Fund,BVAHOG,Homelessness,HML,Premises Related,C,Rents Payable,CC,04/01/2012,PAY00442592,1100.00,Revenue,Payment to Individual
Brighton & Hove City Council,http://statistics.data.gov.uk/id/local-authority/00ML,Adult Social Care,BVASOC,S Svcs - Older People Svcs,PPL,Third Party Payments,F,Other Establishments,FH,04/01/2012,PAY00442594,924.80,Revenue,Middleton Grove Nursing Home
Brighton & Hove City Council,http://statistics.data.gov.uk/id/local-authority/00ML,Central Services To The Public,BVACEN,Support Services (SSC),PPT,Premises Related,C,Repair Maint n Alterations,CA,04/01/2012,PAY00442596,1498.00,Revenue,CNC Heating Limited
Brighton & Hove City Council,http://statistics.data.gov.uk/id/local-authority/00ML,Adult Social Care,BVASOC,S Svcs - Older People Svcs,PPL,Third Party Payments,F,Other Establishments,FH,04/01/2012,PAY00442600,434.29,Revenue,Martlets Care
Brighton & Hove City Council,http://statistics.data.gov.uk/id/local-authority/00ML,Adult Social Care,BVASOC,S Svcs - Physical Disability,PDY,Customer n Client Receipts,M,Fees n Charges,MB,04/01/2012,PAY00442600,-238.00,Revenue,Martlets Care
Brighton & Hove City Council,http://statistics.data.gov.uk/id/local-authority/00ML,Adult Social Care,BVASOC,S Svcs - Physical Disability,PDY,Third Party Payments,F,Other Establishments,FH,04/01/2012,PAY00442600,1461.29,Revenue,Martlets Care
Brighton & Hove City Council,http://statistics.data.gov.uk/id/local-authority/00ML,Housing Services General Fund,BVAHOG,Homelessness,HML,Premises Related,C,Rents Payable,CC,04/01/2012,PAY00442606,775.00,Revenue,Payment to Individual
Brighton & Hove City Council,http://statistics.data.gov.uk/id/local-authority/00ML,Housing Services General Fund,BVAHOG,Homelessness,HML,Premises Related,C,Rents Payable,CC,04/01/2012,PAY00442611,950.00,Revenue,Payment to Individual
Brighton & Hove City Council,http://statistics.data.gov.uk/id/local-authority/00ML,Housing Services General Fund,BVAHOG,Homelessness,HML,Premises Related,C,Rents Payable,CC,04/01/2012,PAY00442612,800.00,Revenue,Payment to Individual
Brighton & Hove City Council,http://statistics.data.gov.uk/id/local-authority/00ML,Housing Services General Fund,BVAHOG,Homelessness,HML,Premises Related,C,Rents Payable,CC,04/01/2012,PAY00442614,925.00,Revenue,Payment to Individual
Brighton & Hove City Council,http://statistics.data.gov.uk/id/local-authority/00ML,Children�s Social Care,BVACSC,Child Srvcs - Residential Svcs,FLR,Third Party Payments,F,Other Establishments,FH,04/01/2012,PAY00442617,11000.00,Revenue,Families for Children Residential Services
Brighton & Hove City Council,http://statistics.data.gov.uk/id/local-authority/00ML,Children�s Social Care,BVACSC,Child Srvcs - Residential Svcs,FLR,Third Party Payments,F,Other Establishments,FH,04/01/2012,PAY00442623,11200.00,Revenue,The Corner House Project Limited
Brighton & Hove City Council,http://statistics.data.gov.uk/id/local-authority/00ML,Housing Services General Fund,BVAHOG,Homelessness,HML,Premises Related,C,Rents Payable,CC,04/01/2012,PAY00442624,620.00,Revenue,Payment to Individual
Brighton & Hove City Council,http://statistics.data.gov.uk/id/local-authority/00ML,Housing Services General Fund,BVAHOG,Homelessness,HML,Premises Related,C,Rents Payable,CC,04/01/2012,PAY00442626,790.00,Revenue,Payment to Individual
Brighton & Hove City Council,http://statistics.data.gov.uk/id/local-authority/00ML,Housing Services General Fund,BVAHOG,Homelessness,HML,Premises Related,C,Rents Payable,CC,04/01/2012,PAY00442628,1900.00,Revenue,Payment to Individual
Brighton & Hove City Council,http://statistics.data.gov.uk/id/local-authority/00ML,Housing Services General Fund,BVAHOG,Homelessness,HML,Premises Related,C,Rents Payable,CC,04/01/2012,PAY00442632,825.00,Revenue,Payment to Individual
Brighton & Hove City Council,http://statistics.data.gov.uk/id/local-authority/00ML,Housing Services General Fund,BVAHOG,Homelessness,HML,Premises Related,C,Rents Payable,CC,04/01/2012,PAY00442635,800.00,Revenue,Payment to Individual
Brighton & Hove City Council,http://statistics.data.gov.uk/id/local-authority/00ML,Central Services To The Public,BVACEN,Support Services (SSC),PPT,Supplies and Services,E,Services,EF,04/01/2012,PAY00442636,2750.00,Revenue,Delib Limited
Brighton & Hove City Council,http://statistics.data.gov.uk/id/local-authority/00ML,Adult Social Care,BVASOC,S Svcs - Learning Disability,LDY,Third Party Payments,F,Other Establishments,FH,04/01/2012,PAY00442637,983.67,Revenue,Reside Housing Association
Brighton & Hove City Council,http://statistics.data.gov.uk/id/local-authority/00ML,Adult Social Care,BVASOC,S Svcs - Older People Svcs,PPL,Customer n Client Receipts,M,Fees n Charges,MB,04/01/2012,PAY00442643,-459.00,Revenue,Tower Bridge Homes Care Ltd
Brighton & Hove City Council,http://statistics.data.gov.uk/id/local-authority/00ML,Adult Social Care,BVASOC,S Svcs - Older People Svcs,PPL,Third Party Payments,F,Other Establishments,FH,04/01/2012,PAY00442643,1880.00,Revenue,Tower Bridge Homes Care Ltd
Brighton & Hove City Council,http://statistics.data.gov.uk/id/local-authority/00ML,Housing Services General Fund,BVAHOG,Homelessness,HML,Customer n Client Receipts,M,Fees n Charges,MB,04/01/2012,PAY00442645,32706.00,Revenue,Brighton and Hove Seaside Community Homes Ltd
Brighton & Hove City Council,http://statistics.data.gov.uk/id/local-authority/00ML,Cultural and Related Services,BVACUL,Open Spaces,PEN,Third Party Payments,F,Private Contractors,FJ,04/01/2012,PAY00442647,4210.00,Revenue,Foresport Fencing Ltd
Brighton & Hove City Council,http://statistics.data.gov.uk/id/local-authority/00ML,Central Services To The Public,BVACEN,Support Services (SSC),PPT,Premises Related,C,Repair Maint n Alterations,CA,04/01/2012,PAY00442650,761.50,Revenue,Eco Van & Recycling Man
Brighton & Hove City Council,http://statistics.data.gov.uk/id/local-authority/00ML,Non SERCOP,BVANON,Cap - Mgmnt & Support Services,4PT,New Construction n Conversion,PB,Level not required,NR5026,04/01/2012,PAY00442650,4000.00,Capital,Eco Van & Recycling Man
Brighton & Hove City Council,http://statistics.data.gov.uk/id/local-authority/00ML,Housing Services General Fund,BVAHOG,Homelessness,HML,Premises Related,C,Rents Payable,CC,04/01/2012,PAY00442652,1250.00,Revenue,Payment to Individual
Brighton & Hove City Council,http://statistics.data.gov.uk/id/local-authority/00ML,Housing Services General Fund,BVAHOG,Homelessness,HML,Premises Related,C,Rents Payable,CC,04/01/2012,PAY00442659,1000.00,Revenue,Payment to Individual
Brighton & Hove City Council,http://statistics.data.gov.uk/id/local-authority/00ML,Adult Social Care,BVASOC,S Svcs - Older People Svcs,PPL,Third Party Payments,F,Other Establishments,FH,04/01/2012,PAY00442661,1780.00,Revenue,HC-One Limited
Brighton & Hove City Council,http://statistics.data.gov.uk/id/local-authority/00ML,Central Services To The Public,BVACEN,Support Services (SSC),PPT,Premises Related,C,Repair Maint n Alterations,CA,04/01/2012,PAY00442664,439.00,Revenue,Holden Conservation Services 
Brighton & Hove City Council,http://statistics.data.gov.uk/id/local-authority/00ML,Cultural and Related Services,BVACUL,Culture & Heritage,CHG,Supplies and Services,E,Miscellaneous Expenses,EM,04/01/2012,PAY00442665,500.00,Revenue,Payment to Individual
Brighton & Hove City Council,http://statistics.data.gov.uk/id/local-authority/00ML,Cultural and Related Services,BVACUL,Culture & Heritage,CHG,Supplies and Services,E,Grants n Subscriptions,EK,04/01/2012,PAY00442667,1562.50,Revenue,The Assoc of British Profess Conference Organisers
Brighton & Hove City Council,http://statistics.data.gov.uk/id/local-authority/00ML,Housing Services Revnue Acc,BVAHOU,Hsing Strategy - HRA,HGT,Supplies and Services,E,Miscellaneous Expenses,EM,04/01/2012,PAY00442671,2000.00,Revenue,Payment to Individual
Brighton & Hove City Council,http://statistics.data.gov.uk/id/local-authority/00ML,Housing Services Revnue Acc,BVAHOU,Hsing Strategy - HRA,HGT,Supplies and Services,E,Miscellaneous Expenses,EM,04/01/2012,PAY00442672,2377.58,Revenue,Payment to Individual
Brighton & Hove City Council,http://statistics.data.gov.uk/id/local-authority/00ML,Highways and Transportation,BVAHRT,Traffic Mgmnt and Road Safety,TMR,Premises Related,C,Repair Maint n Alterations,CA,04/01/2012,PAY00442775,24441.75,Revenue,Trapeze ITS Switzerland GmbH
Brighton & Hove City Council,http://statistics.data.gov.uk/id/local-authority/00ML,Highways and Transportation,BVAHRT,Traffic Mgmnt and Road Safety,TMR,Supplies and Services,E,Services,EF,04/01/2012,PAY00442775,12922.00,Revenue,Trapeze ITS Switzerland GmbH
Brighton & Hove City Council,http://statistics.data.gov.uk/id/local-authority/00ML,Adult Social Care,BVASOC,S Svcs - Physical Disability,PDY,Supplies and Services,E,Miscellaneous Expenses,EM,05/01/2012,PAY489740,651.00,Revenue,Dillistone Funeral Service
Brighton & Hove City Council,http://statistics.data.gov.uk/id/local-authority/00ML,Planning Services,BVAPLA,Development Control,DEV,Customer n Client Receipts,M,Fees n Charges,MB,05/01/2012,PAY489743,500.00,Revenue,Caffyns Plc
Brighton & Hove City Council,http://statistics.data.gov.uk/id/local-authority/00ML,Children�s Social Care,BVACSC,Management Services (DEC),MGT,Supplies and Services,E,Services,EF,05/01/2012,PAY489745,1801.67,Revenue,Payment to Individual
Brighton & Hove City Council,http://statistics.data.gov.uk/id/local-authority/00ML,Children�s Social Care,BVACSC,Management Services (DEC),MGT,Supplies and Services,E,Services,EF,05/01/2012,PAY489746,696.00,Revenue,Payment to Individual
Brighton & Hove City Council,http://statistics.data.gov.uk/id/local-authority/00ML,Housing Services Revnue Acc,BVAHOU,Hsing Strategy - HRA,HGT,Supplies and Services,E,Miscellaneous Expenses,EM,05/01/2012,PAY489759,1452.38,Revenue,Payment to Individual
Brighton & Hove City Council,http://statistics.data.gov.uk/id/local-authority/00ML,Adult Social Care,BVASOC,S Svcs - Learning Disability,LDY,Customer n Client Receipts,M,Fees n Charges,MB,05/01/2012,PAY489760,4315.71,Revenue,Payment to Individual
Brighton & Hove City Council,http://statistics.data.gov.uk/id/local-authority/00ML,Adult Social Care,BVASOC,S Svcs - Physical Disability,PDY,Supplies and Services,E,Miscellaneous Expenses,EM,05/01/2012,PAY489763,3163.03,Revenue,Payment to Individual
Brighton & Hove City Council,http://statistics.data.gov.uk/id/local-authority/00ML,Adult Social Care,BVASOC,S Svcs - Physical Disability,PDY,Supplies and Services,E,Miscellaneous Expenses,EM,05/01/2012,PAY489764,3163.03,Revenue,Payment to Individual
Brighton & Hove City Council,http://statistics.data.gov.uk/id/local-authority/00ML,Children�s Social Care,BVACSC,Management Services (DEC),MGT,Supplies and Services,E,Services,EF,05/01/2012,PAY489766,2635.17,Revenue,Payment to Individual
Brighton & Hove City Council,http://statistics.data.gov.uk/id/local-authority/00ML,Cultural and Related Services,BVACUL,Culture & Heritage,CHG,Supplies and Services,E,Services,EF,05/01/2012,PAY489768,440.00,Revenue,Payment to Individual
Brighton & Hove City Council,http://statistics.data.gov.uk/id/local-authority/00ML,Non SERCOP,BVANON,Trusts,TRT,Supplies and Services,E,Services,EF,05/01/2012,PAY489768,740.00,Revenue,Payment to Individual
Brighton & Hove City Council,http://statistics.data.gov.uk/id/local-authority/00ML,Adult Social Care,BVASOC,S Svcs - Learning Disability,LDY,Supplies and Services,E,Catering,EB,05/01/2012,PAY489769,197.17,Revenue,Payment to Individual
Brighton & Hove City Council,http://statistics.data.gov.uk/id/local-authority/00ML,Adult Social Care,BVASOC,S Svcs - Older People Svcs,PPL,Supplies and Services,E,Catering,EB,05/01/2012,PAY489769,313.20,Revenue,Payment to Individual
Brighton & Hove City Council,http://statistics.data.gov.uk/id/local-authority/00ML,Central Services To The Public,BVACEN,Support Services (SSC),PPT,Supplies and Services,E,Services,EF,05/01/2012,PAY489830,9673.00,Revenue,Payment to Individual
Brighton & Hove City Council,http://statistics.data.gov.uk/id/local-authority/00ML,Environment and Regulatory Ser,BVAERS,Management Services (DEC),MGT,Transport Related,D,Direct Transport Costs,DA,05/01/2012,PAY489832,1275.00,Revenue,Post Office Ltd
Brighton & Hove City Council,http://statistics.data.gov.uk/id/local-authority/00ML,Housing Services General Fund,BVAHOG,Homelessness,HML,Premises Related,C,Rents Payable,CC,06/01/2012,PAY00442778,775.00,Revenue,Payment to Individual
Brighton & Hove City Council,http://statistics.data.gov.uk/id/local-authority/00ML,Adult Social Care,BVASOC,S Svcs - Mental Health,MHT,Customer n Client Receipts,M,Fees n Charges,MB,06/01/2012,PAY00442780,-481.24,Revenue,Payment to Individual
Brighton & Hove City Council,http://statistics.data.gov.uk/id/local-authority/00ML,Adult Social Care,BVASOC,S Svcs - Mental Health,MHT,Third Party Payments,F,Other Establishments,FH,06/01/2012,PAY00442780,1176.00,Revenue,Payment to Individual
Brighton & Hove City Council,http://statistics.data.gov.uk/id/local-authority/00ML,Adult Social Care,BVASOC,S Svcs - Older People Svcs,PPL,Customer n Client Receipts,M,Fees n Charges,MB,06/01/2012,PAY00442783,-1452.58,Revenue,Roshni Rest Home
Brighton & Hove City Council,http://statistics.data.gov.uk/id/local-authority/00ML,Adult Social Care,BVASOC,S Svcs - Older People Svcs,PPL,Third Party Payments,F,Other Establishments,FH,06/01/2012,PAY00442783,5090.90,Revenue,Roshni Rest Home
Brighton & Hove City Council,http://statistics.data.gov.uk/id/local-authority/00ML,Housing Services General Fund,BVAHOG,Homelessness,HML,Premises Related,C,Rents Payable,CC,06/01/2012,PAY00442784,599.00,Revenue,Payment to Individual
Brighton & Hove City Council,http://statistics.data.gov.uk/id/local-authority/00ML,Adult Social Care,BVASOC,S Svcs - Learning Disability,LDY,Customer n Client Receipts,M,Fees n Charges,MB,06/01/2012,PAY00442786,-56.00,Revenue,Payment to Individual
Brighton & Hove City Council,http://statistics.data.gov.uk/id/local-authority/00ML,Adult Social Care,BVASOC,S Svcs - Learning Disability,LDY,Third Party Payments,F,Other Establishments,FH,06/01/2012,PAY00442786,1071.20,Revenue,Payment to Individual
Brighton & Hove City Council,http://statistics.data.gov.uk/id/local-authority/00ML,Adult Social Care,BVASOC,S Svcs - Older People Svcs,PPL,Customer n Client Receipts,M,Fees n Charges,MB,06/01/2012,PAY00442788,-180.00,Revenue,Payment to Individual
Brighton & Hove City Council,http://statistics.data.gov.uk/id/local-authority/00ML,Adult Social Care,BVASOC,S Svcs - Older People Svcs,PPL,Third Party Payments,F,Other Establishments,FH,06/01/2012,PAY00442788,786.88,Revenue,Payment to Individual
Brighton & Hove City Council,http://statistics.data.gov.uk/id/local-authority/00ML,Adult Social Care,BVASOC,S Svcs - Older People Svcs,PPL,Third Party Payments,F,Other Establishments,FH,06/01/2012,PAY00442790,529.60,Revenue,Payment to Individual
Brighton & Hove City Council,http://statistics.data.gov.uk/id/local-authority/00ML,Adult Social Care,BVASOC,S Svcs - Learning Disability,LDY,Third Party Payments,F,Other Establishments,FH,06/01/2012,PAY00442791,789.44,Revenue,Payment to Individual
Brighton & Hove City Council,http://statistics.data.gov.uk/id/local-authority/00ML,Adult Social Care,BVASOC,S Svcs - Physical Disability,PDY,Third Party Payments,F,Other Establishments,FH,06/01/2012,PAY00442793,4060.16,Revenue,Payment to Individual
Brighton & Hove City Council,http://statistics.data.gov.uk/id/local-authority/00ML,Housing Services General Fund,BVAHOG,Homelessness,HML,Premises Related,C,Rents Payable,CC,06/01/2012,PAY00442797,665.00,Revenue,Payment to Individual
Brighton & Hove City Council,http://statistics.data.gov.uk/id/local-authority/00ML,Housing Services General Fund,BVAHOG,Homelessness,HML,Premises Related,C,Rents Payable,CC,06/01/2012,PAY00442798,725.00,Revenue,Payment to Individual
Brighton & Hove City Council,http://statistics.data.gov.uk/id/local-authority/00ML,Housing Services General Fund,BVAHOG,Homelessness,HML,Premises Related,C,Rents Payable,CC,06/01/2012,PAY00442799,900.00,Revenue,Payment to Individual
Brighton & Hove City Council,http://statistics.data.gov.uk/id/local-authority/00ML,Highways and Transportation,BVAHRT,Traffic Mgmnt and Road Safety,TMR,Supplies and Services,E,Services,EF,06/01/2012,PAY00442802,11895.00,Revenue,Desktop Display
Brighton & Hove City Council,http://statistics.data.gov.uk/id/local-authority/00ML,Adult Social Care,BVASOC,S Svcs - Mental Health,MHT,Customer n Client Receipts,M,Fees n Charges,MB,06/01/2012,PAY00442803,-1088.00,Revenue,Payment to Individual
Brighton & Hove City Council,http://statistics.data.gov.uk/id/local-authority/00ML,Adult Social Care,BVASOC,S Svcs - Mental Health,MHT,Third Party Payments,F,Other Establishments,FH,06/01/2012,PAY00442803,5172.00,Revenue,Payment to Individual
Brighton & Hove City Council,http://statistics.data.gov.uk/id/local-authority/00ML,Adult Social Care,BVASOC,S Svcs - Older People Svcs,PPL,Customer n Client Receipts,M,Fees n Charges,MB,06/01/2012,PAY00442804,-1528.25,Revenue,Woodlands Nursing Home
Brighton & Hove City Council,http://statistics.data.gov.uk/id/local-authority/00ML,Adult Social Care,BVASOC,S Svcs - Older People Svcs,PPL,Third Party Payments,F,Other Establishments,FH,06/01/2012,PAY00442804,5732.00,Revenue,Woodlands Nursing Home
Brighton & Hove City Council,http://statistics.data.gov.uk/id/local-authority/00ML,Adult Social Care,BVASOC,S Svcs - Learning Disability,LDY,Customer n Client Receipts,M,Fees n Charges,MB,06/01/2012,PAY00442805,-92.00,Revenue,Payment to Individual
Brighton & Hove City Council,http://statistics.data.gov.uk/id/local-authority/00ML,Adult Social Care,BVASOC,S Svcs - Learning Disability,LDY,Third Party Payments,F,Other Establishments,FH,06/01/2012,PAY00442805,1555.20,Revenue,Payment to Individual
Brighton & Hove City Council,http://statistics.data.gov.uk/id/local-authority/00ML,Adult Social Care,BVASOC,S Svcs - Physical Disability,PDY,Third Party Payments,F,Other Establishments,FH,06/01/2012,PAY00442806,3190.32,Revenue,Mears Care
Brighton & Hove City Council,http://statistics.data.gov.uk/id/local-authority/00ML,Adult Social Care,BVASOC,S Svcs - Learning Disability,LDY,Customer n Client Receipts,M,Fees n Charges,MB,06/01/2012,PAY00442807,-444.00,Revenue,Outlook Foundation
Brighton & Hove City Council,http://statistics.data.gov.uk/id/local-authority/00ML,Adult Social Care,BVASOC,S Svcs - Learning Disability,LDY,Third Party Payments,F,Other Establishments,FH,06/01/2012,PAY00442807,6458.80,Revenue,Outlook Foundation
Brighton & Hove City Council,http://statistics.data.gov.uk/id/local-authority/00ML,Adult Social Care,BVASOC,S Svcs - Mental Health,MHT,Customer n Client Receipts,M,Fees n Charges,MB,06/01/2012,PAY00442808,-740.00,Revenue,Payment to Individual
Brighton & Hove City Council,http://statistics.data.gov.uk/id/local-authority/00ML,Adult Social Care,BVASOC,S Svcs - Mental Health,MHT,Third Party Payments,F,Other Establishments,FH,06/01/2012,PAY00442808,5172.00,Revenue,Payment to Individual
Brighton & Hove City Council,http://statistics.data.gov.uk/id/local-authority/00ML,Adult Social Care,BVASOC,S Svcs - Physical Disability,PDY,Third Party Payments,F,Other Establishments,FH,06/01/2012,PAY00442809,1115.64,Revenue,Payment to Individual
Brighton & Hove City Council,http://statistics.data.gov.uk/id/local-authority/00ML,Adult Social Care,BVASOC,S Svcs - Learning Disability,LDY,Third Party Payments,F,Other Establishments,FH,06/01/2012,PAY00442810,1609.40,Revenue,Payment to Individual
Brighton & Hove City Council,http://statistics.data.gov.uk/id/local-authority/00ML,Children�s Social Care,BVACSC,Child Srvcs - Other Fam Supp,FFX,Third Party Payments,F,Other Establishments,FH,06/01/2012,PAY00442811,56757.50,Revenue,The Children`s Society (Services) Ltd
Brighton & Hove City Council,http://statistics.data.gov.uk/id/local-authority/00ML,Adult Social Care,BVASOC,S Svcs - Learning Disability,LDY,Third Party Payments,F,Other Establishments,FH,06/01/2012,PAY00442813,1355.28,Revenue,Payment to Individual
Brighton & Hove City Council,http://statistics.data.gov.uk/id/local-authority/00ML,Adult Social Care,BVASOC,S Svcs - Learning Disability,LDY,Third Party Payments,F,Other Establishments,FH,06/01/2012,PAY00442814,4040.00,Revenue,Families for Children (South) Ltd
Brighton & Hove City Council,http://statistics.data.gov.uk/id/local-authority/00ML,Children�s Social Care,BVACSC,Child Srvcs - Fostering,FLF,Third Party Payments,F,Other Establishments,FH,06/01/2012,PAY00442814,327.50,Revenue,Families for Children (South) Ltd
Brighton & Hove City Council,http://statistics.data.gov.uk/id/local-authority/00ML,Highways and Transportation,BVAHRT,Parking Services,PRK,Third Party Payments,F,Private Contractors,FJ,06/01/2012,PAY00442815,50688.03,Revenue,NSL Ltd
Brighton & Hove City Council,http://statistics.data.gov.uk/id/local-authority/00ML,Highways and Transportation,BVAHRT,Highways and Roads - Mntnce,HRM,Supplies and Services,E,Equip't Furniture n Materials,EA,06/01/2012,PAY00442816,2978.00,Revenue,Portsdown Office Furniture
Brighton & Hove City Council,http://statistics.data.gov.uk/id/local-authority/00ML,Housing Services General Fund,BVAHOG,Private Sector Hsing Renewal,PHR,Supplies and Services,E,Equip't Furniture n Materials,EA,06/01/2012,PAY00442816,119.00,Revenue,Portsdown Office Furniture
Brighton & Hove City Council,http://statistics.data.gov.uk/id/local-authority/00ML,Adult Social Care,BVASOC,S Svcs - Learning Disability,LDY,Customer n Client Receipts,M,Fees n Charges,MB,06/01/2012,PAY00442817,-36.00,Revenue,Payment to Individual
Brighton & Hove City Council,http://statistics.data.gov.uk/id/local-authority/00ML,Adult Social Care,BVASOC,S Svcs - Learning Disability,LDY,Third Party Payments,F,Other Establishments,FH,06/01/2012,PAY00442817,1180.96,Revenue,Payment to Individual
Brighton & Hove City Council,http://statistics.data.gov.uk/id/local-authority/00ML,Adult Social Care,BVASOC,S Svcs - Physical Disability,PDY,Customer n Client Receipts,M,Fees n Charges,MB,06/01/2012,PAY00442820,-2396.20,Revenue,Payment to Individual
Brighton & Hove City Council,http://statistics.data.gov.uk/id/local-authority/00ML,Adult Social Care,BVASOC,S Svcs - Physical Disability,PDY,Third Party Payments,F,Other Establishments,FH,06/01/2012,PAY00442820,7664.80,Revenue,Payment to Individual
Brighton & Hove City Council,http://statistics.data.gov.uk/id/local-authority/00ML,Adult Social Care,BVASOC,S Svcs - Learning Disability,LDY,Third Party Payments,F,Other Establishments,FH,06/01/2012,PAY00442821,776.00,Revenue,Payment to Individual
Brighton & Hove City Council,http://statistics.data.gov.uk/id/local-authority/00ML,Adult Social Care,BVASOC,S Svcs - Learning Disability,LDY,Customer n Client Receipts,M,Fees n Charges,MB,06/01/2012,PAY00442825,-504.00,Revenue,Caburn Support Services
Brighton & Hove City Council,http://statistics.data.gov.uk/id/local-authority/00ML,Adult Social Care,BVASOC,S Svcs - Learning Disability,LDY,Third Party Payments,F,Other Establishments,FH,06/01/2012,PAY00442825,10481.25,Revenue,Caburn Support Services
Brighton & Hove City Council,http://statistics.data.gov.uk/id/local-authority/00ML,Adult Social Care,BVASOC,S Svcs - Mental Health,MHT,Customer n Client Receipts,M,Fees n Charges,MB,06/01/2012,PAY00442825,-37.00,Revenue,Caburn Support Services
Brighton & Hove City Council,http://statistics.data.gov.uk/id/local-authority/00ML,Adult Social Care,BVASOC,S Svcs - Mental Health,MHT,Third Party Payments,F,Other Establishments,FH,06/01/2012,PAY00442825,66.00,Revenue,Caburn Support Services
Brighton & Hove City Council,http://statistics.data.gov.uk/id/local-authority/00ML,Adult Social Care,BVASOC,S Svcs - Learning Disability,LDY,Third Party Payments,F,Other Establishments,FH,06/01/2012,PAY00442826,8986.00,Revenue,Southdown Housing Association
Brighton & Hove City Council,http://statistics.data.gov.uk/id/local-authority/00ML,Adult Social Care,BVASOC,S Svcs - Other Adult Services,ADT,Third Party Payments,F,Other Establishments,FH,06/01/2012,PAY00442827,2400.00,Revenue,Sussex Downs College
Brighton & Hove City Council,http://statistics.data.gov.uk/id/local-authority/00ML,Adult Social Care,BVASOC,S Svcs - Learning Disability,LDY,Customer n Client Receipts,M,Fees n Charges,MB,06/01/2012,PAY00442829,-112.00,Revenue,Payment to Individual
Brighton & Hove City Council,http://statistics.data.gov.uk/id/local-authority/00ML,Adult Social Care,BVASOC,S Svcs - Learning Disability,LDY,Third Party Payments,F,Other Establishments,FH,06/01/2012,PAY00442829,4249.44,Revenue,Payment to Individual
Brighton & Hove City Council,http://statistics.data.gov.uk/id/local-authority/00ML,Adult Social Care,BVASOC,S Svcs - Physical Disability,PDY,Customer n Client Receipts,M,Fees n Charges,MB,06/01/2012,PAY00442831,-1556.00,Revenue,Payment to Individual
Brighton & Hove City Council,http://statistics.data.gov.uk/id/local-authority/00ML,Adult Social Care,BVASOC,S Svcs - Physical Disability,PDY,Third Party Payments,F,Other Establishments,FH,06/01/2012,PAY00442831,4862.00,Revenue,Payment to Individual
Brighton & Hove City Council,http://statistics.data.gov.uk/id/local-authority/00ML,Cultural and Related Services,BVACUL,Culture & Heritage,CHG,Supplies and Services,E,Print Stat & Gen Office Exps,ED,06/01/2012,PAY00442832,5100.00,Revenue,Pureprint Group Ltd t/a Beacon Press
Brighton & Hove City Council,http://statistics.data.gov.uk/id/local-authority/00ML,Adult Social Care,BVASOC,S Svcs - Learning Disability,LDY,Customer n Client Receipts,M,Fees n Charges,MB,06/01/2012,PAY00442834,-295.00,Revenue,The Regard Partnership Ltd
Brighton & Hove City Council,http://statistics.data.gov.uk/id/local-authority/00ML,Adult Social Care,BVASOC,S Svcs - Learning Disability,LDY,Third Party Payments,F,Other Establishments,FH,06/01/2012,PAY00442834,6474.56,Revenue,The Regard Partnership Ltd
Brighton & Hove City Council,http://statistics.data.gov.uk/id/local-authority/00ML,Adult Social Care,BVASOC,S Svcs - Learning Disability,LDY,Customer n Client Receipts,M,Fees n Charges,MB,06/01/2012,PAY00442838,-600.00,Revenue,Payment to Individual
Brighton & Hove City Council,http://statistics.data.gov.uk/id/local-authority/00ML,Adult Social Care,BVASOC,S Svcs - Learning Disability,LDY,Third Party Payments,F,Other Establishments,FH,06/01/2012,PAY00442838,5569.20,Revenue,Payment to Individual
Brighton & Hove City Council,http://statistics.data.gov.uk/id/local-authority/00ML,Adult Social Care,BVASOC,S Svcs - Mental Health,MHT,Customer n Client Receipts,M,Fees n Charges,MB,06/01/2012,PAY00442840,-520.00,Revenue,Payment to Individual
Brighton & Hove City Council,http://statistics.data.gov.uk/id/local-authority/00ML,Adult Social Care,BVASOC,S Svcs - Mental Health,MHT,Third Party Payments,F,Other Establishments,FH,06/01/2012,PAY00442840,3448.00,Revenue,Payment to Individual
Brighton & Hove City Council,http://statistics.data.gov.uk/id/local-authority/00ML,Adult Social Care,BVASOC,S Svcs - Mental Health,MHT,Customer n Client Receipts,M,Fees n Charges,MB,06/01/2012,PAY00442841,-1676.00,Revenue,Payment to Individual
Brighton & Hove City Council,http://statistics.data.gov.uk/id/local-authority/00ML,Adult Social Care,BVASOC,S Svcs - Mental Health,MHT,Third Party Payments,F,Other Establishments,FH,06/01/2012,PAY00442841,5172.00,Revenue,Payment to Individual
Brighton & Hove City Council,http://statistics.data.gov.uk/id/local-authority/00ML,Children�s Social Care,BVACSC,Child Srvcs - Leaving Care,FAL,Supplies and Services,E,Catering,EB,06/01/2012,PAY00442843,88.00,Revenue,The Imprest Holder
Brighton & Hove City Council,http://statistics.data.gov.uk/id/local-authority/00ML,Children�s Social Care,BVACSC,Child Srvcs - Leaving Care,FAL,Supplies and Services,E,Communications n Computing,EH,06/01/2012,PAY00442843,28.50,Revenue,The Imprest Holder
Brighton & Hove City Council,http://statistics.data.gov.uk/id/local-authority/00ML,Children�s Social Care,BVACSC,Child Srvcs - Leaving Care,FAL,Supplies and Services,E,Equip't Furniture n Materials,EA,06/01/2012,PAY00442843,370.05,Revenue,The Imprest Holder
Brighton & Hove City Council,http://statistics.data.gov.uk/id/local-authority/00ML,Children�s Social Care,BVACSC,Child Srvcs - Leaving Care,FAL,Supplies and Services,E,Print Stat & Gen Office Exps,ED,06/01/2012,PAY00442843,19.24,Revenue,The Imprest Holder
Brighton & Hove City Council,http://statistics.data.gov.uk/id/local-authority/00ML,Children�s Social Care,BVACSC,Child Srvcs - Leaving Care,FAL,Third Party Payments,F,Other Establishments,FH,06/01/2012,PAY00442843,138.40,Revenue,The Imprest Holder
Brighton & Hove City Council,http://statistics.data.gov.uk/id/local-authority/00ML,Children�s Social Care,BVACSC,Child Srvcs - Leaving Care,FAL,Transfer Payments,G,Other Transfer Payments,GD,06/01/2012,PAY00442843,4608.70,Revenue,The Imprest Holder
Brighton & Hove City Council,http://statistics.data.gov.uk/id/local-authority/00ML,Children�s Social Care,BVACSC,Child Srvcs - Leaving Care,FAL,Transport Related,D,Public Transport,DD,06/01/2012,PAY00442843,16.45,Revenue,The Imprest Holder
Brighton & Hove City Council,http://statistics.data.gov.uk/id/local-authority/00ML,Adult Social Care,BVASOC,S Svcs - Physical Disability,PDY,Customer n Client Receipts,M,Fees n Charges,MB,06/01/2012,PAY00442844,-2155.40,Revenue,MACS
Brighton & Hove City Council,http://statistics.data.gov.uk/id/local-authority/00ML,Adult Social Care,BVASOC,S Svcs - Physical Disability,PDY,Third Party Payments,F,Other Establishments,FH,06/01/2012,PAY00442844,6629.20,Revenue,MACS
Brighton & Hove City Council,http://statistics.data.gov.uk/id/local-authority/00ML,Adult Social Care,BVASOC,Hsing Welfare,HGW,Supplies and Services,E,Communications n Computing,EH,06/01/2012,PAY00442845,50.00,Revenue,Royal Mail Group Ltd
Brighton & Hove City Council,http://statistics.data.gov.uk/id/local-authority/00ML,Adult Social Care,BVASOC,Support Services (SSC),PPT,Supplies and Services,E,Communications n Computing,EH,06/01/2012,PAY00442845,11.62,Revenue,Royal Mail Group Ltd
Brighton & Hove City Council,http://statistics.data.gov.uk/id/local-authority/00ML,Central Services To The Public,BVACEN,Holding Accounts,PPH,Supplies and Services,E,Communications n Computing,EH,06/01/2012,PAY00442845,30276.29,Revenue,Royal Mail Group Ltd
Brighton & Hove City Council,http://statistics.data.gov.uk/id/local-authority/00ML,Central Services To The Public,BVACEN,Local Tax Collection,LTC,Supplies and Services,E,Communications n Computing,EH,06/01/2012,PAY00442845,125.00,Revenue,Royal Mail Group Ltd
Brighton & Hove City Council,http://statistics.data.gov.uk/id/local-authority/00ML,Housing Services General Fund,BVAHOG,Hsing Benefits,HGB,Supplies and Services,E,Communications n Computing,EH,06/01/2012,PAY00442845,125.00,Revenue,Royal Mail Group Ltd
Brighton & Hove City Council,http://statistics.data.gov.uk/id/local-authority/00ML,Housing Services Revnue Acc,BVAHOU,Hsing Management - HRA,HGM,Supplies and Services,E,Communications n Computing,EH,06/01/2012,PAY00442845,5.86,Revenue,Royal Mail Group Ltd
Brighton & Hove City Council,http://statistics.data.gov.uk/id/local-authority/00ML,Adult Social Care,BVASOC,S Svcs - Learning Disability,LDY,Customer n Client Receipts,M,Fees n Charges,MB,06/01/2012,PAY00442846,-68.00,Revenue,Payment to Individual
Brighton & Hove City Council,http://statistics.data.gov.uk/id/local-authority/00ML,Adult Social Care,BVASOC,S Svcs - Learning Disability,LDY,Third Party Payments,F,Other Establishments,FH,06/01/2012,PAY00442846,8213.92,Revenue,Payment to Individual
Brighton & Hove City Council,http://statistics.data.gov.uk/id/local-authority/00ML,Cultural and Related Services,BVACUL,Culture & Heritage,CHG,Customer n Client Receipts,M,Fees n Charges,MB,06/01/2012,PAY00442847,-14000.00,Revenue,Helicon Mountain Ltd
Brighton & Hove City Council,http://statistics.data.gov.uk/id/local-authority/00ML,Cultural and Related Services,BVACUL,Culture & Heritage,CHG,Customer n Client Receipts,M,Sales,MA,06/01/2012,PAY00442847,70696.25,Revenue,Helicon Mountain Ltd
Brighton & Hove City Council,http://statistics.data.gov.uk/id/local-authority/00ML,Cultural and Related Services,BVACUL,Culture & Heritage,CHG,Supplies and Services,E,Communications n Computing,EH,06/01/2012,PAY00442847,-18.40,Revenue,Helicon Mountain Ltd
Brighton & Hove City Council,http://statistics.data.gov.uk/id/local-authority/00ML,Cultural and Related Services,BVACUL,Culture & Heritage,CHG,Supplies and Services,E,Miscellaneous Expenses,EM,06/01/2012,PAY00442847,-2238.19,Revenue,Helicon Mountain Ltd
Brighton & Hove City Council,http://statistics.data.gov.uk/id/local-authority/00ML,Adult Social Care,BVASOC,S Svcs - Older People Svcs,PPL,Third Party Payments,F,Other Establishments,FH,06/01/2012,PAY00442848,818.64,Revenue,Payment to Individual
Brighton & Hove City Council,http://statistics.data.gov.uk/id/local-authority/00ML,Adult Social Care,BVASOC,S Svcs - Physical Disability,PDY,Third Party Payments,F,Other Establishments,FH,06/01/2012,PAY00442850,1882.76,Revenue,Payment to Individual
Brighton & Hove City Council,http://statistics.data.gov.uk/id/local-authority/00ML,Adult Social Care,BVASOC,S Svcs - Learning Disability,LDY,Third Party Payments,F,Other Establishments,FH,06/01/2012,PAY00442854,8371.64,Revenue,The Bevern Trust
Brighton & Hove City Council,http://statistics.data.gov.uk/id/local-authority/00ML,Adult Social Care,BVASOC,S Svcs - Physical Disability,PDY,Third Party Payments,F,Other Establishments,FH,06/01/2012,PAY00442855,4450.92,Revenue,Payment to Individual
Brighton & Hove City Council,http://statistics.data.gov.uk/id/local-authority/00ML,Adult Social Care,BVASOC,S Svcs - Older People Svcs,PPL,Customer n Client Receipts,M,Fees n Charges,MB,06/01/2012,PAY00442856,-128.00,Revenue,Payment to Individual
Brighton & Hove City Council,http://statistics.data.gov.uk/id/local-authority/00ML,Adult Social Care,BVASOC,S Svcs - Older People Svcs,PPL,Third Party Payments,F,Other Establishments,FH,06/01/2012,PAY00442856,1187.24,Revenue,Payment to Individual
Brighton & Hove City Council,http://statistics.data.gov.uk/id/local-authority/00ML,Adult Social Care,BVASOC,S Svcs - Other Adult Services,ADT,Third Party Payments,F,Other Establishments,FH,06/01/2012,PAY00442857,665.84,Revenue,Payment to Individual
Brighton & Hove City Council,http://statistics.data.gov.uk/id/local-authority/00ML,Adult Social Care,BVASOC,S Svcs - Physical Disability,PDY,Third Party Payments,F,Other Establishments,FH,06/01/2012,PAY00442858,2444.56,Revenue,Payment to Individual
Brighton & Hove City Council,http://statistics.data.gov.uk/id/local-authority/00ML,Adult Social Care,BVASOC,S Svcs - Mental Health,MHT,Customer n Client Receipts,M,Fees n Charges,MB,06/01/2012,PAY00442859,-75.60,Revenue,Care UK Homecare
Brighton & Hove City Council,http://statistics.data.gov.uk/id/local-authority/00ML,Adult Social Care,BVASOC,S Svcs - Mental Health,MHT,Third Party Payments,F,Other Establishments,FH,06/01/2012,PAY00442859,144.96,Revenue,Care UK Homecare
Brighton & Hove City Council,http://statistics.data.gov.uk/id/local-authority/00ML,Adult Social Care,BVASOC,S Svcs - Older People Svcs,PPL,Customer n Client Receipts,M,Fees n Charges,MB,06/01/2012,PAY00442859,-1597.80,Revenue,Care UK Homecare
Brighton & Hove City Council,http://statistics.data.gov.uk/id/local-authority/00ML,Adult Social Care,BVASOC,S Svcs - Older People Svcs,PPL,Third Party Payments,F,Other Establishments,FH,06/01/2012,PAY00442859,8275.12,Revenue,Care UK Homecare
Brighton & Hove City Council,http://statistics.data.gov.uk/id/local-authority/00ML,Adult Social Care,BVASOC,S Svcs - Physical Disability,PDY,Customer n Client Receipts,M,Fees n Charges,MB,06/01/2012,PAY00442859,-351.20,Revenue,Care UK Homecare
Brighton & Hove City Council,http://statistics.data.gov.uk/id/local-authority/00ML,Adult Social Care,BVASOC,S Svcs - Physical Disability,PDY,Third Party Payments,F,Other Establishments,FH,06/01/2012,PAY00442859,11573.93,Revenue,Care UK Homecare
Brighton & Hove City Council,http://statistics.data.gov.uk/id/local-authority/00ML,Adult Social Care,BVASOC,S Svcs - Physical Disability,PDY,Third Party Payments,F,Other Establishments,FH,06/01/2012,PAY00442861,6373.48,Revenue,Priory Group Ltd
Brighton & Hove City Council,http://statistics.data.gov.uk/id/local-authority/00ML,Environment and Regulatory Ser,BVAERS,Management Services (DEC),MGT,Transport Related,D,Direct Transport Costs,DA,06/01/2012,PAY00442862,659.44,Revenue,Dennis Eagle Ltd
Brighton & Hove City Council,http://statistics.data.gov.uk/id/local-authority/00ML,Adult Social Care,BVASOC,S Svcs - Older People Svcs,PPL,Customer n Client Receipts,M,Fees n Charges,MB,06/01/2012,PAY00442863,-560.64,Revenue,Yourcare T/A Kelstone Court Home
Brighton & Hove City Council,http://statistics.data.gov.uk/id/local-authority/00ML,Adult Social Care,BVASOC,S Svcs - Older People Svcs,PPL,Third Party Payments,F,Other Establishments,FH,06/01/2012,PAY00442863,2629.20,Revenue,Yourcare T/A Kelstone Court Home
Brighton & Hove City Council,http://statistics.data.gov.uk/id/local-authority/00ML,Adult Social Care,BVASOC,S Svcs - Physical Disability,PDY,Third Party Payments,F,Other Establishments,FH,06/01/2012,PAY00442864,1905.56,Revenue,Payment to Individual
Brighton & Hove City Council,http://statistics.data.gov.uk/id/local-authority/00ML,Children�s Social Care,BVACSC,Child Srvcs - Other Fam Supp,FFX,Third Party Payments,F,Other Establishments,FH,06/01/2012,PAY00442867,5841.50,Revenue,Brighton & Hove Inclusion Project
Brighton & Hove City Council,http://statistics.data.gov.uk/id/local-authority/00ML,Non SERCOP,BVANON,Cap - Social Services,4RV,Plant Machinery n Equipment,PE2,Level not required,NR5025,06/01/2012,PAY00442867,10682.00,Capital,Brighton & Hove Inclusion Project
Brighton & Hove City Council,http://statistics.data.gov.uk/id/local-authority/00ML,Adult Social Care,BVASOC,S Svcs - Physical Disability,PDY,Customer n Client Receipts,M,Fees n Charges,MB,06/01/2012,PAY00442868,-2154.56,Revenue,Payment to Individual
Brighton & Hove City Council,http://statistics.data.gov.uk/id/local-authority/00ML,Adult Social Care,BVASOC,S Svcs - Physical Disability,PDY,Third Party Payments,F,Other Establishments,FH,06/01/2012,PAY00442868,3706.36,Revenue,Payment to Individual
Brighton & Hove City Council,http://statistics.data.gov.uk/id/local-authority/00ML,Adult Social Care,BVASOC,S Svcs - Physical Disability,PDY,Third Party Payments,F,Other Establishments,FH,06/01/2012,PAY00442869,1483.60,Revenue,Payment to Individual
Brighton & Hove City Council,http://statistics.data.gov.uk/id/local-authority/00ML,Central Services To The Public,BVACEN,Non service costs,NVC,Capital Financing Costs,J,Interest payable,JN,06/01/2012,PAY00442871,1799.16,Revenue,KBC Lease (UK) Ltd
Brighton & Hove City Council,http://statistics.data.gov.uk/id/local-authority/00ML,Adult Social Care,BVASOC,S Svcs - Older People Svcs,PPL,Third Party Payments,F,Other Establishments,FH,06/01/2012,PAY00442872,3510.80,Revenue,Payment to Individual
Brighton & Hove City Council,http://statistics.data.gov.uk/id/local-authority/00ML,Adult Social Care,BVASOC,S Svcs - Older People Svcs,PPL,Customer n Client Receipts,M,Fees n Charges,MB,06/01/2012,PAY00442873,-252.00,Revenue,Payment to Individual
Brighton & Hove City Council,http://statistics.data.gov.uk/id/local-authority/00ML,Adult Social Care,BVASOC,S Svcs - Older People Svcs,PPL,Third Party Payments,F,Other Establishments,FH,06/01/2012,PAY00442873,1496.00,Revenue,Payment to Individual
Brighton & Hove City Council,http://statistics.data.gov.uk/id/local-authority/00ML,Cultural and Related Services,BVACUL,Highways and Roads - Mntnce,HRM,Premises Related,C,Repair Maint n Alterations,CA,06/01/2012,PAY00442874,2775.00,Revenue,FJS Building & Property Maintenance Ltd
Brighton & Hove City Council,http://statistics.data.gov.uk/id/local-authority/00ML,Adult Social Care,BVASOC,S Svcs - Mental Health,MHT,Customer n Client Receipts,M,Fees n Charges,MB,06/01/2012,PAY00442875,-612.00,Revenue,Victoria Lodge Care Home
Brighton & Hove City Council,http://statistics.data.gov.uk/id/local-authority/00ML,Adult Social Care,BVASOC,S Svcs - Mental Health,MHT,Third Party Payments,F,Other Establishments,FH,06/01/2012,PAY00442875,3448.00,Revenue,Victoria Lodge Care Home
Brighton & Hove City Council,http://statistics.data.gov.uk/id/local-authority/00ML,Adult Social Care,BVASOC,Management Services (DEC),MGT,Third Party Payments,F,Health Authorities,FC,06/01/2012,PAY00442876,19237.01,Revenue,Brighton & Hove City Teaching PCT
Brighton & Hove City Council,http://statistics.data.gov.uk/id/local-authority/00ML,Adult Social Care,BVASOC,S Svcs - Learning Disability,LDY,Third Party Payments,F,Other Establishments,FH,06/01/2012,PAY00442877,2171.36,Revenue,Payment to Individual
Brighton & Hove City Council,http://statistics.data.gov.uk/id/local-authority/00ML,Adult Social Care,BVASOC,S Svcs - Physical Disability,PDY,Third Party Payments,F,Other Establishments,FH,06/01/2012,PAY00442878,5329.44,Revenue,Payment to Individual
Brighton & Hove City Council,http://statistics.data.gov.uk/id/local-authority/00ML,Housing Services General Fund,BVAHOG,Homelessness,HML,Premises Related,C,Rents Payable,CC,06/01/2012,PAY00442881,620.00,Revenue,Payment to Individual
Brighton & Hove City Council,http://statistics.data.gov.uk/id/local-authority/00ML,Adult Social Care,BVASOC,S Svcs - Physical Disability,PDY,Customer n Client Receipts,M,Fees n Charges,MB,06/01/2012,PAY00442883,-1687.80,Revenue,Payment to Individual
Brighton & Hove City Council,http://statistics.data.gov.uk/id/local-authority/00ML,Adult Social Care,BVASOC,S Svcs - Physical Disability,PDY,Third Party Payments,F,Other Establishments,FH,06/01/2012,PAY00442883,4687.28,Revenue,Payment to Individual
Brighton & Hove City Council,http://statistics.data.gov.uk/id/local-authority/00ML,Highways and Transportation,BVAHRT,Transport plan policy strategy,TPP,Supplies and Services,E,Services,EF,06/01/2012,PAY00442884,4474.00,Revenue,Atkins Ltd/Faithful & Gould Ltd
Brighton & Hove City Council,http://statistics.data.gov.uk/id/local-authority/00ML,Adult Social Care,BVASOC,S Svcs - Mental Health,MHT,Third Party Payments,F,Other Establishments,FH,06/01/2012,PAY00442885,712.06,Revenue,Saga Homecare
Brighton & Hove City Council,http://statistics.data.gov.uk/id/local-authority/00ML,Adult Social Care,BVASOC,S Svcs - Older People Svcs,PPL,Customer n Client Receipts,M,Fees n Charges,MB,06/01/2012,PAY00442885,-5946.00,Revenue,Saga Homecare
Brighton & Hove City Council,http://statistics.data.gov.uk/id/local-authority/00ML,Adult Social Care,BVASOC,S Svcs - Older People Svcs,PPL,Third Party Payments,F,Other Establishments,FH,06/01/2012,PAY00442885,54395.33,Revenue,Saga Homecare
Brighton & Hove City Council,http://statistics.data.gov.uk/id/local-authority/00ML,Adult Social Care,BVASOC,S Svcs - Physical Disability,PDY,Customer n Client Receipts,M,Fees n Charges,MB,06/01/2012,PAY00442885,-377.00,Revenue,Saga Homecare
Brighton & Hove City Council,http://statistics.data.gov.uk/id/local-authority/00ML,Adult Social Care,BVASOC,S Svcs - Physical Disability,PDY,Third Party Payments,F,Other Establishments,FH,06/01/2012,PAY00442885,6198.02,Revenue,Saga Homecare
Brighton & Hove City Council,http://statistics.data.gov.uk/id/local-authority/00ML,Adult Social Care,BVASOC,S Svcs - Learning Disability,LDY,Customer n Client Receipts,M,Fees n Charges,MB,06/01/2012,PAY00442886,-1012.00,Revenue,CMG Limited
Brighton & Hove City Council,http://statistics.data.gov.uk/id/local-authority/00ML,Adult Social Care,BVASOC,S Svcs - Learning Disability,LDY,Third Party Payments,F,Other Establishments,FH,06/01/2012,PAY00442886,63529.44,Revenue,CMG Limited
Brighton & Hove City Council,http://statistics.data.gov.uk/id/local-authority/00ML,Adult Social Care,BVASOC,S Svcs - Older People Svcs,PPL,Customer n Client Receipts,M,Fees n Charges,MB,06/01/2012,PAY00442887,-198.00,Revenue,Prime Care Community Services Ltd
Brighton & Hove City Council,http://statistics.data.gov.uk/id/local-authority/00ML,Adult Social Care,BVASOC,S Svcs - Older People Svcs,PPL,Third Party Payments,F,Other Establishments,FH,06/01/2012,PAY00442887,1323.16,Revenue,Prime Care Community Services Ltd
Brighton & Hove City Council,http://statistics.data.gov.uk/id/local-authority/00ML,Children�s Social Care,BVACSC,Child Srvcs - Leaving Care,FAL,Transfer Payments,G,Other Transfer Payments,GD,06/01/2012,PAY00442889,404.88,Revenue,Sanctuary Housing Association
Brighton & Hove City Council,http://statistics.data.gov.uk/id/local-authority/00ML,Housing Services General Fund,BVAHOG,Homelessness,HML,Premises Related,C,Rents Payable,CC,06/01/2012,PAY00442889,1065.67,Revenue,Sanctuary Housing Association
Brighton & Hove City Council,http://statistics.data.gov.uk/id/local-authority/00ML,Housing Services General Fund,BVAHOG,Homelessness,HML,Premises Related,C,Rents Payable,CC,06/01/2012,PAY00442890,10837.74,Revenue,KEM Property Services Ltd
Brighton & Hove City Council,http://statistics.data.gov.uk/id/local-authority/00ML,Central Services To The Public,BVACEN,Support Services (SSC),PPT,Supplies and Services,E,Miscellaneous Expenses,EM,06/01/2012,PAY00442892,6.00,Revenue,Corporate Petty Cash
Brighton & Hove City Council,http://statistics.data.gov.uk/id/local-authority/00ML,Highways and Transportation,BVAHRT,Highways and Roads - Mntnce,HRM,Supplies and Services,E,Equip't Furniture n Materials,EA,06/01/2012,PAY00442892,8.33,Revenue,Corporate Petty Cash
Brighton & Hove City Council,http://statistics.data.gov.uk/id/local-authority/00ML,Highways and Transportation,BVAHRT,Highways and Roads - Mntnce,HRM,Supplies and Services,E,Print Stat & Gen Office Exps,ED,06/01/2012,PAY00442892,35.71,Revenue,Corporate Petty Cash
Brighton & Hove City Council,http://statistics.data.gov.uk/id/local-authority/00ML,Highways and Transportation,BVAHRT,Highways and Roads - Mntnce,HRM,Transport Related,D,Other Transport Costs,DG,06/01/2012,PAY00442892,29.12,Revenue,Corporate Petty Cash
Brighton & Hove City Council,http://statistics.data.gov.uk/id/local-authority/00ML,Highways and Transportation,BVAHRT,Highways and Roads - Mntnce,HRM,Transport Related,D,Public Transport,DD,06/01/2012,PAY00442892,43.30,Revenue,Corporate Petty Cash
Brighton & Hove City Council,http://statistics.data.gov.uk/id/local-authority/00ML,Housing Services General Fund,BVAHOG,Hsing Strat Advice and RSLs,HGR,Supplies and Services,E,Equip't Furniture n Materials,EA,06/01/2012,PAY00442892,63.57,Revenue,Corporate Petty Cash
Brighton & Hove City Council,http://statistics.data.gov.uk/id/local-authority/00ML,Housing Services General Fund,BVAHOG,Hsing Strat Advice and RSLs,HGR,Supplies and Services,E,Miscellaneous Expenses,EM,06/01/2012,PAY00442892,83.40,Revenue,Corporate Petty Cash
Brighton & Hove City Council,http://statistics.data.gov.uk/id/local-authority/00ML,Housing Services General Fund,BVAHOG,Hsing Strat Advice and RSLs,HGR,Supplies and Services,E,Services,EF,06/01/2012,PAY00442892,140.00,Revenue,Corporate Petty Cash
Brighton & Hove City Council,http://statistics.data.gov.uk/id/local-authority/00ML,Housing Services General Fund,BVAHOG,Hsing Strat Advice and RSLs,HGR,Transport Related,D,Public Transport,DD,06/01/2012,PAY00442892,36.00,Revenue,Corporate Petty Cash
Brighton & Hove City Council,http://statistics.data.gov.uk/id/local-authority/00ML,Housing Services Revnue Acc,BVAHOU,Hsing Management - HRA,HGM,Supplies and Services,E,Equip't Furniture n Materials,EA,06/01/2012,PAY00442892,16.28,Revenue,Corporate Petty Cash
Brighton & Hove City Council,http://statistics.data.gov.uk/id/local-authority/00ML,Housing Services Revnue Acc,BVAHOU,Hsing Management - HRA,HGM,Transport Related,D,Other Transport Costs,DG,06/01/2012,PAY00442892,10.27,Revenue,Corporate Petty Cash
Brighton & Hove City Council,http://statistics.data.gov.uk/id/local-authority/00ML,Housing Services Revnue Acc,BVAHOU,Hsing Management - HRA,HGM,Transport Related,D,Public Transport,DD,06/01/2012,PAY00442892,99.60,Revenue,Corporate Petty Cash
Brighton & Hove City Council,http://statistics.data.gov.uk/id/local-authority/00ML,Housing Services General Fund,BVAHOG,Homelessness,HML,Premises Related,C,Rents Payable,CC,06/01/2012,PAY00442893,675.00,Revenue,Payment to Individual
Brighton & Hove City Council,http://statistics.data.gov.uk/id/local-authority/00ML,Adult Social Care,BVASOC,S Svcs - Older People Svcs,PPL,Customer n Client Receipts,M,Fees n Charges,MB,06/01/2012,PAY00442894,-848.00,Revenue,Payment to Individual
Brighton & Hove City Council,http://statistics.data.gov.uk/id/local-authority/00ML,Adult Social Care,BVASOC,S Svcs - Older People Svcs,PPL,Third Party Payments,F,Other Establishments,FH,06/01/2012,PAY00442894,2576.52,Revenue,Payment to Individual
Brighton & Hove City Council,http://statistics.data.gov.uk/id/local-authority/00ML,Adult Social Care,BVASOC,S Svcs - Learning Disability,LDY,Third Party Payments,F,Other Establishments,FH,06/01/2012,PAY00442895,67.40,Revenue,Allied Healthcare Brighton Domicillary
Brighton & Hove City Council,http://statistics.data.gov.uk/id/local-authority/00ML,Adult Social Care,BVASOC,S Svcs - Mental Health,MHT,Third Party Payments,F,Other Establishments,FH,06/01/2012,PAY00442895,32.80,Revenue,Allied Healthcare Brighton Domicillary
Brighton & Hove City Council,http://statistics.data.gov.uk/id/local-authority/00ML,Adult Social Care,BVASOC,S Svcs - Older People Svcs,PPL,Customer n Client Receipts,M,Fees n Charges,MB,06/01/2012,PAY00442895,-568.00,Revenue,Allied Healthcare Brighton Domicillary
Brighton & Hove City Council,http://statistics.data.gov.uk/id/local-authority/00ML,Adult Social Care,BVASOC,S Svcs - Older People Svcs,PPL,Third Party Payments,F,Other Establishments,FH,06/01/2012,PAY00442895,3733.46,Revenue,Allied Healthcare Brighton Domicillary
Brighton & Hove City Council,http://statistics.data.gov.uk/id/local-authority/00ML,Adult Social Care,BVASOC,S Svcs - Physical Disability,PDY,Customer n Client Receipts,M,Fees n Charges,MB,06/01/2012,PAY00442895,-124.00,Revenue,Allied Healthcare Brighton Domicillary
Brighton & Hove City Council,http://statistics.data.gov.uk/id/local-authority/00ML,Adult Social Care,BVASOC,S Svcs - Physical Disability,PDY,Third Party Payments,F,Other Establishments,FH,06/01/2012,PAY00442895,921.11,Revenue,Allied Healthcare Brighton Domicillary
Brighton & Hove City Council,http://statistics.data.gov.uk/id/local-authority/00ML,Children�s Social Care,BVACSC,Child Srvcs - Residential Svcs,FLR,Third Party Payments,F,Other Establishments,FH,06/01/2012,PAY00442896,10830.00,Revenue,St Michael`s Fellowship
Brighton & Hove City Council,http://statistics.data.gov.uk/id/local-authority/00ML,Housing Services General Fund,BVAHOG,Homelessness,HML,Premises Related,C,Rents Payable,CC,06/01/2012,PAY00442897,1330.00,Revenue,Payment to Individual
Brighton & Hove City Council,http://statistics.data.gov.uk/id/local-authority/00ML,Adult Social Care,BVASOC,S Svcs - Learning Disability,LDY,Third Party Payments,F,Other Establishments,FH,06/01/2012,PAY00442898,1462.24,Revenue,Payment to Individual
Brighton & Hove City Council,http://statistics.data.gov.uk/id/local-authority/00ML,Adult Social Care,BVASOC,S Svcs - Physical Disability,PDY,Third Party Payments,F,Other Establishments,FH,06/01/2012,PAY00442899,3996.00,Revenue,Payment to Individual
Brighton & Hove City Council,http://statistics.data.gov.uk/id/local-authority/00ML,Adult Social Care,BVASOC,S Svcs - Physical Disability,PDY,Customer n Client Receipts,M,Fees n Charges,MB,06/01/2012,PAY00442900,-2220.28,Revenue,Payment to Individual
Brighton & Hove City Council,http://statistics.data.gov.uk/id/local-authority/00ML,Adult Social Care,BVASOC,S Svcs - Physical Disability,PDY,Third Party Payments,F,Other Establishments,FH,06/01/2012,PAY00442900,4047.84,Revenue,Payment to Individual
Brighton & Hove City Council,http://statistics.data.gov.uk/id/local-authority/00ML,Children�s Social Care,BVACSC,Child Srvcs - Other Fam Supp,FFX,Transfer Payments,G,Other Transfer Payments,GD,06/01/2012,PAY00442901,711.40,Revenue,Payment to Individual
Brighton & Hove City Council,http://statistics.data.gov.uk/id/local-authority/00ML,Adult Social Care,BVASOC,S Svcs - Learning Disability,LDY,Third Party Payments,F,Other Establishments,FH,06/01/2012,PAY00442903,3284.76,Revenue,Payment to Individual
Brighton & Hove City Council,http://statistics.data.gov.uk/id/local-authority/00ML,Adult Social Care,BVASOC,S Svcs - Older People Svcs,PPL,Customer n Client Receipts,M,Fees n Charges,MB,06/01/2012,PAY00442904,512.20,Revenue,Anchor Trust Homes (Sycamore Court)
Brighton & Hove City Council,http://statistics.data.gov.uk/id/local-authority/00ML,Adult Social Care,BVASOC,S Svcs - Learning Disability,LDY,Customer n Client Receipts,M,Fees n Charges,MB,06/01/2012,PAY00442905,-1688.00,Revenue,Payment to Individual
Brighton & Hove City Council,http://statistics.data.gov.uk/id/local-authority/00ML,Adult Social Care,BVASOC,S Svcs - Learning Disability,LDY,Third Party Payments,F,Other Establishments,FH,06/01/2012,PAY00442905,3537.36,Revenue,Payment to Individual
Brighton & Hove City Council,http://statistics.data.gov.uk/id/local-authority/00ML,Adult Social Care,BVASOC,S Svcs - Learning Disability,LDY,Third Party Payments,F,Other Establishments,FH,06/01/2012,PAY00442908,1200.24,Revenue,Payment to Individual
Brighton & Hove City Council,http://statistics.data.gov.uk/id/local-authority/00ML,Adult Social Care,BVASOC,S Svcs - Physical Disability,PDY,Third Party Payments,F,Other Establishments,FH,06/01/2012,PAY00442911,1885.00,Revenue,Payment to Individual
Brighton & Hove City Council,http://statistics.data.gov.uk/id/local-authority/00ML,Housing Services General Fund,BVAHOG,Homelessness,HML,Premises Related,C,Rents Payable,CC,06/01/2012,PAY00442913,725.00,Revenue,Payment to Individual
Brighton & Hove City Council,http://statistics.data.gov.uk/id/local-authority/00ML,Adult Social Care,BVASOC,S Svcs - Physical Disability,PDY,Third Party Payments,F,Other Establishments,FH,06/01/2012,PAY00442914,3560.00,Revenue,Payment to Individual
Brighton & Hove City Council,http://statistics.data.gov.uk/id/local-authority/00ML,Adult Social Care,BVASOC,S Svcs - Physical Disability,PDY,Third Party Payments,F,Other Establishments,FH,06/01/2012,PAY00442917,869.60,Revenue,Payment to Individual
Brighton & Hove City Council,http://statistics.data.gov.uk/id/local-authority/00ML,Adult Social Care,BVASOC,S Svcs - Older People Svcs,PPL,Customer n Client Receipts,M,Fees n Charges,MB,06/01/2012,PAY00442920,-196.00,Revenue,Payment to Individual
Brighton & Hove City Council,http://statistics.data.gov.uk/id/local-authority/00ML,Adult Social Care,BVASOC,S Svcs - Older People Svcs,PPL,Third Party Payments,F,Other Establishments,FH,06/01/2012,PAY00442920,1170.68,Revenue,Payment to Individual
Brighton & Hove City Council,http://statistics.data.gov.uk/id/local-authority/00ML,Adult Social Care,BVASOC,S Svcs - Older People Svcs,PPL,Customer n Client Receipts,M,Fees n Charges,MB,06/01/2012,PAY00442921,-172.00,Revenue,Payment to Individual
Brighton & Hove City Council,http://statistics.data.gov.uk/id/local-authority/00ML,Adult Social Care,BVASOC,S Svcs - Older People Svcs,PPL,Third Party Payments,F,Other Establishments,FH,06/01/2012,PAY00442921,915.64,Revenue,Payment to Individual
Brighton & Hove City Council,http://statistics.data.gov.uk/id/local-authority/00ML,Environment and Regulatory Ser,BVAERS,Agricultural and Fisheries,AGF,Third Party Payments,F,Independent Units of Council,FA,06/01/2012,PAY00442923,3577.17,Revenue,Smiths Gore
Brighton & Hove City Council,http://statistics.data.gov.uk/id/local-authority/00ML,Housing Services General Fund,BVAHOG,Homelessness,HML,Premises Related,C,Rents Payable,CC,06/01/2012,PAY00442924,540.00,Revenue,Payment to Individual
Brighton & Hove City Council,http://statistics.data.gov.uk/id/local-authority/00ML,Central Services To The Public,BVACEN,Support Services (SSC),PPT,Premises Related,C,Repair Maint n Alterations,CA,06/01/2012,PAY00442928,2875.00,Revenue,N L C Nova Lift Company Limited
Brighton & Hove City Council,http://statistics.data.gov.uk/id/local-authority/00ML,Adult Social Care,BVASOC,S Svcs - Older People Svcs,PPL,Customer n Client Receipts,M,Fees n Charges,MB,06/01/2012,PAY00442930,-68.00,Revenue,Payment to Individual
Brighton & Hove City Council,http://statistics.data.gov.uk/id/local-authority/00ML,Adult Social Care,BVASOC,S Svcs - Older People Svcs,PPL,Third Party Payments,F,Other Establishments,FH,06/01/2012,PAY00442930,2041.04,Revenue,Payment to Individual
Brighton & Hove City Council,http://statistics.data.gov.uk/id/local-authority/00ML,Housing Services General Fund,BVAHOG,Homelessness,HML,Premises Related,C,Rents Payable,CC,06/01/2012,PAY00442931,2815.29,Revenue,Adelphi Court Services Limited
Brighton & Hove City Council,http://statistics.data.gov.uk/id/local-authority/00ML,Adult Social Care,BVASOC,S Svcs - Physical Disability,PDY,Customer n Client Receipts,M,Fees n Charges,MB,06/01/2012,PAY00442934,-1039.84,Revenue,Payment to Individual
Brighton & Hove City Council,http://statistics.data.gov.uk/id/local-authority/00ML,Adult Social Care,BVASOC,S Svcs - Physical Disability,PDY,Third Party Payments,F,Other Establishments,FH,06/01/2012,PAY00442934,5488.24,Revenue,Payment to Individual
Brighton & Hove City Council,http://statistics.data.gov.uk/id/local-authority/00ML,Adult Social Care,BVASOC,S Svcs - Older People Svcs,PPL,Customer n Client Receipts,M,Fees n Charges,MB,06/01/2012,PAY00442936,-236.00,Revenue,Payment to Individual
Brighton & Hove City Council,http://statistics.data.gov.uk/id/local-authority/00ML,Adult Social Care,BVASOC,S Svcs - Older People Svcs,PPL,Third Party Payments,F,Other Establishments,FH,06/01/2012,PAY00442936,1362.72,Revenue,Payment to Individual
Brighton & Hove City Council,http://statistics.data.gov.uk/id/local-authority/00ML,Adult Social Care,BVASOC,S Svcs - Learning Disability,LDY,Customer n Client Receipts,M,Fees n Charges,MB,06/01/2012,PAY00442937,-194.00,Revenue,Payment to Individual
Brighton & Hove City Council,http://statistics.data.gov.uk/id/local-authority/00ML,Adult Social Care,BVASOC,S Svcs - Learning Disability,LDY,Third Party Payments,F,Other Establishments,FH,06/01/2012,PAY00442937,1010.00,Revenue,Payment to Individual
Brighton & Hove City Council,http://statistics.data.gov.uk/id/local-authority/00ML,Adult Social Care,BVASOC,S Svcs - Older People Svcs,PPL,Customer n Client Receipts,M,Fees n Charges,MB,06/01/2012,PAY00442943,-60.00,Revenue,Payment to Individual
Brighton & Hove City Council,http://statistics.data.gov.uk/id/local-authority/00ML,Adult Social Care,BVASOC,S Svcs - Older People Svcs,PPL,Third Party Payments,F,Other Establishments,FH,06/01/2012,PAY00442943,840.76,Revenue,Payment to Individual
Brighton & Hove City Council,http://statistics.data.gov.uk/id/local-authority/00ML,Central Services To The Public,BVACEN,Support Services (SSC),PPT,Supplies and Services,E,Services,EF,06/01/2012,PAY00442944,5039.45,Revenue,NPS South East Ltd
Brighton & Hove City Council,http://statistics.data.gov.uk/id/local-authority/00ML,Education Services,BVAEDU,Ed - Ed Other - Other,ENF,Third Party Payments,F,Other Local Authorities,FB,06/01/2012,PAY00442944,6648.73,Revenue,NPS South East Ltd
Brighton & Hove City Council,http://statistics.data.gov.uk/id/local-authority/00ML,Non SERCOP,BVANON,Cap - Education Services,4ED,New Construction n Conversion,PB,Level not required,NR5026,06/01/2012,PAY00442944,32212.01,Capital,NPS South East Ltd
Brighton & Hove City Council,http://statistics.data.gov.uk/id/local-authority/00ML,Non SERCOP,BVANON,Cap - Social Services,4RV,New Construction n Conversion,PB,Level not required,NR5026,06/01/2012,PAY00442944,793.38,Capital,NPS South East Ltd
Brighton & Hove City Council,http://statistics.data.gov.uk/id/local-authority/00ML,Housing Services General Fund,BVAHOG,Homelessness,HML,Premises Related,C,Rents Payable,CC,06/01/2012,PAY00442946,750.00,Revenue,Payment to Individual
Brighton & Hove City Council,http://statistics.data.gov.uk/id/local-authority/00ML,Adult Social Care,BVASOC,S Svcs - Learning Disability,LDY,Customer n Client Receipts,M,Fees n Charges,MB,06/01/2012,PAY00442947,-92.00,Revenue,Payment to Individual
Brighton & Hove City Council,http://statistics.data.gov.uk/id/local-authority/00ML,Adult Social Care,BVASOC,S Svcs - Learning Disability,LDY,Third Party Payments,F,Other Establishments,FH,06/01/2012,PAY00442947,970.00,Revenue,Payment to Individual
Brighton & Hove City Council,http://statistics.data.gov.uk/id/local-authority/00ML,Housing Services General Fund,BVAHOG,Homelessness,HML,Premises Related,C,Rents Payable,CC,06/01/2012,PAY00442948,825.00,Revenue,Payment to Individual
Brighton & Hove City Council,http://statistics.data.gov.uk/id/local-authority/00ML,Adult Social Care,BVASOC,S Svcs - Older People Svcs,PPL,Customer n Client Receipts,M,Fees n Charges,MB,06/01/2012,PAY00442949,-32.00,Revenue,Payment to Individual
Brighton & Hove City Council,http://statistics.data.gov.uk/id/local-authority/00ML,Adult Social Care,BVASOC,S Svcs - Older People Svcs,PPL,Third Party Payments,F,Other Establishments,FH,06/01/2012,PAY00442949,681.76,Revenue,Payment to Individual
Brighton & Hove City Council,http://statistics.data.gov.uk/id/local-authority/00ML,Adult Social Care,BVASOC,S Svcs - Learning Disability,LDY,Third Party Payments,F,Other Establishments,FH,06/01/2012,PAY00442950,513.70,Revenue,Payment to Individual
Brighton & Hove City Council,http://statistics.data.gov.uk/id/local-authority/00ML,Central Services To The Public,BVACEN,Support Services (SSC),PPT,Supplies and Services,E,Services,EF,06/01/2012,PAY00442951,1360.00,Revenue,R&B Recovery Limited
Brighton & Hove City Council,http://statistics.data.gov.uk/id/local-authority/00ML,Highways and Transportation,BVAHRT,Parking Services,PRK,Supplies and Services,E,Equip't Furniture n Materials,EA,06/01/2012,PAY00442952,1139.00,Revenue,Parkeon Ltd
Brighton & Hove City Council,http://statistics.data.gov.uk/id/local-authority/00ML,Adult Social Care,BVASOC,S Svcs - Physical Disability,PDY,Third Party Payments,F,Other Establishments,FH,06/01/2012,PAY00442953,754.48,Revenue,Payment to Individual
Brighton & Hove City Council,http://statistics.data.gov.uk/id/local-authority/00ML,Adult Social Care,BVASOC,S Svcs - Learning Disability,LDY,Third Party Payments,F,Other Establishments,FH,06/01/2012,PAY00442954,2493.44,Revenue,Payment to Individual
Brighton & Hove City Council,http://statistics.data.gov.uk/id/local-authority/00ML,Adult Social Care,BVASOC,S Svcs - Learning Disability,LDY,Third Party Payments,F,Other Establishments,FH,06/01/2012,PAY00442955,6872.00,Revenue,Payment to Individual
Brighton & Hove City Council,http://statistics.data.gov.uk/id/local-authority/00ML,Adult Social Care,BVASOC,S Svcs - Older People Svcs,PPL,Customer n Client Receipts,M,Fees n Charges,MB,06/01/2012,PAY00442956,-78.00,Revenue,Payment to Individual
Brighton & Hove City Council,http://statistics.data.gov.uk/id/local-authority/00ML,Adult Social Care,BVASOC,S Svcs - Older People Svcs,PPL,Third Party Payments,F,Other Establishments,FH,06/01/2012,PAY00442956,1291.20,Revenue,Payment to Individual
Brighton & Hove City Council,http://statistics.data.gov.uk/id/local-authority/00ML,Adult Social Care,BVASOC,S Svcs - Physical Disability,PDY,Third Party Payments,F,Other Establishments,FH,06/01/2012,PAY00442957,4104.00,Revenue,Payment to Individual
Brighton & Hove City Council,http://statistics.data.gov.uk/id/local-authority/00ML,Adult Social Care,BVASOC,S Svcs - Physical Disability,PDY,Third Party Payments,F,Other Establishments,FH,06/01/2012,PAY00442958,853.60,Revenue,Payment to Individual
Brighton & Hove City Council,http://statistics.data.gov.uk/id/local-authority/00ML,Housing Services General Fund,BVAHOG,Homelessness,HML,Premises Related,C,Rents Payable,CC,06/01/2012,PAY00442960,1550.00,Revenue,Marchmont Estates Ltd
Brighton & Hove City Council,http://statistics.data.gov.uk/id/local-authority/00ML,Adult Social Care,BVASOC,S Svcs - Older People Svcs,PPL,Supplies and Services,E,Catering,EB,06/01/2012,PAY00442962,515.73,Revenue,West Horsley Dairy Ltd
Brighton & Hove City Council,http://statistics.data.gov.uk/id/local-authority/00ML,Non SERCOP,BVANON,Cap - Transport,4TR,New Construction n Conversion,PB,Level not required,NR5026,06/01/2012,PAY00442963,4200.00,Capital,Marshalls plc
Brighton & Hove City Council,http://statistics.data.gov.uk/id/local-authority/00ML,Adult Social Care,BVASOC,S Svcs - Learning Disability,LDY,Customer n Client Receipts,M,Fees n Charges,MB,06/01/2012,PAY00442964,-1251.32,Revenue,Payment to Individual
Brighton & Hove City Council,http://statistics.data.gov.uk/id/local-authority/00ML,Adult Social Care,BVASOC,S Svcs - Learning Disability,LDY,Third Party Payments,F,Other Establishments,FH,06/01/2012,PAY00442964,3594.96,Revenue,Payment to Individual
Brighton & Hove City Council,http://statistics.data.gov.uk/id/local-authority/00ML,Adult Social Care,BVASOC,S Svcs - Physical Disability,PDY,Customer n Client Receipts,M,Fees n Charges,MB,06/01/2012,PAY00442968,-132.00,Revenue,Payment to Individual
Brighton & Hove City Council,http://statistics.data.gov.uk/id/local-authority/00ML,Adult Social Care,BVASOC,S Svcs - Physical Disability,PDY,Third Party Payments,F,Other Establishments,FH,06/01/2012,PAY00442968,1047.28,Revenue,Payment to Individual
Brighton & Hove City Council,http://statistics.data.gov.uk/id/local-authority/00ML,Cultural and Related Services,BVACUL,Culture & Heritage,CHG,Supplies and Services,E,Services,EF,06/01/2012,PAY00442969,5499.00,Revenue,October Gallery Trust
Brighton & Hove City Council,http://statistics.data.gov.uk/id/local-authority/00ML,Housing Services General Fund,BVAHOG,Homelessness,HML,Third Party Payments,F,Other Establishments,FH,06/01/2012,PAY00442971,650.00,Revenue,The Baron Homes Corporation Ltd
Brighton & Hove City Council,http://statistics.data.gov.uk/id/local-authority/00ML,Environment and Regulatory Ser,BVAERS,Court Services,CRT,Supplies and Services,E,Equip't Furniture n Materials,EA,06/01/2012,PAY00442972,6804.75,Revenue,Brighton & Sussex University Hospitals NHS Trust
Brighton & Hove City Council,http://statistics.data.gov.uk/id/local-authority/00ML,Housing Services General Fund,BVAHOG,Homelessness,HML,Premises Related,C,Rents Payable,CC,06/01/2012,PAY00442977,750.00,Revenue,Greyshott Lane Properties
Brighton & Hove City Council,http://statistics.data.gov.uk/id/local-authority/00ML,Housing Services General Fund,BVAHOG,Homelessness,HML,Premises Related,C,Rents Payable,CC,06/01/2012,PAY00442978,825.00,Revenue,Payment to Individual
Brighton & Hove City Council,http://statistics.data.gov.uk/id/local-authority/00ML,Adult Social Care,BVASOC,S Svcs - Learning Disability,LDY,Customer n Client Receipts,M,Fees n Charges,MB,06/01/2012,PAY00442981,-128.00,Revenue,Payment to Individual
Brighton & Hove City Council,http://statistics.data.gov.uk/id/local-authority/00ML,Adult Social Care,BVASOC,S Svcs - Learning Disability,LDY,Third Party Payments,F,Other Establishments,FH,06/01/2012,PAY00442981,1555.20,Revenue,Payment to Individual
Brighton & Hove City Council,http://statistics.data.gov.uk/id/local-authority/00ML,Adult Social Care,BVASOC,S Svcs - Learning Disability,LDY,Customer n Client Receipts,M,Fees n Charges,MB,06/01/2012,PAY00442982,-180.00,Revenue,Payment to Individual
Brighton & Hove City Council,http://statistics.data.gov.uk/id/local-authority/00ML,Adult Social Care,BVASOC,S Svcs - Learning Disability,LDY,Third Party Payments,F,Other Establishments,FH,06/01/2012,PAY00442982,1726.44,Revenue,Payment to Individual
Brighton & Hove City Council,http://statistics.data.gov.uk/id/local-authority/00ML,Central Services To The Public,BVACEN,Support Services (SSC),PPT,Supplies and Services,E,Miscellaneous Expenses,EM,06/01/2012,PAY00442984,198.58,Revenue,CIPFA Business Ltd
Brighton & Hove City Council,http://statistics.data.gov.uk/id/local-authority/00ML,Central Services To The Public,BVACEN,Support Services (SSC),PPT,Supplies and Services,E,Print Stat & Gen Office Exps,ED,06/01/2012,PAY00442984,708.58,Revenue,CIPFA Business Ltd
Brighton & Hove City Council,http://statistics.data.gov.uk/id/local-authority/00ML,Central Services To The Public,BVACEN,Support Services (SSC),PPT,Supplies and Services,E,Equip't Furniture n Materials,EA,06/01/2012,PAY00442987,1382.88,Revenue,Kent County Council (KCS)
Brighton & Hove City Council,http://statistics.data.gov.uk/id/local-authority/00ML,Education Services,BVAEDU,Ed - Srvcs YP - Ad & Cmty Ln,ENA,Premises Related,C,Cleaning n Domestic Supps,CH,06/01/2012,PAY00442987,106.88,Revenue,Kent County Council (KCS)
Brighton & Hove City Council,http://statistics.data.gov.uk/id/local-authority/00ML,Housing Services Revnue Acc,BVAHOU,Hsing Management - HRA,HGM,Supplies and Services,E,Services,EF,06/01/2012,PAY00442990,600.00,Revenue,Parsons Son & Basley LLP
Brighton & Hove City Council,http://statistics.data.gov.uk/id/local-authority/00ML,Highways and Transportation,BVAHRT,Parking Services,PRK,Supplies and Services,E,Equip't Furniture n Materials,EA,06/01/2012,PAY00442991,422.68,Revenue,PHS Group Plc
Brighton & Hove City Council,http://statistics.data.gov.uk/id/local-authority/00ML,Cultural and Related Services,BVACUL,Culture & Heritage,CHG,Customer n Client Receipts,M,Fees n Charges,MB,06/01/2012,PAY00442993,-10568.67,Revenue,SJM Limited t/a SJM Concerts
Brighton & Hove City Council,http://statistics.data.gov.uk/id/local-authority/00ML,Cultural and Related Services,BVACUL,Culture & Heritage,CHG,Customer n Client Receipts,M,Sales,MA,06/01/2012,PAY00442993,69325.00,Revenue,SJM Limited t/a SJM Concerts
Brighton & Hove City Council,http://statistics.data.gov.uk/id/local-authority/00ML,Cultural and Related Services,BVACUL,Culture & Heritage,CHG,Supplies and Services,E,Communications n Computing,EH,06/01/2012,PAY00442993,-30.50,Revenue,SJM Limited t/a SJM Concerts
Brighton & Hove City Council,http://statistics.data.gov.uk/id/local-authority/00ML,Cultural and Related Services,BVACUL,Culture & Heritage,CHG,Supplies and Services,E,Equip't Furniture n Materials,EA,06/01/2012,PAY00442993,-180.00,Revenue,SJM Limited t/a SJM Concerts
Brighton & Hove City Council,http://statistics.data.gov.uk/id/local-authority/00ML,Cultural and Related Services,BVACUL,Culture & Heritage,CHG,Supplies and Services,E,Miscellaneous Expenses,EM,06/01/2012,PAY00442993,-3963.25,Revenue,SJM Limited t/a SJM Concerts
Brighton & Hove City Council,http://statistics.data.gov.uk/id/local-authority/00ML,Adult Social Care,BVASOC,S Svcs - Learning Disability,LDY,Premises Related,C,Cleaning n Domestic Supps,CH,06/01/2012,PAY00442997,51.49,Revenue,Wightman & Parrish Ltd
Brighton & Hove City Council,http://statistics.data.gov.uk/id/local-authority/00ML,Adult Social Care,BVASOC,S Svcs - Older People Svcs,PPL,Premises Related,C,Cleaning n Domestic Supps,CH,06/01/2012,PAY00442997,378.57,Revenue,Wightman & Parrish Ltd
Brighton & Hove City Council,http://statistics.data.gov.uk/id/local-authority/00ML,Adult Social Care,BVASOC,S Svcs - Older People Svcs,PPL,Supplies and Services,E,Catering,EB,06/01/2012,PAY00442997,169.94,Revenue,Wightman & Parrish Ltd
Brighton & Hove City Council,http://statistics.data.gov.uk/id/local-authority/00ML,Adult Social Care,BVASOC,S Svcs - Physical Disability,PDY,Premises Related,C,Cleaning n Domestic Supps,CH,06/01/2012,PAY00442997,172.85,Revenue,Wightman & Parrish Ltd
Brighton & Hove City Council,http://statistics.data.gov.uk/id/local-authority/00ML,Central Services To The Public,BVACEN,Support Services (SSC),PPT,Premises Related,C,Cleaning n Domestic Supps,CH,06/01/2012,PAY00442997,6433.50,Revenue,Wightman & Parrish Ltd
Brighton & Hove City Council,http://statistics.data.gov.uk/id/local-authority/00ML,Children�s Social Care,BVACSC,Child Srvcs - Family Centres,FFF,Premises Related,C,Cleaning n Domestic Supps,CH,06/01/2012,PAY00442997,20.67,Revenue,Wightman & Parrish Ltd
Brighton & Hove City Council,http://statistics.data.gov.uk/id/local-authority/00ML,Cultural and Related Services,BVACUL,Library Service,LBR,Premises Related,C,Cleaning n Domestic Supps,CH,06/01/2012,PAY00442997,65.53,Revenue,Wightman & Parrish Ltd
Brighton & Hove City Council,http://statistics.data.gov.uk/id/local-authority/00ML,Adult Social Care,BVASOC,S Svcs - Learning Disability,LDY,Third Party Payments,F,Other Establishments,FH,06/01/2012,PAY00442999,2507.48,Revenue,Grace Eyre Foundation Ltd
Brighton & Hove City Council,http://statistics.data.gov.uk/id/local-authority/00ML,Adult Social Care,BVASOC,S Svcs - Learning Disability,LDY,Third Party Payments,F,Other Establishments,FH,06/01/2012,PAY00443003,1366.46,Revenue,SeeAbility
Brighton & Hove City Council,http://statistics.data.gov.uk/id/local-authority/00ML,Adult Social Care,BVASOC,S Svcs - Mental Health,MHT,Customer n Client Receipts,M,Fees n Charges,MB,06/01/2012,PAY00443004,-1220.00,Revenue,Payment to Individual
Brighton & Hove City Council,http://statistics.data.gov.uk/id/local-authority/00ML,Adult Social Care,BVASOC,S Svcs - Mental Health,MHT,Third Party Payments,F,Other Establishments,FH,06/01/2012,PAY00443004,5172.00,Revenue,Payment to Individual
Brighton & Hove City Council,http://statistics.data.gov.uk/id/local-authority/00ML,Adult Social Care,BVASOC,S Svcs - Learning Disability,LDY,Customer n Client Receipts,M,Fees n Charges,MB,06/01/2012,PAY00443005,-332.00,Revenue,Payment to Individual
Brighton & Hove City Council,http://statistics.data.gov.uk/id/local-authority/00ML,Adult Social Care,BVASOC,S Svcs - Learning Disability,LDY,Third Party Payments,F,Other Establishments,FH,06/01/2012,PAY00443005,3993.60,Revenue,Payment to Individual
Brighton & Hove City Council,http://statistics.data.gov.uk/id/local-authority/00ML,Adult Social Care,BVASOC,S Svcs - Older People Svcs,PPL,Customer n Client Receipts,M,Fees n Charges,MB,06/01/2012,PAY00443006,-206.00,Revenue,Hallifax Care Ltd
Brighton & Hove City Council,http://statistics.data.gov.uk/id/local-authority/00ML,Adult Social Care,BVASOC,S Svcs - Older People Svcs,PPL,Third Party Payments,F,Other Establishments,FH,06/01/2012,PAY00443006,2369.43,Revenue,Hallifax Care Ltd
Brighton & Hove City Council,http://statistics.data.gov.uk/id/local-authority/00ML,Adult Social Care,BVASOC,S Svcs - Learning Disability,LDY,Customer n Client Receipts,M,Fees n Charges,MB,06/01/2012,PAY00443009,-100.00,Revenue,Payment to Individual
Brighton & Hove City Council,http://statistics.data.gov.uk/id/local-authority/00ML,Adult Social Care,BVASOC,S Svcs - Learning Disability,LDY,Third Party Payments,F,Other Establishments,FH,06/01/2012,PAY00443009,1607.88,Revenue,Payment to Individual
Brighton & Hove City Council,http://statistics.data.gov.uk/id/local-authority/00ML,Adult Social Care,BVASOC,S Svcs - Older People Svcs,PPL,Customer n Client Receipts,M,Fees n Charges,MB,06/01/2012,PAY00443010,-652.79,Revenue,Vallance Rest Home
Brighton & Hove City Council,http://statistics.data.gov.uk/id/local-authority/00ML,Adult Social Care,BVASOC,S Svcs - Older People Svcs,PPL,Third Party Payments,F,Other Establishments,FH,06/01/2012,PAY00443010,1764.29,Revenue,Vallance Rest Home
Brighton & Hove City Council,http://statistics.data.gov.uk/id/local-authority/00ML,Adult Social Care,BVASOC,S Svcs - Learning Disability,LDY,Third Party Payments,F,Other Establishments,FH,06/01/2012,PAY00443011,6285.60,Revenue,Autism Sussex Ltd
Brighton & Hove City Council,http://statistics.data.gov.uk/id/local-authority/00ML,Central Services To The Public,BVACEN,Support Services (SSC),PPT,Premises Related,C,Repair Maint n Alterations,CA,06/01/2012,PAY00443013,8650.00,Revenue,RB Construction Group Ltd
Brighton & Hove City Council,http://statistics.data.gov.uk/id/local-authority/00ML,Central Services To The Public,BVACEN,Support Services (SSC),PPT,Supplies and Services,E,Miscellaneous Expenses,EM,06/01/2012,PAY00443015,1314.28,Revenue,Clear Channel UK Ltd
Brighton & Hove City Council,http://statistics.data.gov.uk/id/local-authority/00ML,Adult Social Care,BVASOC,S Svcs - Learning Disability,LDY,Transport Related,D,Direct Transport Costs,DA,06/01/2012,PAY00443017,264.25,Revenue,Colas Limited
Brighton & Hove City Council,http://statistics.data.gov.uk/id/local-authority/00ML,Adult Social Care,BVASOC,S Svcs - Older People Svcs,PPL,Transport Related,D,Direct Transport Costs,DA,06/01/2012,PAY00443017,1141.86,Revenue,Colas Limited
Brighton & Hove City Council,http://statistics.data.gov.uk/id/local-authority/00ML,Cultural and Related Services,BVACUL,Open Spaces,PEN,Third Party Payments,F,Private Contractors,FJ,06/01/2012,PAY00443017,233.09,Revenue,Colas Limited
Brighton & Hove City Council,http://statistics.data.gov.uk/id/local-authority/00ML,Education Services,BVAEDU,Ed - Special Ed,EKE,Transport Related,D,Direct Transport Costs,DA,06/01/2012,PAY00443017,208.21,Revenue,Colas Limited
Brighton & Hove City Council,http://statistics.data.gov.uk/id/local-authority/00ML,Environment and Regulatory Ser,BVAERS,Management Services (DEC),MGT,Transport Related,D,Direct Transport Costs,DA,06/01/2012,PAY00443017,23.50,Revenue,Colas Limited
Brighton & Hove City Council,http://statistics.data.gov.uk/id/local-authority/00ML,Housing Services Revnue Acc,BVAHOU,Hsing Management - HRA,HGM,Transport Related,D,Direct Transport Costs,DA,06/01/2012,PAY00443017,109.16,Revenue,Colas Limited
Brighton & Hove City Council,http://statistics.data.gov.uk/id/local-authority/00ML,Cultural and Related Services,BVACUL,Culture & Heritage,CHG,Supplies and Services,E,Miscellaneous Expenses,EM,06/01/2012,PAY00443019,455.60,Revenue,R J Dance (Contractors) Ltd
Brighton & Hove City Council,http://statistics.data.gov.uk/id/local-authority/00ML,Education Services,BVAEDU,Ed - Ed Other - Other,ENF,Premises Related,C,Repair Maint n Alterations,CA,06/01/2012,PAY00443020,1564.00,Revenue,Catercraft Supplies Ltd
Brighton & Hove City Council,http://statistics.data.gov.uk/id/local-authority/00ML,Education Services,BVAEDU,Ed - Ed Other - Other,ENF,Supplies and Services,E,Equip't Furniture n Materials,EA,06/01/2012,PAY00443020,2368.60,Revenue,Catercraft Supplies Ltd
Brighton & Hove City Council,http://statistics.data.gov.uk/id/local-authority/00ML,Children�s Social Care,BVACSC,Child Srvcs - Leaving Care,FAL,Transfer Payments,G,Other Transfer Payments,GD,06/01/2012,PAY00443024,3375.00,Revenue,University of Brighton
Brighton & Hove City Council,http://statistics.data.gov.uk/id/local-authority/00ML,Cultural and Related Services,BVACUL,Management Services (DEC),MGT,Supplies and Services,E,Miscellaneous Expenses,EM,06/01/2012,PAY00443024,5000.00,Revenue,University of Brighton
Brighton & Hove City Council,http://statistics.data.gov.uk/id/local-authority/00ML,Education Services,BVAEDU,Ed - EY - Central,EAE,Supplies and Services,E,Grants n Subscriptions,EK,06/01/2012,PAY00443024,1110.00,Revenue,University of Brighton
Brighton & Hove City Council,http://statistics.data.gov.uk/id/local-authority/00ML,Adult Social Care,BVASOC,S Svcs - Learning Disability,LDY,Third Party Payments,F,Other Establishments,FH,06/01/2012,PAY00443025,1629.36,Revenue,Payment to Individual
Brighton & Hove City Council,http://statistics.data.gov.uk/id/local-authority/00ML,Adult Social Care,BVASOC,S Svcs - Physical Disability,PDY,Customer n Client Receipts,M,Fees n Charges,MB,06/01/2012,PAY00443026,-980.00,Revenue,Payment to Individual
Brighton & Hove City Council,http://statistics.data.gov.uk/id/local-authority/00ML,Adult Social Care,BVASOC,S Svcs - Physical Disability,PDY,Third Party Payments,F,Other Establishments,FH,06/01/2012,PAY00443026,2030.12,Revenue,Payment to Individual
Brighton & Hove City Council,http://statistics.data.gov.uk/id/local-authority/00ML,Adult Social Care,BVASOC,S Svcs - Physical Disability,PDY,Third Party Payments,F,Other Establishments,FH,06/01/2012,PAY00443028,814.00,Revenue,Payment to Individual
Brighton & Hove City Council,http://statistics.data.gov.uk/id/local-authority/00ML,Adult Social Care,BVASOC,S Svcs - Older People Svcs,PPL,Third Party Payments,F,Other Establishments,FH,06/01/2012,PAY00443029,1030.76,Revenue,Payment to Individual
Brighton & Hove City Council,http://statistics.data.gov.uk/id/local-authority/00ML,Housing Services General Fund,BVAHOG,Homelessness,HML,Premises Related,C,Rents Payable,CC,06/01/2012,PAY00443030,900.00,Revenue,Payment to Individual
Brighton & Hove City Council,http://statistics.data.gov.uk/id/local-authority/00ML,Housing Services General Fund,BVAHOG,Homelessness,HML,Premises Related,C,Rents Payable,CC,06/01/2012,PAY00443031,900.00,Revenue,Park Avenue Estates Ltd
Brighton & Hove City Council,http://statistics.data.gov.uk/id/local-authority/00ML,Adult Social Care,BVASOC,S Svcs - Learning Disability,LDY,Customer n Client Receipts,M,Fees n Charges,MB,06/01/2012,PAY00443032,-848.00,Revenue,Payment to Individual
Brighton & Hove City Council,http://statistics.data.gov.uk/id/local-authority/00ML,Adult Social Care,BVASOC,S Svcs - Learning Disability,LDY,Third Party Payments,F,Other Establishments,FH,06/01/2012,PAY00443032,2230.60,Revenue,Payment to Individual
Brighton & Hove City Council,http://statistics.data.gov.uk/id/local-authority/00ML,Adult Social Care,BVASOC,S Svcs - Learning Disability,LDY,Third Party Payments,F,Other Establishments,FH,06/01/2012,PAY00443033,1935.80,Revenue,Payment to Individual
Brighton & Hove City Council,http://statistics.data.gov.uk/id/local-authority/00ML,Adult Social Care,BVASOC,S Svcs - Older People Svcs,PPL,Third Party Payments,F,Other Establishments,FH,06/01/2012,PAY00443035,610.16,Revenue,Payment to Individual
Brighton & Hove City Council,http://statistics.data.gov.uk/id/local-authority/00ML,Adult Social Care,BVASOC,S Svcs - Learning Disability,LDY,Third Party Payments,F,Other Establishments,FH,06/01/2012,PAY00443036,1222.20,Revenue,Payment to Individual
Brighton & Hove City Council,http://statistics.data.gov.uk/id/local-authority/00ML,Central Services To The Public,BVACEN,Local Tax Collection,LTC,Supplies and Services,E,Communications n Computing,EH,06/01/2012,PAY00443037,7972.50,Revenue,Northgate Information Solutions UK Ltd
Brighton & Hove City Council,http://statistics.data.gov.uk/id/local-authority/00ML,Housing Services General Fund,BVAHOG,Hsing Benefits,HGB,Supplies and Services,E,Communications n Computing,EH,06/01/2012,PAY00443037,9242.50,Revenue,Northgate Information Solutions UK Ltd
Brighton & Hove City Council,http://statistics.data.gov.uk/id/local-authority/00ML,Planning Services,BVAPLA,Building Control,BLD,Supplies and Services,E,Communications n Computing,EH,06/01/2012,PAY00443037,1095.36,Revenue,Northgate Information Solutions UK Ltd
Brighton & Hove City Council,http://statistics.data.gov.uk/id/local-authority/00ML,Adult Social Care,BVASOC,S Svcs - Learning Disability,LDY,Customer n Client Receipts,M,Fees n Charges,MB,06/01/2012,PAY00443038,-256.00,Revenue,Payment to Individual
Brighton & Hove City Council,http://statistics.data.gov.uk/id/local-authority/00ML,Adult Social Care,BVASOC,S Svcs - Learning Disability,LDY,Third Party Payments,F,Other Establishments,FH,06/01/2012,PAY00443038,2577.52,Revenue,Payment to Individual
Brighton & Hove City Council,http://statistics.data.gov.uk/id/local-authority/00ML,Adult Social Care,BVASOC,S Svcs - Physical Disability,PDY,Customer n Client Receipts,M,Fees n Charges,MB,06/01/2012,PAY00443039,-1978.24,Revenue,Payment to Individual
Brighton & Hove City Council,http://statistics.data.gov.uk/id/local-authority/00ML,Adult Social Care,BVASOC,S Svcs - Physical Disability,PDY,Third Party Payments,F,Other Establishments,FH,06/01/2012,PAY00443039,3402.28,Revenue,Payment to Individual
Brighton & Hove City Council,http://statistics.data.gov.uk/id/local-authority/00ML,Adult Social Care,BVASOC,S Svcs - Learning Disability,LDY,Customer n Client Receipts,M,Fees n Charges,MB,06/01/2012,PAY00443040,-1508.00,Revenue,Payment to Individual
Brighton & Hove City Council,http://statistics.data.gov.uk/id/local-authority/00ML,Adult Social Care,BVASOC,S Svcs - Learning Disability,LDY,Third Party Payments,F,Other Establishments,FH,06/01/2012,PAY00443040,3936.32,Revenue,Payment to Individual
Brighton & Hove City Council,http://statistics.data.gov.uk/id/local-authority/00ML,Adult Social Care,BVASOC,S Svcs - Older People Svcs,PPL,Customer n Client Receipts,M,Fees n Charges,MB,06/01/2012,PAY00443042,-56.00,Revenue,Payment to Individual
Brighton & Hove City Council,http://statistics.data.gov.uk/id/local-authority/00ML,Adult Social Care,BVASOC,S Svcs - Older People Svcs,PPL,Third Party Payments,F,Other Establishments,FH,06/01/2012,PAY00443042,2706.00,Revenue,Payment to Individual
Brighton & Hove City Council,http://statistics.data.gov.uk/id/local-authority/00ML,Housing Services General Fund,BVAHOG,Homelessness,HML,Premises Related,C,Rents Payable,CC,06/01/2012,PAY00443045,565.00,Revenue,Payment to Individual
